Workbook

Sheet documentation
A1: PSCF Documentation
A3: PSCF workbooks enable you to enter all details necessary to create and execute a public sector credit simulation model. To do this, you must correctly populate both the model and series sheets and then click the PSCF Contol Panel, and, finally, click the Run Analysis button in this panel.
A5: Each entry in the model and series tab is documented below. Please review these entries carefully and review the sample before entering and running models.
A7: You can maintain multiple PSCF workbooks by saving the sample spreadsheet to another name, or copying the workbook using Windows Explorer. All workbooks should be kept in the \\My Documents\PSCF folder.
A9: Although this interface uses Excel, PSCF also runs in a command line mode which reads tab delimited copies of the model and series tabs, and outputs results to a tab delimited projections tab. Command line operation is recommended only for highly technical users and those working in the Linux operating system.
A11: model tab (top section) | C11: Descriptive information and basic model parameters.
B12: Government Entity | C12: Name of the public sector entity being analyzed. Value appears in the projection output header.
B13: Model Description | C13: Short description of the model. Value appears in the projection output header.
B14: Currency | C14: Currency in which values are denominated. Value appears in the projection output header. All models are assumed to use a single currency.
B15: Initial Year | C15: Fiscal year associated with the base year of the analysis, referred to as "Year 0" in the models tab. In the projection output, years are numbered sequentially beginning with this initial year. This field must be a four digit numeric. If a government entity uses the form FY 2012-2013, that should be entered as 2013 in this field.
B16: Projection Years | C16: Number of years beyond the initial year that will be analyzed. For example, if the Initial Year is 2011 and a value of 30 is entered for "Projection Years", the period analyzed will be 2012-2041. Values for 2011 will also be displayed in the Projection output.
B17: Number of Trials | C17: Number of simulation trials to run. Please note that there is no limit, however projection output includes one row for each year and each trial plus white space.
B18: Threshold Label | C18: Some analysts may wish to use a term other than "Default" to describe situations in which the threshold is exceeded. Enter a term other than "Default" here if that is your preference. This will be reflected in the projection output.
B19: Show Projection Details | C19: Controls whether trial by trial results will be generated and displayed in a tab named "projections". Given the row limit of an Excel spreadsheet, this value should be set to "N" if the number of years multiplied by the number of trials exceeeds one million.
A21: model tab (metric section) | C21: Enter up to 5 metrics that will be calculated during each simulation year for each trial. Columns in the metric section are described below.
B22: Description | C22: A text description of the metric. This will appear as the column header in the projection output.
B23: Expression | C23: A syntactically valid expression in terms of series (defined in the series tab) that computes the desired metric.
B24: Threshold Level | C24: Level beyond which a default or crisis is assumed to occur. Only applicable to the first metric.
B25: Relation to Threshold Signifying Default | C25: Relational operator that should be used in conjunction with the threshold to determine whether a default or crisis is assumed to have occurred. Acceptable values are < , <= , > and >=. Only applicable to the first metric.
A27: model tab (default probability code) | C27: Advanced feature. Most users should leave this field blank. This field supports the computation of fractional annual default probabilites based on one or more metrics. This field allows the entry of a default probability code block. The code must be written in ANSI C and must supply a value to the array element defaultprob[y].
A29: series tab | C29: Enter one row for each series you wish to generate. There are three fixed series that should not be removed from the sample: unirandom, normrandom and cauchyrandom refer to arrays of random numbers distributed uniformly, normally or according to the Cauchy form respectively.
B30: Series Name | C30: Variable name describing the series. This name must follow C++ variable naming conventions, which include a limit on the length of the name and no use of spaces within the name. Please note that C++ is case sensitive, so you must make sure to use the same case when referring to the name in expressions as you do when initializing it here.
B31: Series Description | C31: A text description of the series which will appear as the column header for series data in the projection output.
B32: Series Type | C32: A descriptive field allowing you to classify series as Random Numbers, Macroecoomic, Revenue, Expenditure or Debt related. Has no impact on processing or display.
B33: Type/Format | C33: A string of the format TYPE(SIZE,PRECISION) that controls how the array associated with the series is initialized in C++ and displayed in the projection output. We recommend using TYPE double for all series, although integer types are also supported. SIZE refers to the maximum length of series values dispayed in the projection output. PRECISION refers to the number of decimal places to be displayed.
B34: Minimum | C34: Specifies an absolute floor for any value in this series. Must be a numeric value. Optional.
B35: Maximum | C35: Specifies an absolute ceiling for any value in this series. Must be a numeric value. Optional.
B36: RandomMean | C36: Applies only to normal and Cauchy random numbers. Enables you to specify a mean around which generated values are distributed.
B37: RandomStdDevOrSigma | C37: Applies only to normal and Cauchy random numbers. For normally distributed random numbers, allows you to specify a standard deviation. For Cauchy distributed random numbers, allows you to specify a Sigma.
B38: Projection Comments | C38: A descriptive field allowing you to describe the method for populating this series. Has no impact on processing or display.
B39: Include in Output File? | C39: If "Y", the series will appear as a column in the projection output. If "N", the series will not appear, but will still be computed.
B40: Year 0 | C40: Enter values for the initial or base year of the analysis. This is typically the most recent year for which actuals or nearly-final estimates are available. Values entered in this column would typically be fixed currency amounts reflecting these budgetary values, although expressions may be used as long as they do not refer to prior years.
B41: Year 1 -YY | C41: In this context "YY" refers to the number entered for Projection Years in the model tab. Enter valid C++ expressions that will be used to compute values for each series in each year during each simulation trial. Expressions may contain any combination of fixed numeric values, arithmetic operators (+ , - , * , / and ^), references to other current year series values and references to prior year values of this or other series. Current year series references can only be made to series on a higher row of the series sheet and take the form seriesname[y]. To refer to a prior year series value, enter seriesname[y-1]; two year earlier values can be referenced as seriesname[y-2], and so on. Forward references of the form seriesname[y+INTEGER) are not supported. References that would evaluate to a year below 0 will cause an error. For example, in Year 1 you cannot specify seriesname[y-2] since that would evaluate to Year -1 which does not exist.
A43: adjustments tab (optional) | C43: This optional tab allows you to adjust fiscal series after they have been calculated. Primary use is to limit annual surpluses or deficits.
B44: Adjustment Name | C44: A text description of the adjustment.
B45: Expression to Evaluate | C45: A syntactically valid expression in terms of series (defined in the series tab) that computes an expression to test once all series have been calculated for a given year in a given trial.
B46: Relation to Threshold | C46: Relational operator that should be used in conjunction with the threshold to determine whether an adjustment will be made. Acceptable values are < , <= , > and >=.
B47: Threshold Value | C47: Level beyond which the adjustment will be made.
B48: Series to Adjust if Threshold is Surpassed | C48: Specify which series to adjust so that the Expression to Evaluate matches the threshold.
B49: Distribute Adjustment to Related Series | C49: An additional list of series to change in order to be consistent with the adjusted series value. All series in the list will be adjusted pro rata without constraint.
B50: Constraint Operator | C50: Relational operator that should be used in conjunction with the Constraint Amount to set a limit to the amount of the series is adjusted. Acceptable values are < , <= , > and >=. Only applicable to the first metric.
B51: Constraint Amount | C51: Number, series member or compound term specifying the upper or lower bound for the adjusted value. A typical use of this field (and the operator field above) is to prevent a series from swiching signs.
B52: Dependent Series | C52: Other series whose values are dependent on series being adjusted. Series listed in this column will be recalculated after the adjustments have been applied.
A54: ratingmap tab (optional) | C54: Lookup table between annual default probabilites and ratings. If this table is provided, annual rating equivalents will be displayed in results.
A56: PSCF Control Panel (model tab) | C56: Click this command button to run a projection or perform projection-related housekeeping tasks. Normally, you would only use this panel after populating both the model and series sheets.
B57: Run Analysis | C57: This button executes a Visual Basic script which performs the following tasks: (1) checks the syntax of expressions entered in the model and series sheets, (2) converts the model and series sheets to tab delimited text files, (3) translates these text files into a C++ program, (4) compiles the program using the GNU C++ compiler, (5) executes the C++ program thereby running the simuilation and outputting the projection results and (6) loading the projection results into Excel. If syntax checking reveals errors or compilation fails, the script aborts prior to running other steps. Error messages may be found in the PSCF control panel and in the form of cell comments associated with cells containing invalid expressions. Depending upon whether you choose to display trial by trial details, a successful analysis run will create either one or two tabs to the Excel workbook.
B58: Clear Results | C58: Removes previously created projection and results tabs from the Excel workbook.
B59: Show C Code | C59: Displays the generated code in a Notepad window. This is for informational purposes only. Manual changes to the program will not affect the projection output and will be overwritten the next time "Run Analysis" is executed.
B60: Close | C60: Close the PSCF Control panel window.

Sheet model
A1: Parameter Name | B1: Parameter Value
A2: Government Entity | B2: Italy
A3: Model Description | B3: CED Presentation
A4: Currency | B4: EUR
A5: Initial Year | B5: 2011
A6: Projection Years | B6: 11
A7: Number of Trials | B7: 1000000
A8: Threshold Label | B8: Default
A9: Show Projection Details | B9: N
B11: Description | C11: Expression | D11: Threshold Level | E11: ="Relation to Threshold Signifying " & B8 -> Relation to Threshold Signifying Default
A12: Metric 1 | B12: Interest Expense/Total Revenue | C12: interest[y]/totrev[y] | D12: 0.25 | E12: >
A13: Metric 2 | B13: Debt/GDP | C13: debt[y]/GDP[y]
A14: Metric 3 | B14: Debt/Total Revenue | C14: debt[y]/totrev[y]
A15: Metric 4 | B15: Absolute Increase in Debt | C15: debt[y]-debt[y-1]
A16: Metric 5 | B16: Total Rev / Total Exp | C16: totrev[y]/totexp[y]
B18: Default Probability Code

Sheet TermStruct Jun 30 2012
A1: http://www.dt.tesoro.it/export/sites/sitodt/modules/documenti_en/debito_pubblico/scadenze_titoli_suddivise_per_anno/Outstanding_public_securities_30-06-2012_GPO.pdf
A2: Ministry of the Economy and Finance
A4: Public Debt
A6: Outstanding of public securities
A7: (breakdown by maturity)
A9: ( Update on June 30 2012 )
A15: REDEMPTIONS IN 2012
A16: ( Update on 30-6-2012 )
A17: ISIN Code | B17: Security | C17: Issue date | D17: Redemption date | E17: Coupon/Spread | F17: Currency | G17: Outstanding Euro
A18: IT0004675044 | B18: BOTs 12m | C18: 14-Jan-2011 | D18: 16-Jan-2012 | E18: - | F18: EUR | G18: 7700000000 | H18: M
A19: IT0004745094 | B19: BOTs 6m | C19: 29-Jul-2011 | D19: 31-Jan-2012 | E19: - | F19: EUR | G19: 7500000000 | H19: M
A20: IT0004683014 | B20: BOTs 12m | C20: 15-Feb-2011 | D20: 15-Feb-2012 | E20: - | F20: EUR | G20: 8025000000 | H20: M
A21: IT0004750813 | B21: BOTs 6m | C21: 31-Aug-2011 | D21: 29-Feb-2012 | E21: - | F21: EUR | G21: 8710000000 | H21: M
A22: IT0004696669 | B22: BOTs 12m | C22: 15-Mar-2011 | D22: 15-Mar-2012 | E22: - | F22: EUR | G22: 8250000000 | H22: M
A23: IT0004755408 | B23: BOTs 6m | C23: 30-Sep-2011 | D23: 30-Mar-2012 | E23: - | F23: EUR | G23: 8800000000 | H23: M
A24: IT0004706914 | B24: BOTs 12m | C24: 15-Apr-2011 | D24: 16-Apr-2012 | E24: - | F24: EUR | G24: 8250000000 | H24: M
A25: IT0004765621 | B25: BOTs 6m | C25: 31-Oct-2011 | D25: 30-Apr-2012 | E25: - | F25: EUR | G25: 9350000000 | H25: M
A26: IT0004719289 | B26: BOTs 12m | C26: 16-May-2011 | D26: 15-May-2012 | E26: - | F26: EUR | G26: 6600000000 | H26: M
A27: IT0004776164 | B27: BOTs 6m | C27: 30-Nov-2011 | D27: 31-May-2012 | E27: - | F27: EUR | G27: 8668000000 | H27: M
A28: IT0004789027 | B28: BOTs flexible 1° tr. | C28: 16-Jan-2012 | D28: 31-May-2012 | E28: - | F28: EUR | G28: 3500000000 | H28: M
A29: IT0004727142 | B29: BOTs 12m | C29: 15-Jun-2011 | D29: 15-Jun-2012 | E29: - | F29: EUR | G29: 6115000000 | H29: M
A30: IT0004804859 | B30: BOTs 3m | C30: 15-Mar-2012 | D30: 15-Jun-2012 | E30: - | F30: EUR | G30: 3500000000 | H30: M
A31: IT0004797392 | B31: BOTs flexible 1° tr. | C31: 15-Feb-2012 | D31: 21-Jun-2012 | E31: - | F31: EUR | G31: 3500000000 | H31: M
A32: IT0004781941 | B32: BOTs 6m | C32: 2-Jan-2012 | D32: 29-Jun-2012 | E32: - | F32: EUR | G32: 9900000000 | H32: M
A33: IT0004745086 | B33: BOTs 12m | C33: 15-Jul-2011 | D33: 16-Jul-2012 | E33: - | F33: EUR | G33: 7425000000
A34: IT0004812118 | B34: BOTs 3m | C34: 16-Apr-2012 | D34: 16-Jul-2012 | E34: - | F34: EUR | G34: 3000000000
A35: IT0004787989 | B35: BOTs 6m | C35: 31-Jan-2012 | D35: 31-Jul-2012 | E35: - | F35: EUR | G35: 8000000000
A36: IT0004750821 | B36: BOTs 12m | C36: 15-Aug-2011 | D36: 15-Aug-2012 | E36: - | F36: EUR | G36: 7150000000
A37: IT0004816911 | B37: BOTs 3m | C37: 15-May-2012 | D37: 15-Aug-2012 | E37: - | F37: EUR | G37: 3000000000
A38: IT0004794449 | B38: BOTs 6m | C38: 29-Feb-2012 | D38: 31-Aug-2012 | E38: - | F38: EUR | G38: 9012500000
A39: IT0004755390 | B39: BOTs 12m | C39: 15-Sep-2011 | D39: 14-Sep-2012 | E39: - | F39: EUR | G39: 8250000000
A40: IT0004803265 | B40: BOTs 6m | C40: 30-Mar-2012 | D40: 28-Sep-2012 | E40: - | F40: EUR | G40: 8503500000
A41: IT0004765613 | B41: BOTs 12m | C41: 14-Oct-2011 | D41: 15-Oct-2012 | E41: - | F41: EUR | G41: 7700000000
A42: IT0004810674 | B42: BOTs 6m | C42: 30-Apr-2012 | D42: 31-Oct-2012 | E42: - | F42: EUR | G42: 9350000000
A43: IT0004776149 | B43: BOTs 12m | C43: 15-Nov-2011 | D43: 15-Nov-2012 | E43: - | F43: EUR | G43: 5500000000
A44: IT0004815822 | B44: BOTs 6m | C44: 31-May-2012 | D44: 30-Nov-2012 | E44: - | F44: EUR | G44: 8500000000
A45: IT0004781958 | B45: BOTs 12m | C45: 15-Dec-2011 | D45: 14-Dec-2012 | E45: - | F45: EUR | G45: 7700000000
A46: IT0004801558 | B46: BOTs flexible 1° tr. | C46: 29-Feb-2012 | D46: 20-Dec-2012 | E46: - | F46: EUR | G46: 3500000000
A47: IT0004793037 | B47: BOTs flexible 1° tr. | C47: 31-Jan-2012 | D47: 27-Dec-2012 | E47: - | F47: EUR | G47: 3000000000
A48: IT0004822042 | B48: BOTs 6m | C48: 29-Jun-2012 | D48: 31-Dec-2012 | E48: - | F48: EUR | G48: 10350000000
E49: Total BOTs | G49: 218309000000
A50: IT0003190912 (1) | B50: BTPs | C50: 1-Aug-2001 | D50: 1-Feb-2012 | E50: 5 | F50: EUR | G50: 25807727000 | H50: M
A51: IT0004467483 (2) | B51: BTPs | C51: 1-Mar-2009 | D51: 1-Mar-2012 | E51: 3 | F51: EUR | G51: 14871255000 | H51: M
A52: IT0004220627 (3) | B52: BTPs | C52: 15-Apr-2007 | D52: 15-Apr-2012 | E52: 4 | F52: EUR | G52: 15064504000 | H52: M
A53: IT0004508971 (4) | B53: BTPs | C53: 1-Jul-2009 | D53: 1-Jul-2012 | E53: 2.5 | F53: EUR | G53: 17054576000
A54: IT0004216351 | B54: BTPs€i | C54: 15-Mar-2007 | D54: 15-Sep-2012 | E54: 1.85 real coupon | F54: EUR | G54: 11743593167
A55: IT0004284334 | B55: BTPs | C55: 15-Oct-2007 | D55: 15-Oct-2012 | E55: 4.25 | F55: EUR | G55: 18373300000
A56: IT0004564636 (5) | B56: BTPs | C56: 15-Dec-2009 | D56: 15-Dec-2012 | E56: 2 | F56: EUR | G56: 18685939000
E57: Total BTPs | G57: 121600894167
A58: IT0003858856 (6) | B58: CCTs | C58: 1-Mar-2005 | D58: 1-Mar-2012 | E58: - | F58: EUR | G58: 12277339000 | H58: M
A59: IT0003993158 (7) | B59: CCTs | C59: 1-Nov-2005 | D59: 1-Nov-2012 | E59: 0.15 | F59: EUR | G59: 13475657000
E60: Total CCTs | G60: 25752996000
A61: IT0004572910 | B61: CTZs | C61: 29-Jan-2010 | D61: 29-Feb-2012 | E61: - | F61: EUR | G61: 10600000000 | H61: M
A62: IT0004605090 | B62: CTZs | C62: 30-Apr-2010 | D62: 30-Apr-2012 | E62: - | F62: EUR | G62: 12274000000 | H62: M
A63: IT0004634124 | B63: CTZs | C63: 31-Aug-2010 | D63: 31-Aug-2012 | E63: - | F63: EUR | G63: 11501000000
A64: IT0004662356 (8) | B64: CTZs | C64: 25-Nov-2010 | D64: 31-Dec-2012 | E64: - | F64: EUR | G64: 248288000
A65: IT0004662349 (9) | B65: CTZs | C65: 25-Nov-2010 | D65: 31-Dec-2012 | E65: - | F65: EUR | G65: 67264000
A66: IT0004674369 | B66: CTZs | C66: 3-Jan-2011 | D66: 31-Dec-2012 | E66: - | F66: EUR | G66: 11517658000
E67: Total CTZs | G67: 46208210000
A68: XS0141757921 | B68: EMTN | C68: 22-Jan-2002 | D68: 23-Jan-2012 | E68: floater | F68: EUR | G68: 400000000 | H68: M
A69: XS0154632011 | B69: EMTN | C69: 25-Sep-2002 | D69: 25-Sep-2012 | E69: 6.15 | F69: NOK | G69: 270000000
E70: Total EMTN | G70: 670000000
A71: IT0000367547 | B71: EUROBOND | C71: 5-Mar-1996 | D71: 5-Mar-2012 | E71: 6.88 | F71: USD | G71: 1138952164 | H71: M
A72: NL0000121648 | B72: EUROBOND | C72: 29-May-1997 | D72: 29-May-2012 | E72: 6.12 | F72: EUR | G72: 567225000 | H72: M
A73: IT0000367869 | B73: EUROBOND | C73: 20-Dec-1996 | D73: 20-Dec-2012 | E73: 6.52 | F73: USD | G73: 1219512195
E74: Total EUROBOND | G74: 2925689359
A75: XS0144129649 | B75: GLOBAL | C75: 1-Mar-2002 | D75: 15-Jun-2012 | E75: 5.62 | F75: USD | G75: 3412236016 | H75: M
A76: US465410BU10 | B76: GLOBAL | C76: 5-Oct-2009 | D76: 5-Oct-2012 | E76: 2.12 | F76: USD | G76: 1716939718 | L76: Matured as of 6/30
E77: Total GLOBAL | G77: =G75+G76 -> 5129175734 | I77: 2012 | J77: =G49+G57+G60+G67+G70+G74+G77 -> 420595965260 | K77: =J77/J$385 -> 0.2566461964 | L77: =SUMIF(H18:H77,"m",G18:G77) -> 204781238180
A78: (1) This security was retired via exchange offer | D78: 25/05/2010 for an amount of 621.13 mln. €; 11/02/2011 for an amount of 529.78 mln. €; 08/04/2011 for an amount of 836.86
B79: mln. €; 26/09/2011 for an amount of 507.88 mln. €;
A80: (2) This security was retired via exchange offer | D80: 21/07/2010 for an amount of 373.42 mln. €; 18/11/2010 for an amount of 356.44 mln. €; 11/02/2011 for an amount of 418.48
B81: mln. €; 08/04/2011 for an amount of 314.95 mln. €;
A82: (3) This security has been subject to buy back | D82: 12/09/2011 for an amount of 652.00 mln. € ; This security was retired via exchange offer | G82: 11/02/2011 for an amount of 229.26
B83: mln. €; 08/04/2011 for an amount of 440.58 mln. €; 12/12/2011 for an amount of 414.20 mln. €;
A84: (4) This security has been subject to buy back | D84: 15/12/2010 for an amount of 220.00 mln. € ; This security was retired via exchange offer | G84: 18/11/2010 for an amount of 51.00
A85: mln. €;
A86: (5) This security has been subject to buy back | D86: 10/12/2010 for an amount of 300.00 mln. € ; 10/12/2010 for an amount of 200.00 mln. € ;
B87: (6) This security has been subject to advance reimbursement | D87: 13/12/2007 for an amount of 697.00 mln. € ; This security was retired via exchange offer | G87: 21/07/2010 for an
D88: amount of 365.21 mln. €; 18/11/2010 for an amount of 575.66 mln. €; 11/02/2011 for an amount of 566.76 mln. €; 26/09/2011 for an amount of 108.61 mln. €;
A89: (7) This security was retired via exchange offer | D89: 14/05/2008 for an amount of 440.85 mln. €; 04/12/2008 for an amount of 773.53 mln. €; 01/07/2010 for an amount of 280.00
B90: mln. €; 21/07/2010 for an amount of 90.94 mln. €; 18/11/2010 for an amount of 436.52 mln. €;
A92: (8) Government issues to be assigned to Alitalia's bond and shareholders.
A93: (9) Government issues to be assigned to Alitalia's bond and shareholders.
A99: REDEMPTIONS IN 2013
A100: ( Update on 30-6-2012 )
A101: ISIN Code | B101: Security | C101: Issue date | D101: Redemption date | E101: Coupon/Spread | F101: Currency | G101: Outstanding Euro
A102: IT0004787971 | B102: BOTs 12m | C102: 16-Jan-2012 | D102: 14-Jan-2013 | E102: - | F102: EUR | G102: 8500000000
A103: IT0004794431 | B103: BOTs 12m | C103: 15-Feb-2012 | D103: 14-Feb-2013 | E103: - | F103: EUR | G103: 9152566000
A104: IT0004803273 | B104: BOTs 12m | C104: 15-Mar-2012 | D104: 14-Mar-2013 | E104: - | F104: EUR | G104: 8685000000
A105: IT0004810666 | B105: BOTs 12m | C105: 16-Apr-2012 | D105: 12-Apr-2013 | E105: - | F105: EUR | G105: 8800000000
A106: IT0004815814 | B106: BOTs 12m | C106: 15-May-2012 | D106: 14-May-2013 | E106: - | F106: EUR | G106: 7000000000
A107: IT0004822034 | B107: BOTs 12m | C107: 15-Jun-2012 | D107: 14-Jun-2013 | E107: - | F107: EUR | G107: 7475000000
E108: Total BOTs | G108: 49612566000
A109: IT0003357982 | B109: BTPs | C109: 1-Aug-2002 | D109: 1-Feb-2013 | E109: 4.75 | F109: EUR | G109: 21008500000
A110: IT0004365554 | B110: BTPs | C110: 15-Apr-2008 | D110: 15-Apr-2013 | E110: 4.25 | F110: EUR | G110: 16700000000
A111: IT0004612179 (1) | B111: BTPs | C111: 1-Jun-2010 | D111: 1-Jun-2013 | E111: 2 | F111: EUR | G111: 17166723000
A112: IT0003472336 (2) | B112: BTPs | C112: 1-Feb-2003 | D112: 1-Aug-2013 | E112: 4.25 | F112: EUR | G112: 24695917000
A113: IT0004653108 | B113: BTPs | C113: 1-Nov-2010 | D113: 1-Nov-2013 | E113: 2.25 | F113: EUR | G113: 17818547000
A114: IT0004448863 | B114: BTPs | C114: 15-Dec-2008 | D114: 15-Dec-2013 | E114: 3.75 | F114: EUR | G114: 20006210000
E115: Total BTPs | G115: 117395897000
A116: IT0004101447 (3) | B116: CCTs | C116: 1-Jul-2006 | D116: 1-Jul-2013 | E116: 0.15 | F116: EUR | G116: 14259551000
E117: Total CCTs | G117: 14259551000
A118: IT0004716327 | B118: CTZs | C118: 29-Apr-2011 | D118: 30-Apr-2013 | E118: - | F118: EUR | G118: 12441997000
A119: IT0004765183 | B119: CTZs | C119: 30-Sep-2011 | D119: 30-Sep-2013 | E119: - | F119: EUR | G119: 10600507000
E120: Total CTZs | G120: 23042504000
A121: XS0431307221 | B121: EMTN | C121: 29-May-2009 | D121: 29-Nov-2013 | E121: 3 | F121: EUR | G121: 300000000
E122: Total EMTN | G122: 300000000
A123: US465410BF43 | B123: GLOBAL | C123: 27-Feb-2003 | D123: 15-Jun-2013 | E123: 4.38 | F123: USD | G123: 1857872736
A124: US465410BW75 | B124: GLOBAL | C124: 16-Sep-2010 | D124: 16-Sep-2013 | E124: 2.12 | F124: USD | G124: 1556155100
E125: Total GLOBAL | G125: 3414027836 | I125: 2013 | J125: =G108+G115+G117+G120+G122+G125 -> 208024545836 | K125: =J125/J$385 -> 0.126935855
A126: (1) This security was retired via exchange offer | C126: 11/02/2011 for an amount of 452.10 mln. €;
A127: (2) This security was retired via exchange offer | C127: 24/10/2011 for an amount of 466.81 mln. €;
A128: (3) This security was retired via exchange offer | D128: 23/12/2008 for an amount of 770.77 mln. €; 01/07/2010 for an amount of 270.00 mln. €; 21/07/2010 for an amount of
A129: 476.16 mln. €;
A135: REDEMPTIONS IN 2014
A136: ( Update on 30-6-2012 )
A137: ISIN Code | B137: Security | C137: Issue date | D137: Redemption date | E137: Coupon/Spread | F137: Currency | G137: Outstanding Euro
A138: IT0004707995 | B138: BTPs | C138: 1-Apr-2011 | D138: 1-Apr-2014 | E138: 3 | F138: EUR | G138: 14797674000
A139: IT0004505076 | B139: BTPs | C139: 1-Jun-2009 | D139: 1-Jun-2014 | E139: 3.5 | F139: EUR | G139: 19421810000
A140: IT0004750409 | B140: BTPs | C140: 1-Jul-2011 | D140: 1-Jul-2014 | E140: 4.25 | F140: EUR | G140: 13890187000
A141: IT0003618383 | B141: BTPs | C141: 1-Feb-2004 | D141: 1-Aug-2014 | E141: 4.25 | F141: EUR | G141: 27249064000
A142: IT0003625909 | B142: BTPs€i | C142: 15-Sep-2003 | D142: 15-Sep-2014 | E142: 2.15 real coupon | F142: EUR | G142: 18100033000
A143: IT0004780380 | B143: BTPs | C143: 15-Nov-2011 | D143: 15-Nov-2014 | E143: 6 | F143: EUR | G143: 14495276000
E144: Total BTPs | G144: 107954044000
A145: IT0004224041 (1) | B145: CCTs | C145: 1-Mar-2007 | D145: 1-Mar-2014 | E145: 0.15 | F145: EUR | G145: 13434283000
A146: IT0004321813 (2) | B146: CCTs | C146: 1-Dec-2007 | D146: 1-Dec-2014 | E146: 0.15 | F146: EUR | G146: 12950711000
E147: Total CCTs | G147: 26384994000
A148: IT0004793045 | B148: CTZs | C148: 31-Jan-2012 | D148: 31-Jan-2014 | E148: - | F148: EUR | G148: 14491500000
A149: IT0004820251 | B149: CTZs | C149: 31-May-2012 | D149: 30-May-2014 | E149: - | F149: EUR | G149: 6491000000
E150: Total CTZs | G150: 20982500000
A151: XS0561883983 | B151: EMTN | C151: 22-Nov-2010 | D151: 22-Nov-2014 | E151: 2.85 | F151: EUR | G151: 125000000
E152: Total EMTN | G152: 125000000
A153: GB0004601430 | B153: EUROBOND | C153: 5-Apr-1989 | D153: 28-Apr-2014 | E153: 10.5 | F153: GBP | G153: 480595939
A154: XS0054324560 | B154: EUROBOND | C154: 15-Dec-1994 | D154: 15-Dec-2014 | E154: 5.5 | F154: JPY | G154: 801100000
E155: Total EUROBOND | G155: 1281695939
A156: IT0003621445 | B156: ISPA OBBL | C156: 6-Feb-2004 | D156: 31-Jul-2014 | E156: 4.5 | F156: EUR | G156: 1000000000
E157: Total ISPA OBBL | G157: 1000000000 | I157: 2014 | J157: =G144+G147+G150+G152+G155+G157 -> 157728233939 | K157: =J157/J$385 -> 0.09624522023
A158: (1) This security was retired via exchange offer | D158: 23/12/2008 for an amount of 826.08 mln. €; 01/07/2010 for an amount of 450.00 mln. €; 08/04/2011 for an amount of
A159: 486.56 mln. €;
A160: (2) This security was retired via exchange offer | D160: 27/10/2010 for an amount of 122.50 mln. €; 12/12/2011 for an amount of 200.64 mln. €;
A166: REDEMPTIONS IN 2015
A167: ( Update on 30-6-2012 )
A168: ISIN Code | B168: Security | C168: Issue date | D168: Redemption date | E168: Coupon/Spread | F168: Currency | G168: Outstanding Euro
A169: IT0003719918 | B169: BTPs | C169: 1-Aug-2004 | D169: 1-Feb-2015 | E169: 4.25 | F169: EUR | G169: 21350000000
A170: IT0004805070 | B170: BTPs | C170: 1-Mar-2012 | D170: 1-Mar-2015 | E170: 2.5 | F170: EUR | G170: 16008312000
A171: IT0004568272 | B171: BTPs | C171: 15-Jan-2010 | D171: 15-Apr-2015 | E171: 3 | F171: EUR | G171: 20404487000
A172: IT0004615917 | B172: BTPs | C172: 15-Jun-2010 | D172: 15-Jun-2015 | E172: 3 | F172: EUR | G172: 18642470000
A173: IT0003844534 | B173: BTPs | C173: 1-Feb-2005 | D173: 1-Aug-2015 | E173: 3.75 | F173: EUR | G173: 25808593000
A174: IT0004656275 | B174: BTPs | C174: 1-Nov-2010 | D174: 1-Nov-2015 | E174: 3 | F174: EUR | G174: 16695412000
E175: Total BTPs | G175: 118909274000
A176: IT0004404965 (1) | B176: CCTs | C176: 1-Sep-2008 | D176: 1-Sep-2015 | E176: 0.15 | F176: EUR | G176: 11994625000
E177: Total CCTs | G177: 11994625000
A178: IT0004620305 | B178: CCTeus | C178: 15-Jun-2010 | D178: 15-Dec-2015 | E178: 0.8 | F178: EUR | G178: 17999516000
E179: Total CCTeus | G179: 17999516000
A180: CH0020386485 | B180: EMTN | C180: 2-Feb-2005 | D180: 2-Mar-2015 | E180: 2.5 | F180: CHF | G180: 1270357919
A181: XS0505309574 | B181: EMTN | C181: 28-Apr-2010 | D181: 28-Apr-2015 | E181: floater | F181: GBP | G181: 344946533
A182: XS0170905003 | B182: EMTN | C182: 23-Jun-2003 | D182: 23-Jun-2015 | E182: 4.34 | F182: NOK | G182: 243135000
E183: Total EMTN | G183: 1858439452
A184: XS0057935214 | B184: EUROBOND | C184: 8-Jun-1995 | D184: 8-Jun-2015 | E184: 4.5 | F184: JPY | G184: 796533486
E185: Total EUROBOND | G185: 796533486
A186: US465410BN76 | B186: GLOBAL | C186: 21-Jan-2005 | D186: 21-Jan-2015 | E186: 4.5 | F186: USD | G186: 3042705910
A187: US465410BV92 | B187: GLOBAL | C187: 26-Jan-2010 | D187: 26-Jan-2015 | E187: 3.12 | F187: USD | G187: 1774761472
E188: Total GLOBAL | G188: 4817467382 | I188: 2015 | J188: =G175+G177+G179+G183+G185+G188 -> 156375855320 | K188: =J188/J$385 -> 0.0954200035
A189: (1) This security was retired via exchange offer | D189: 27/10/2010 for an amount of 405.64 mln. €; 24/10/2011 for an amount of 517.62 mln. €; 12/12/2011 for an amount of
A190: 137.97 mln. €;
A196: REDEMPTIONS IN 2016
A197: ( Update on 30-6-2012 )
A199: ISIN Code | B199: Security | C199: Issue date | D199: Redemption date | E199: Coupon/Spread | F199: Currency | G199: Outstanding Euro
A200: IT0004712748 | B200: BTPs | C200: 15-Apr-2011 | D200: 15-Apr-2016 | E200: 3.75 | F200: EUR | G200: 16235079000
A201: IT0004019581 | B201: BTPs | C201: 1-Feb-2006 | D201: 1-Aug-2016 | E201: 3.75 | F201: EUR | G201: 26738234000
A202: IT0004761950 | B202: BTPs | C202: 15-Sep-2011 | D202: 15-Sep-2016 | E202: 4.75 | F202: EUR | G202: 15014574000
A203: IT0004682107 | B203: BTPs€i | C203: 15-Sep-2010 | D203: 15-Sep-2016 | E203: 2.10 real coupon | F203: EUR | G203: 8055125981
E204: Total BTPs | G204: 66043012981
A205: IT0004806896 (1) | B205: BTPs Italia | C205: 26-Mar-2012 | D205: 26-Mar-2016 | E205: 2.45 real coupon | F205: EUR | G205: 7386572043
A206: IT0004821424 (2) | B206: BTPs Italia | C206: 11-Jun-2012 | D206: 11-Jun-2016 | E206: 3.55 real coupon | F206: EUR | G206: 1743726867
E207: Total BTPs Italia | G207: 9130298910
A208: IT0004518715 (3) | B208: CCTs | C208: 1-Jul-2009 | D208: 1-Jul-2016 | E208: 0.15 | F208: EUR | G208: 14546493000
E209: Total CCTs | G209: 14546493000
A210: XS0133144898 | B210: EMTN | C210: 25-Jul-2001 | D210: 25-Jul-2016 | E210: 5.75 | F210: EUR | G210: 3000000000
E211: Total EMTN | G211: 3000000000
A212: XS0070731194 | B212: EUROBOND | C212: 14-Nov-1996 | D212: 14-Nov-2016 | E212: 3.7 | F212: JPY | G212: 719424460
E213: Total EUROBOND | G213: 719424460
A214: US465410BQ08 | B214: GLOBAL | C214: 25-Jan-2006 | D214: 25-Jan-2016 | E214: 4.75 | F214: USD | G214: 1656314700
A215: US465410BR80 | B215: GLOBAL | C215: 20-Sep-2006 | D215: 20-Sep-2016 | E215: 5.25 | F215: USD | G215: 2362204724
E216: Total GLOBAL | G216: 4018519424 | I216: 2016 | J216: =G204+G207+G209+G211+G213+G216 -> 97457748775 | K216: =J216/J$385 -> 0.05946837963
A218: (1) The entire outstanding is here indicated with the isin code IT0004806896, but actually, at the current day, 3,297.48 mln. € have the isin code IT0004806888 that
A219: characterizes the notes with no fidelity premium.
A220: (2) The entire outstanding is here indicated with the isin code IT0004821424, but actually, at the current day, 538.99 mln. € have the isin code IT0004821432 that
A221: characterizes the notes with no fidelity premium.
A222: (3) This security has been subject to buy back | B222: 12/09/2011 for an amount of 301.00 mln. € ; This security was retired via exchange offer | C222: 27/10/2010 for an amount of 71.86
A223: mln. €; 08/04/2011 for an amount of 651.53 mln. €; 24/10/2011 for an amount of 230.48 mln. €;
A229: REDEMPTIONS IN 2017
A230: ( Update on 30-6-2012 )
A231: ISIN Code | B231: Security | C231: Issue date | D231: Redemption date | E231: Coupon/Spread | F231: Currency | G231: Outstanding Euro
A232: IT0004164775 | B232: BTPs | C232: 1-Aug-2006 | D232: 1-Feb-2017 | E232: 4 | F232: EUR | G232: 25598455000
A233: IT0004793474 | B233: BTPs | C233: 1-Feb-2012 | D233: 1-May-2017 | E233: 4.75 | F233: EUR | G233: 12489980000
A234: IT0004820426 | B234: BTPs | C234: 1-Jun-2012 | D234: 1-Jun-2017 | E234: 4.75 | F234: EUR | G234: 4441288000
A235: IT0003242747 | B235: BTPs | C235: 1-Feb-2002 | D235: 1-Aug-2017 | E235: 5.25 | F235: EUR | G235: 23299500000
A236: IT0004085210 (1) | B236: BTPs€i | C236: 15-Mar-2006 | D236: 15-Sep-2017 | E236: 2.10 real coupon | F236: EUR | G236: 16509359613
... 134 more rows

Sheet ISAT Unemployment
A1: =DotStatQuery(B1) ->  | B1: <?xml version="1.0"?><WebTableParameter xmlns:xsi="http://www.w3.org/2001/XMLSchema-instance" xmlns:xsd="http://www.w3.org/2001/XMLSchema" xmlns=""><DataTable Code="DCCV_TAXDISOCCUDE"><Name LocaleIsoCode="en">Unemployment rate - seasonally adjusted data</Name><Dimension Code="ITTER107" CommonCode="ITTER107" Display="labels"><Name LocaleIsoCode="en">Territory</Name><Member Code="IT"><Name LocaleIsoCode="en">Italy</Name><ChildMember Code="ITCD"><Name LocaleIsoCode="en">Nord</Name></ChildMember><ChildMember Code="ITE"><Name LocaleIsoCode="en">Centro (I)</Name></ChildMember><ChildMember Code="ITF"><Name LocaleIsoCode="en">Sud</Name></ChildMember></Member></Dimension><Dimension Code="TIPO_DATO3" CommonCode="TIPO_DATO3" Display="labels"><Name LocaleIsoCode="en">Data type</Name><Member Code="06"><Name LocaleIsoCode="en">unemployment rate</Name></Member></Dimension><Dimension Code="MISURA1" CommonCode="MISURA1" Display="labels"><Name LocaleIsoCode="en">Measure</Name><Member Code="1"><Name LocaleIsoCode="en">percentage values</Name></Member></Dimension><Dimension Code="SEXISTAT1" CommonCode="SEXISTAT1" Display="labels"><Name LocaleIsoCode="en">Gender</Name><Member Code="1"><Name LocaleIsoCode="en">males</Name></Member><Member Code="2"><Name LocaleIsoCode="en">females</Name></Member><Member Code="9"><Name LocaleIsoCode="en">total</Name></Member></Dimension><Dimension Code="CLASETA28" CommonCode="CLASETA28" Display="labels"><Name LocaleIsoCode="en">Age class</Name><Member Code="28"><Name LocaleIsoCode="en">15 years and over</Name></Member><Member Code="04"><Name LocaleIsoCode="en">15-24 years</Name></Member></Dimension><Dimension Code="T_BIS" CommonCode="T_BIS" Display="labels"><Name LocaleIsoCode="en">Edition</Name><Member Code="2012M4G2"><Name LocaleIsoCode="en">02-Apr-2012</Name></Member><Member Code="2012M6G1" IsDisplayed="true"><Name LocaleIsoCode="en">01-Jun-2012</Name></Member></Dimension><Dimension Code="TIME" CommonCode="TIME" Display="labels"><Name LocaleIsoCode="en">Time and frequency</Name><Member Code="1992"><Name LocaleIsoCode="en">1992</Name><ChildMember Code="1992Q4"><Name LocaleIsoCode="en">Q4-1992</Name></ChildMember></Member><Member Code="1993"><Name LocaleIsoCode="en">1993</Name><ChildMember Code="1993Q1"><Name LocaleIsoCode="en">Q1-1993</Name></ChildMember><ChildMember Code="1993Q2"><Name LocaleIsoCode="en">Q2-1993</Name></ChildMember><ChildMember Code="1993Q3"><Name LocaleIsoCode="en">Q3-1993</Name></ChildMember><ChildMember Code="1993Q4"><Name LocaleIsoCode="en">Q4-1993</Name></ChildMember></Member><Member Code="1994"><Name LocaleIsoCode="en">1994</Name><ChildMember Code="1994Q1"><Name LocaleIsoCode="en">Q1-1994</Name></ChildMember><ChildMember Code="1994Q2"><Name LocaleIsoCode="en">Q2-1994</Name></ChildMember><ChildMember Code="1994Q3"><Name LocaleIsoCode="en">Q3-1994</Name></ChildMember><ChildMember Code="1994Q4"><Name LocaleIsoCode="en">Q4-1994</Name></ChildMember></Member><Member Code="1995"><Name LocaleIsoCode="en">1995</Name><ChildMember Code="1995Q1"><Name LocaleIsoCode="en">Q1-1995</Name></ChildMember><ChildMember Code="1995Q2"><Name LocaleIsoCode="en">Q2-1995</Name></ChildMember><ChildMember Code="1995Q3"><Name LocaleIsoCode="en">Q3-1995</Name></ChildMember><ChildMember Code="1995Q4"><Name LocaleIsoCode="en">Q4-1995</Name></ChildMember></Member><Member Code="1996"><Name LocaleIsoCode="en">1996</Name><ChildMember Code="1996Q1"><Name LocaleIsoCode="en">Q1-1996</Name></ChildMember><ChildMember Code="1996Q2"><Name LocaleIsoCode="en">Q2-1996</Name></ChildMember><ChildMember Code="1996Q3"><Name LocaleIsoCode="en">Q3-1996</Name></ChildMember><ChildMember Code="1996Q4"><Name LocaleIsoCode="en">Q4-1996</Name></ChildMember></Member><Member Code="1997"><Name LocaleIsoCode="en">1997</Name><ChildMember Code="1997Q1"><Name LocaleIsoCode="en">Q1-1997</Name></ChildMember><ChildMember Code="1997Q2"><Name LocaleIsoCode="en">Q2-1997</Name></ChildMember><ChildMember Code="1997Q3"><Name LocaleIsoCode="en">Q3-1997</Name></ChildMember><ChildMember Code="1997Q4"><Name LocaleIsoCode="en">Q4-1997</Name></ChildMember></Member><Member Code="1998"><Name LocaleIsoCode="en">1998</Name><ChildMember Code="1998Q1"><Name LocaleIsoCode="en">Q1-1998</Name></ChildMember><ChildMember Code="1998Q2"><Name LocaleIsoCode="en">Q2-1998</Name></ChildMember><ChildMember Code="1998Q3"><Name LocaleIsoCode="en">Q3-1998</Name></ChildMember><ChildMember Code="1998Q4"><Name LocaleIsoCode="en">Q4-1998</Name></ChildMember></Member><Member Code="1999"><Name LocaleIsoCode="en">1999</Name><ChildMember Code="1999Q1"><Name LocaleIsoCode="en">Q1-1999</Name></ChildMember><ChildMember Code="1999Q2"><Name LocaleIsoCode="en">Q2-1999</Name></ChildMember><ChildMember Code="1999Q3"><Name LocaleIsoCode="en">Q3-1999</Name></ChildMember><ChildMember Code="1999Q4"><Name LocaleIsoCode="en">Q4-1999</Name></ChildMember></Member><Member Code="2000"><Name LocaleIsoCode="en">2000</Name><ChildMember Code="2000Q1"><Name LocaleIsoCode="en">Q1-2000</Name></ChildMember><ChildMember Code="2000Q2"><Name LocaleIsoCode="en">Q2-2000</Name></ChildMember><ChildMember Code="2000Q3"><Name LocaleIsoCode="en">Q3-2000</Name></ChildMember><ChildMember Code="2000Q4"><Name LocaleIsoCode="en">Q4-2000</Name></ChildMember></Member><Member Code="2001"><Name LocaleIsoCode="en">2001</Name><ChildMember Code="2001Q1"><Name LocaleIsoCode="en">Q1-2001</Name></ChildMember><ChildMember Code="2001Q2"><Name LocaleIsoCode="en">Q2-2001</Name></ChildMember><ChildMember Code="2001Q3"><Name LocaleIsoCode="en">Q3-2001</Name></ChildMember><ChildMember Code="2001Q4"><Name LocaleIsoCode="en">Q4-2001</Name></ChildMember></Member><Member Code="2002"><Name LocaleIsoCode="en">2002</Name><ChildMember Code="2002Q1"><Name LocaleIsoCode="en">Q1-2002</Name></ChildMember><ChildMember Code="2002Q2"><Name LocaleIsoCode="en">Q2-2002</Name></ChildMember><ChildMember Code="2002Q3"><Name LocaleIsoCode="en">Q3-2002</Name></ChildMember><ChildMember Code="2002Q4"><Name LocaleIsoCode="en">Q4-2002</Name></ChildMember></Member><Member Code="2003"><Name LocaleIsoCode="en">2003</Name><ChildMember Code="2003Q1"><Name LocaleIsoCode="en">Q1-2003</Name></ChildMember><ChildMember Code="2003Q2"><Name LocaleIsoCode="en">Q2-2003</Name></ChildMember><ChildMember Code="2003Q3"><Name LocaleIsoCode="en">Q3-2003</Name></ChildMember><ChildMember Code="2003Q4"><Name LocaleIsoCode="en">Q4-2003</Name></ChildMember></Member><Member Code="2004"><Name LocaleIsoCode="en">2004</Name><ChildMember Code="2004Q1"><Name LocaleIsoCode="en">Q1-2004</Name></ChildMember><ChildMember Code="2004Q2"><Name LocaleIsoCode="en">Q2-2004</Name></ChildMember><ChildMember Code="2004Q3"><Name LocaleIsoCode="en">Q3-2004</Name></ChildMember><ChildMember Code="2004Q4"><Name LocaleIsoCode="en">Q4-2004</Name></ChildMember></Member><Member Code="2005"><Name LocaleIsoCode="en">2005</Name><ChildMember Code="2005Q1"><Name LocaleIsoCode="en">Q1-2005</Name></ChildMember><ChildMember Code="2005Q2"><Name LocaleIsoCode="en">Q2-2005</Name></ChildMember><ChildMember Code="2005Q3"><Name LocaleIsoCode="en">Q3-2005</Name></ChildMember><ChildMember Code="2005Q4"><Name LocaleIsoCode="en">Q4-2005</Name></ChildMember></Member><Member Code="2006"><Name LocaleIsoCode="en">2006</Name><ChildMember Code="2006Q1"><Name LocaleIsoCode="en">Q1-2006</Name></ChildMember><ChildMember Code="2006Q2"><Name LocaleIsoCode="en">Q2-2006</Name></ChildMember><ChildMember Code="2006Q3"><Name LocaleIsoCode="en">Q3-2006</Name></ChildMember><ChildMember Code="2006Q4"><Name LocaleIsoCode="en">Q4-2006</Name></ChildMember></Member><Member Code="2007"><Name LocaleIsoCode="en">2007</Name><ChildMember Code="2007Q1"><Name LocaleIsoCode="en">Q1-2007</Name></ChildMember><ChildMember Code="2007Q2"><Name LocaleIsoCode="en">Q2-2007</Name></ChildMember><ChildMember Code="2007Q3"><Name LocaleIsoCode="en">Q3-2007</Name></ChildMember><ChildMember Code="2007Q4"><Name LocaleIsoCode="en">Q4-2007</Name></ChildMember></Member><Member Code="2008"><Name LocaleIsoCode="en">2008</Name><ChildMember Code="2008Q1"><Name LocaleIsoCode="en">Q1-2008</Name></ChildMember><ChildMember Code="2008Q2"><Name LocaleIsoCode="en">Q2-2008</Name></ChildMember><ChildMember Code="2008Q3"><Name LocaleIsoCode="en">Q3-2008</Name></ChildMember><ChildMember Code="2008Q4"><Name LocaleIsoCode="en">Q4-2008</Name></ChildMember></Member><Member Code="2009"><Name LocaleIsoCode="en">2009</Name><ChildMember Code="2009Q1"><Name LocaleIsoCode="en">Q1-2009</Name></ChildMember><ChildMember Code="2009Q2"><Name LocaleIsoCode="en">Q2-2009</Name></ChildMember><ChildMember Code="2009Q3"><Name LocaleIsoCode="en">Q3-2009</Name></ChildMember><ChildMember Code="2009Q4"><Name LocaleIsoCode="en">Q4-2009</Name></ChildMember></Member><Member Code="2010"><Name LocaleIsoCode="en">2010</Name><ChildMember Code="2010Q1"><Name LocaleIsoCode="en">Q1-2010</Name></ChildMember><ChildMember Code="2010Q2"><Name LocaleIsoCode="en">Q2-2010</Name></ChildMember><ChildMember Code="2010Q3"><Name LocaleIsoCode="en">Q3-2010</Name></ChildMember><ChildMember Code="2010Q4"><Name LocaleIsoCode="en">Q4-2010</Name></ChildMember></Member><Member Code="2011"><Name LocaleIsoCode="en">2011</Name><ChildMember Code="2011Q1"><Name LocaleIsoCode="en">Q1-2011</Name></ChildMember><ChildMember Code="2011Q2"><Name LocaleIsoCode="en">Q2-2011</Name></ChildMember><ChildMember Code="2011Q3"><Name LocaleIsoCode="en">Q3-2011</Name></ChildMember><ChildMember Code="2011Q4"><Name LocaleIsoCode="en">Q4-2011</Name></ChildMember></Member><Member Code="2012"><Name LocaleIsoCode="en">2012</Name><ChildMember Code="2012Q1"><Name LocaleIsoCode="en">Q1-2012</Name></ChildMember></Member></Dimension><WBOSInformations><TimeDimension WebTreeWasUsed="false"><StartCodes Annual="1992" Quarters="1992Q4" /></TimeDimension></WBOSInformations><Tabulation Axis="horizontal"><Dimension Code="TIME" CommonCode="TIME" /></Tabulation><Tabulation Axis="vertical"><Dimension Code="ITTER107" CommonCode="ITTER107" /><Dimension Code="SEXISTAT1" CommonCode="SEXISTAT1" /><Dimension Code="CLASETA28" CommonCode="CLASETA28" /></Tabulation><Tabulation Axis="page"><Dimension Code="TIPO_DATO3" CommonCode="TIPO_DATO3" /><Dimension Code="MISURA1" CommonCode="MISURA1" /><Dimension Code="T_BIS" CommonCode="T_BIS" /></Tabulation><Formatting><Labels LocaleIsoCode="en" /><Power>0</Power><Decimals>1</Decimals><SkipEmptyLines>true</SkipEmptyLines><FullyFillPage>false</FullyFillPage><SkipEmptyCols>false</SkipEmptyCols><SkipLineHierarchy>false</SkipLineHierarchy><SkipColHierarchy>false</SkipColHierarchy><Page>1</Page></Formatting></DataTable><Format><ShowEmptyAxes>true</ShowEmptyAxes><Page>1</Page><EnableSort>true</EnableSort><IncludeFlagColumn>true</IncludeFlagColumn><DoBarChart>false</DoBarChart><MaxBarChartLen>65</MaxBarChartLen></Format><Query><AbsoluteUri>http://dati.istat.it//View.aspx?QueryId=&amp;QueryType=Public&amp;Lang=en</AbsoluteUri></Query></WebTableParameter>
A2: Dataset: Unemployment rate - seasonally adjusted data
A3: Data type | F3: unemployment rate
A4: Measure | F4: percentage values
A5: Edition | F5: 01-Jun-2012
A6: Time and frequency | F6: 1992 | H6: 1992 | J6: 1993 | L6: 1993 | T6: 1994 | V6: 1994 | AD6: 1995 | AF6: 1995 | AN6: 1996 | AP6: 1996 | AX6: 1997 | AZ6: 1997 | BH6: 1998 | BJ6: 1998 | BR6: 1999 | BT6: 1999 | CB6: 2000 | CD6: 2000 | CL6: 2001 | CN6: 2001 | CV6: 2002 | CX6: 2002 | DF6: 2003 | DH6: 2003 | DP6: 2004 | DR6: 2004 | DZ6: 2005 | EB6: 2005 | EJ6: 2006 | EL6: 2006 | ET6: 2007 | EV6: 2007 | FD6: 2008 | FF6: 2008 | FN6: 2009 | FP6: 2009 | FX6: 2010 | FZ6: 2010 | GH6: 2011 | GJ6: 2011 | GR6: 2012 | GT6: 2012
H7: Q4-1992 | L7: Q1-1993 | N7: Q2-1993 | P7: Q3-1993 | R7: Q4-1993 | V7: Q1-1994 | X7: Q2-1994 | Z7: Q3-1994 | AB7: Q4-1994 | AF7: Q1-1995 | AH7: Q2-1995 | AJ7: Q3-1995 | AL7: Q4-1995 | AP7: Q1-1996 | AR7: Q2-1996 | AT7: Q3-1996 | AV7: Q4-1996 | AZ7: Q1-1997 | BB7: Q2-1997 | BD7: Q3-1997 | BF7: Q4-1997 | BJ7: Q1-1998 | BL7: Q2-1998 | BN7: Q3-1998 | BP7: Q4-1998 | BT7: Q1-1999 | BV7: Q2-1999 | BX7: Q3-1999 | BZ7: Q4-1999 | CD7: Q1-2000 | CF7: Q2-2000 | CH7: Q3-2000 | CJ7: Q4-2000 | CN7: Q1-2001 | CP7: Q2-2001 | CR7: Q3-2001 | CT7: Q4-2001 | CX7: Q1-2002 | CZ7: Q2-2002 | DB7: Q3-2002 | DD7: Q4-2002 | DH7: Q1-2003 | DJ7: Q2-2003 | DL7: Q3-2003 | DN7: Q4-2003 | DR7: Q1-2004 | DT7: Q2-2004 | DV7: Q3-2004 | DX7: Q4-2004 | EB7: Q1-2005 | ED7: Q2-2005 | EF7: Q3-2005 | EH7: Q4-2005 | EL7: Q1-2006 | EN7: Q2-2006 | EP7: Q3-2006 | ER7: Q4-2006 | EV7: Q1-2007 | EX7: Q2-2007 | EZ7: Q3-2007 | FB7: Q4-2007 | FF7: Q1-2008 | FH7: Q2-2008 | FJ7: Q3-2008 | FL7: Q4-2008 | FP7: Q1-2009 | FR7: Q2-2009 | FT7: Q3-2009 | FV7: Q4-2009 | FZ7: Q1-2010 | GB7: Q2-2010 | GD7: Q3-2010 | GF7: Q4-2010 | GJ7: Q1-2011 | GL7: Q2-2011 | GN7: Q3-2011 | GP7: Q4-2011 | GT7: Q1-2012
A8: Territory | C8: Gender | D8: Age class
A9: Italy | C9: males | D9: 15 years and over | G9: .. | I9: 6.340893 | K9: .. | M9: 6.476373 | O9: 7.078244 | Q9: 7.453451 | S9: 7.857754 | U9: .. | W9: 7.986933 | Y9: 8.131106 | AA9: 8.297433 | AC9: 8.449326 | AE9: .. | AG9: 8.75206 | AI9: 8.49446 | AK9: 8.547588 | AM9: 8.357346 | AO9: .. | AQ9: 8.30923 | AS9: 8.675426 | AU9: 8.566041 | AW9: 8.705061 | AY9: .. | BA9: 8.667475 | BC9: 8.713927 | BE9: 8.667812 | BG9: 8.540165 | BI9: .. | BK9: 8.54732 | BM9: 8.74913 | BO9: 8.675844 | BQ9: 8.71738 | BS9: .. | BU9: 8.582573 | BW9: 8.257682 | BY9: 8.294683 | CA9: 8.175592 | CC9: .. | CE9: 8.029399 | CG9: 7.72913 | CI9: 7.494567 | CK9: 7.180018 | CM9: .. | CO9: 7.144183 | CQ9: 6.896135 | CS9: 6.8217 | CU9: 6.710664 | CW9: .. | CY9: 6.560942 | DA9: 6.578005 | DC9: 6.532334 | DE9: 6.614883 | DG9: .. | DI9: 6.502599 | DK9: 6.536345 | DM9: 6.535434 | DO9: 6.330265 | DQ9: .. | DS9: 6.2431 | DU9: 6.510329 | DW9: 6.203167 | DY9: 6.326969 | EA9: .. | EC9: 6.434047 | EE9: 6.249568 | EG9: 6.089706 | EI9: 5.861254 | EK9: .. | EM9: 5.735227 | EO9: 5.459294 | EQ9: 5.308916 | ES9: 5.185585 | EU9: .. | EW9: 5.007293 | EY9: 4.757131 | FA9: 4.903678 | FC9: 4.945212 | FE9: .. | FG9: 5.082178 | FI9: 5.493657 | FK9: 5.609117 | FM9: 5.983868 | FO9: .. | FQ9: 6.289307 | FS9: 6.466081 | FU9: 7.163824 | FW9: 7.222932 | FY9: .. | GA9: 7.487328 | GC9: 7.750313 | GE9: 7.508981 | GG9: 7.433956 | GI9: .. | GK9: 7.245407 | GM9: 7.255159 | GO9: 7.621689 | GQ9: 8.28044 | GS9: .. | GU9: 8.90558
C10: females | G10: .. | I10: 12.930246 | K10: .. | M10: 13.343776 | O10: 13.89419 | Q10: 14.163103 | S10: 14.312652 | U10: .. | W10: 14.694103 | Y10: 14.628199 | AA10: 14.535912 | AC10: 15.134476 | AE10: .. | AG10: 15.419734 | AI10: 15.302661 | AK10: 15.669666 | AM10: 15.35041 | AO10: .. | AQ10: 15.295997 | AS10: 15.228795 | AU10: 15.210247 | AW10: 15.338517 | AY10: .. | BA10: 15.411116 | BC10: 15.275522 | BE10: 15.286278 | BG10: 15.622817 | BI10: .. | BK10: 15.426088 | BM10: 15.466917 | BO10: 15.489544 | BQ10: 15.36302 | BS10: .. | BU10: 15.229397 | BW10: 15.163276 | BY10: 14.666485 | CA10: 14.185747 | CC10: .. | CE10: 13.940938 | CG10: 13.811357 | CI10: 13.392608 | CK10: 12.993267 | CM10: .. | CO10: 12.621714 | CQ10: 12.108294 | CS10: 11.975188 | CU10: 11.761144 | CW10: .. | CY10: 11.384543 | DA10: 11.68661 | DC10: 11.251231 | DE10: 11.349698 | DG10: .. | DI10: 11.745213 | DK10: 11.287608 | DM10: 11.382517 | DO10: 10.981512 | DQ10: .. | DS10: 10.909894 | DU10: 10.358447 | DW10: 10.367568 | DY10: 10.201029 | EA10: .. | EC10: 10.025978 | EE10: 10.031541 | EG10: 9.981055 | EI10: 10.060917 | EK10: .. | EM10: 9.518861 | EO10: 8.952439 | EQ10: 8.528862 | ES10: 8.189322 | EU10: .. | EW10: 7.668746 | EY10: 7.795073 | FA10: 8.009156 | FC10: 8.200252 | FE10: .. | FG10: 8.418601 | FI10: 8.832278 | FK10: 8.62546 | FM10: 8.419399 | FO10: .. | FQ10: 8.889028 | FS10: 9.064305 | FU10: 9.347353 | FW10: 9.752613 | FY10: .. | GA10: 9.921419 | GC10: 9.751712 | GE10: 9.453944 | GG10: 9.437458 | GI10: .. | GK10: 8.965353 | GM10: 9.435255 | GO10: 9.908329 | GQ10: 10.32545 | GS10: .. | GU10: 11.105498
C11: total | G11: .. | I11: 8.816711 | K11: .. | M11: 9.067788 | O11: 9.639735 | Q11: 9.975244 | S11: 10.29002 | U11: .. | W11: 10.515598 | Y11: 10.591576 | AA11: 10.66215 | AC11: 10.983832 | AE11: .. | AG11: 11.288321 | AI11: 11.095548 | AK11: 11.275814 | AM11: 11.035297 | AO11: .. | AQ11: 10.991972 | AS11: 11.195587 | AU11: 11.126736 | AW11: 11.270186 | AY11: .. | BA11: 11.276803 | BC11: 11.254569 | BE11: 11.23576 | BG11: 11.294969 | BI11: .. | BK11: 11.224727 | BM11: 11.371667 | BO11: 11.347131 | BQ11: 11.332693 | BS11: .. | BU11: 11.207426 | BW11: 10.987355 | BY11: 10.812421 | CA11: 10.551199 | CC11: .. | CE11: 10.367564 | CG11: 10.146352 | CI11: 9.84603 | CK11: 9.501735 | CM11: .. | CO11: 9.34041 | CQ11: 8.990605 | CS11: 8.894564 | CU11: 8.74324 | CW11: .. | CY11: 8.499879 | DA11: 8.637219 | DC11: 8.43434 | DE11: 8.520463 | DG11: .. | DI11: 8.617281 | DK11: 8.447021 | DM11: 8.49727 | DO11: 8.21317 | DQ11: .. | DS11: 8.130397 | DU11: 8.057875 | DW11: 7.878272 | DY11: 7.885821 | EA11: .. | EC11: 7.875964 | EE11: 7.766293 | EG11: 7.649589 | EI11: 7.549588 | EK11: .. | EM11: 7.257648 | EO11: 6.864048 | EQ11: 6.603108 | ES11: 6.394556 | EU11: .. | EW11: 6.07531 | EY11: 5.977353 | FA11: 6.155481 | FC11: 6.260533 | FE11: .. | FG11: 6.439132 | FI11: 6.851652 | FK11: 6.836436 | FM11: 6.975222 | FO11: .. | FQ11: 7.348247 | FS11: 7.526356 | FU11: 8.053876 | FW11: 8.255179 | FY11: .. | GA11: 8.480031 | GC11: 8.568697 | GE11: 8.30734 | GG11: 8.257279 | GI11: .. | GK11: 7.952213 | GM11: 8.153947 | GO11: 8.565723 | GQ11: 9.127698 | GS11: .. | GU11: 9.821251
D12: 15-24 years | G12: .. | I12: 24.737671 | K12: .. | M12: 25.294106 | O12: 26.870469 | Q12: 27.726151 | S12: 28.562832 | U12: .. | W12: 28.558722 | Y12: 28.519973 | AA12: 28.727012 | AC12: 29.35396 | AE12: .. | AG12: 29.772279 | AI12: 29.76109 | AK12: 30.090657 | AM12: 29.487742 | AO12: .. | AQ12: 29.496079 | AS12: 30.324809 | AU12: 29.791156 | AW12: 30.054564 | AY12: .. | BA12: 29.932527 | BC12: 29.872766 | BE12: 29.644795 | BG12: 29.187457 | BI12: .. | BK12: 29.088126 | BM12: 29.194584 | BO12: 29.037228 | BQ12: 29.495499 | BS12: .. | BU12: 29.015567 | BW12: 27.920702 | BY12: 27.529515 | CA12: 27.399129 | CC12: .. | CE12: 27.008321 | CG12: 26.614455 | CI12: 25.978329 | CK12: 24.988907 | CM12: .. | CO12: 23.91012 | CQ12: 23.064855 | CS12: 22.868707 | CU12: 22.599899 | CW12: .. | CY12: 22.320703 | DA12: 21.989983 | DC12: 22.088931 | DE12: 22.382383 | DG12: .. | DI12: 23.236441 | DK12: 24.491606 | DM12: 23.657991 | DO12: 23.087998 | DQ12: .. | DS12: 22.999628 | DU12: 24.145812 | DW12: 23.103224 | DY12: 23.747653 | EA12: .. | EC12: 24.266279 | EE12: 23.766184 | EG12: 24.234352 | EI12: 23.170726 | EK12: .. | EM12: 23.058194 | EO12: 21.743217 | EQ12: 20.524738 | ES12: 20.435592 | EU12: .. | EW12: 19.936454 | EY12: 19.708482 | FA12: 20.216238 | FC12: 21.072856 | FE12: .. | FG12: 20.70172 | FI12: 21.096839 | FK12: 22.081849 | FM12: 22.897757 | FO12: .. | FQ12: 24.059896 | FS12: 24.526237 | FU12: 26.091217 | FW12: 26.850345 | FY12: .. | GA12: 27.2445 | GC12: 28.115091 | GE12: 27.435177 | GG12: 28.251044 | GI12: .. | GK12: 28.371106 | GM12: 27.405559 | GO12: 29.206664 | GQ12: 31.752753 | GS12: .. | GU12: 34.485649
A13: Italy | B13: Nord | D13: 15 years and over | G13: .. | I13: 6.010417 | K13: .. | M13: 6.136215 | O13: 6.663797 | Q13: 6.85834 | S13: 7.03701 | U13: .. | W13: 7.347149 | Y13: 7.207703 | AA13: 7.309691 | AC13: 7.367902 | AE13: .. | AG13: 7.377688 | AI13: 7.14292 | AK13: 7.067601 | AM13: 6.94225 | AO13: .. | AQ13: 6.785147 | AS13: 6.886066 | AU13: 7.00432 | AW13: 7.035672 | AY13: .. | BA13: 7.076814 | BC13: 6.880701 | BE13: 6.688975 | BG13: 6.62459 | BI13: .. | BK13: 6.564122 | BM13: 6.593059 | BO13: 6.48557 | BQ13: 6.305341 | BS13: .. | BU13: 6.076667 | BW13: 5.886548 | BY13: 5.686454 | CA13: 5.570319 | CC13: .. | CE13: 5.342332 | CG13: 5.071265 | CI13: 4.834133 | CK13: 4.564538 | CM13: .. | CO13: 4.462754 | CQ13: 4.33378 | CS13: 4.16047 | CU13: 4.101017 | CW13: .. | CY13: 4.099543 | DA13: 4.246944 | DC13: 4.104221 | DE13: 4.121283 | DG13: .. | DI13: 3.954974 | DK13: 3.864006 | DM13: 4.221544 | DO13: 4.093246 | DQ13: .. | DS13: 4.226483 | DU13: 4.297902 | DW13: 4.192803 | DY13: 4.215845 | EA13: .. | EC13: 4.223936 | EE13: 4.211324 | EG13: 4.139935 | EI13: 4.216241 | EK13: .. | EM13: 4.050692 | EO13: 3.805425 | EQ13: 3.746621 | ES13: 3.61626 | EU13: .. | EW13: 3.524427 | EY13: 3.439208 | FA13: 3.622694 | FC13: 3.574218 | FE13: .. | FG13: 3.624466 | FI13: 3.920338 | FK13: 3.85642 | FM13: 4.207237 | FO13: .. | FQ13: 4.708284 | FS13: 5.08078 | FU13: 5.650363 | FW13: 5.81092 | FY13: .. | GA13: 5.99415 | GC13: 6.090486 | GE13: 5.795734 | GG13: 5.778019 | GI13: .. | GK13: 5.482349 | GM13: 5.562308 | GO13: 5.883671 | GQ13: 6.229451 | GS13: .. | GU13: 6.748618
B14: Centro (I) | G14: .. | I14: 7.236241 | K14: .. | M14: 7.552178 | O14: 8.390703 | Q14: 8.545078 | S14: 8.848568 | U14: .. | W14: 9.012621 | Y14: 8.92503 | AA14: 8.998117 | AC14: 9.616679 | AE14: .. | AG14: 9.829789 | AI14: 9.652744 | AK14: 10.022611 | AM14: 9.577039 | AO14: .. | AQ14: 9.587207 | AS14: 9.813938 | AU14: 9.528629 | AW14: 9.705912 | AY14: .. | BA14: 9.691777 | BC14: 9.699578 | BE14: 9.437375 | BG14: 9.477306 | BI14: .. | BK14: 9.260086 | BM14: 9.086094 | BO14: 9.511746 | BQ14: 9.240951 | BS14: .. | BU14: 9.061751 | BW14: 9.308573 | BY14: 8.723112 | CA14: 8.736359 | CC14: .. | CE14: 8.481094 | CG14: 8.19587 | CI14: 7.672438 | CK14: 7.469572 | CM14: .. | CO14: 7.464427 | CQ14: 7.124556 | CS14: 7.233106 | CU14: 6.906393 | CW14: .. | CY14: 6.552482 | DA14: 6.508493 | DC14: 6.287028 | DE14: 6.50686 | DG14: .. | DI14: 6.793378 | DK14: 7.057424 | DM14: 7.019623 | DO14: 6.921964 | DQ14: .. | DS14: 6.886192 | DU14: 6.357742 | DW14: 6.393303 | DY14: 6.291543 | EA14: .. | EC14: 6.27804 | EE14: 6.436743 | EG14: 6.337059 | EI14: 6.20362 | EK14: .. | EM14: 6.300034 | EO14: 6.057268 | EQ14: 5.847328 | ES14: 5.795311 | EU14: .. | EW14: 5.350504 | EY14: 5.081546 | FA14: 5.228188 | FC14: 5.59416 | FE14: .. | FG14: 5.626289 | FI14: 6.45425 | FK14: 6.469717 | FM14: 6.392766 | FO14: .. | FQ14: 6.889307 | FS14: 6.994158 | FU14: 7.345158 | FW14: 7.664684 | FY14: .. | GA14: 7.852926 | GC14: 7.642204 | GE14: 7.465363 | GG14: 7.319516 | GI14: .. | GK14: 7.085912 | GM14: 7.285249 | GO14: 7.720239 | GQ14: 8.360068 | GS14: .. | GU14: 8.854961
B15: Sud | G15: .. | I15: 13.983218 | K15: .. | M15: 14.399763 | O15: 14.853832 | Q15: 15.522908 | S15: 16.050464 | U15: .. | W15: 16.188602 | Y15: 16.676677 | AA15: 16.723075 | AC15: 17.266164 | AE15: .. | AG15: 18.06751 | AI15: 17.999234 | AK15: 18.393627 | AM15: 18.178454 | AO15: .. | AQ15: 18.252303 | AS15: 18.602782 | AU15: 18.409785 | AW15: 18.659626 | AY15: .. | BA15: 18.630124 | BC15: 18.845872 | BE15: 19.197215 | BG15: 19.430018 | BI15: .. | BK15: 19.386666 | BM15: 19.82209 | BO15: 19.639906 | BQ15: 20.036678 | BS15: .. | BU15: 20.131984 | BW15: 19.651278 | BY15: 19.768103 | CA15: 19.151289 | CC15: .. | CE15: 19.095139 | CG15: 18.96429 | CI15: 18.730662 | CK15: 18.174912 | CM15: .. | CO15: 17.846619 | CQ15: 17.194928 | CS15: 17.072253 | CU15: 16.90603 | CW15: .. | CY15: 16.355605 | DA15: 16.556454 | DC15: 16.27663 | DE15: 16.43484 | DG15: .. | DI15: 16.848065 | DK15: 16.357315 | DM15: 16.053085 | DO15: 15.450819 | DQ15: .. | DS15: 15.058664 | DU15: 15.07466 | DW15: 14.672744 | DY15: 14.758674 | EA15: .. | EC15: 14.755764 | EE15: 14.356909 | EG15: 14.196639 | EI15: 13.842 | EK15: .. | EM15: 13.138668 | EO15: 12.424017 | EQ15: 11.85676 | ES15: 11.452179 | EU15: .. | EW15: 10.871732 | EY15: 10.877842 | FA15: 11.062602 | FC15: 11.257963 | FE15: .. | FG15: 11.777038 | FI15: 12.07104 | FK15: 12.173971 | FM15: 12.164634 | FO15: .. | FQ15: 12.252619 | FS15: 12.204092 | FU15: 12.768553 | FW15: 13.004266 | FY15: .. | GA15: 13.3274 | GC15: 13.601508 | GE15: 13.351592 | GG15: 13.293421 | GI15: .. | GK15: 12.951356 | GM15: 13.324729 | GO15: 13.883996 | GQ15: 14.746634 | GS15: .. | GU15: 15.838601
A16: data extracted on 07 Jul 2012 09:39 UTC (GMT) from I.Stat
B19: Year | C19: Annual Unemployment Rate
B21: 1993 | C21: =AVERAGE(M11:S11) -> 9.74319675
B22: 1994 | C22: =AVERAGE(W11:AC11) -> 10.688289
B23: 1995 | C23: =AVERAGE(AG11:AM11) -> 11.173745
B24: 1996 | C24: =AVERAGE(AQ11:AW11) -> 11.14612025
B25: 1997 | C25: =AVERAGE(BA11:BG11) -> 11.26552525
B26: 1998 | C26: =AVERAGE(BK11:BQ11) -> 11.3190545
B27: 1999 | C27: =AVERAGE(BU11:CA11) -> 10.88960025
B28: 2000 | C28: =AVERAGE(CE11:CK11) -> 9.96542025
B29: 2001 | C29: =AVERAGE(CO11:CU11) -> 8.99220475
B30: 2002 | C30: =AVERAGE(CY11:DE11) -> 8.52297525
B31: 2003 | C31: =AVERAGE(DI11:DO11) -> 8.4436855
B32: 2004 | C32: =AVERAGE(DA11:DY11) -> 8.301739
B33: 2005 | C33: =AVERAGE(EC11:EI11) -> 7.7103585
B34: 2006 | C34: =AVERAGE(EM11:ES11) -> 6.77984
B35: 2007 | C35: =AVERAGE(EW11:FC11) -> 6.11716925
B36: 2008 | C36: =AVERAGE(FG11:FM11) -> 6.7756105
B37: 2009 | C37: =AVERAGE(FQ11:FW11) -> 7.7959145
B38: 2010 | C38: =AVERAGE(GA11:GG11) -> 8.40333675
B39: 2011 | C39: =AVERAGE(GK11:GQ11) -> 8.44989525
B41: Standard Deviation | C41: =STDEV(C21:C39) -> 1.676886422
A43: SUMMARY OUTPUT | C43: =LINEST(C22:C39,C21:C38,1,1) -> 0.9319009078 | D43: 0.5487361316
C44: 0.0903316077 | D44: 0.8368986186
A45: Regression Statistics | C45: 0.8693120116 | D45: 0.6400076634
A46: Multiple R | B46: 0.9323690319 | C46: 106.4290021 | D46: 16
A47: R Square | B47: 0.8693120116 | C47: 43.59436323 | D47: 6.553756947
A48: Adjusted R Square | B48: 0.8611440124
A49: Standard Error | B49: 0.6400076634
A50: Observations | B50: 18
A52: ANOVA
B53: df | C53: SS | D53: MS | E53: F | F53: Significance F
A54: Regression | B54: 1 | C54: 43.59436323 | D54: 43.59436323 | E54: 106.4290021 | F54: 1.77759779e-08
A55: Residual | B55: 16 | C55: 6.553756947 | D55: 0.4096098092
A56: Total | B56: 17 | C56: 50.14812018
B58: Coefficients | C58: Standard Error | D58: t Stat | E58: P-value | F58: Lower 95% | G58: Upper 95% | H58: Lower 95.0% | I58: Upper 95.0%
A59: Intercept | B59: 0.5487361316 | C59: 0.8368986186 | D59: 0.6556781423 | E59: 0.521348637 | F59: -1.225409685 | G59: 2.322881948 | H59: -1.225409685 | I59: 2.322881948
A60: X Variable 1 | B60: 0.9319009078 | C60: 0.0903316077 | D60: 10.31644329 | E60: 1.77759779e-08 | F60: 0.7404064539 | G60: 1.123395362 | H60: 0.7404064539 | I60: 1.123395362
A64: Unemployment Equation | B64: =ROUND(B59/100,6)&" + "&ROUND(B60,5)&" * unemployment[y-1] + "&ROUND(C41/100,5)&" * normrandom_unem[y]" -> 0.005487 + 0.9319 * unemployment[y-1] + 0.01677 * normrandom_unem[y]

Sheet EuroStat Data
A2: Series from Eurostat
A4: indic_na | B4: unit | C4: geo | D4: 2013 | E4: 2012 | F4: 2011 | G4: 2010 | H4: 2009 | I4: 2008 | J4: 2007 | K4: 2006 | L4: 2005 | M4: 2004 | N4: 2003 | O4: 2002 | P4: 2001 | Q4: 2000 | R4: 1999 | S4: 1998 | T4: 1997 | U4: 1996 | V4: 1995
A5: LPR | B5: PC_EU15_PPS_EMP | C5: IT | D5: : | E5: : | F5: 100.7 | G5: 100.2 | H5: 102.5 | I5: 102.8 | J5: 101.3 | K5: 100.5 | L5: 101.2 | M5: 102.1 | N5: 104.7 | O5: 106.3 | P5: 112.6 | Q5: 112.6 | R5: 113.1 | S5: 114.5 | T5: 113 | U5: 113.3 | V5: 113.9
A6: PRODUCTIVITY YEAR ON YEAR CHANGE | F6: =ROUND(F5/G5-1,3) -> 0.005 | G6: =ROUND(G5/H5-1,3) -> -0.022 | H6: -0.003 | I6: 0.015 | J6: 0.008 | K6: -0.007 | L6: -0.009 | M6: -0.025 | N6: -0.015 | O6: -0.056 | P6: 0 | Q6: -0.004 | R6: -0.012 | S6: 0.013 | T6: -0.003 | U6: -0.005
A8: s_adj,unit,indic_na,geo\time | D8: 2012Q1 | E8: 2011Q4 | F8: 2011Q3 | G8: 2011Q2 | H8: 2011Q1 | I8: 2010Q4 | J8: 2010Q3 | K8: 2010Q2 | L8: 2010Q1 | M8: 2009Q4 | N8: 2009Q3 | O8: 2009Q2 | P8: 2009Q1 | Q8: 2008Q4 | R8: 2008Q3 | S8: 2008Q2 | T8: 2008Q1 | U8: 2007Q4 | V8: 2007Q3 | W8: 2007Q2 | X8: 2007Q1 | Y8: 2006Q4 | Z8: 2006Q3 | AA8: 2006Q2 | AB8: 2006Q1 | AC8: 2005Q4 | AD8: 2005Q3 | AE8: 2005Q2 | AF8: 2005Q1 | AG8: 2004Q4 | AH8: 2004Q3 | AI8: 2004Q2 | AJ8: 2004Q1 | AK8: 2003Q4 | AL8: 2003Q3 | AM8: 2003Q2 | AN8: 2003Q1 | AO8: 2002Q4 | AP8: 2002Q3 | AQ8: 2002Q2 | AR8: 2002Q1 | AS8: 2001Q4 | AT8: 2001Q3 | AU8: 2001Q2 | AV8: 2001Q1 | AW8: 2000Q4 | AX8: 2000Q3 | AY8: 2000Q2 | AZ8: 2000Q1 | BA8: 1999Q4 | BB8: 1999Q3 | BC8: 1999Q2 | BD8: 1999Q1 | BE8: 1998Q4 | BF8: 1998Q3 | BG8: 1998Q2 | BH8: 1998Q1 | BI8: 1997Q4 | BJ8: 1997Q3 | BK8: 1997Q2 | BL8: 1997Q1 | BM8: 1996Q4 | BN8: 1996Q3 | BO8: 1996Q2 | BP8: 1996Q1 | BQ8: 1995Q4 | BR8: 1995Q3 | BS8: 1995Q2 | BT8: 1995Q1 | BU8: 1994Q4 | BV8: 1994Q3 | BW8: 1994Q2 | BX8: 1994Q1 | BY8: 1993Q4 | BZ8: 1993Q3 | CA8: 1993Q2 | CB8: 1993Q1 | CC8: 1992Q4 | CD8: 1992Q3 | CE8: 1992Q2 | CF8: 1992Q1 | CG8: 1991Q4 | CH8: 1991Q3 | CI8: 1991Q2 | CJ8: 1991Q1
A9: SWDA,CPI00_NAC,B1GM,IT | D9: 127.1 | E9: 126.8 | F9: 126.8 | G9: 126.5 | H9: 126 | I9: 125 | J9: 125 | K9: 125.2 | L9: 124.5 | M9: 124.4 | N9: 124.3 | O9: 124.5 | P9: 124.4 | Q9: 122.7 | R9: 122 | S9: 122.5 | T9: 120.3 | U9: 120.5 | V9: 119.3 | W9: 118.3 | X9: 117.2 | Y9: 116.6 | Z9: 116.2 | AA9: 116.5 | AB9: 115 | AC9: 115.4 | AD9: 114 | AE9: 113.7 | AF9: 113.3 | AG9: 113.2 | AH9: 112.4 | AI9: 112 | AJ9: 110.9 | AK9: 110 | AL9: 110.9 | AM9: 108.9 | AN9: 108.2 | AO9: 107.3 | AP9: 106.8 | AQ9: 105.8 | AR9: 104.8 | AS9: 103.8 | AT9: 103.3 | AU9: 102.7 | AV9: 101.6 | AW9: 100.6 | AX9: 100.5 | AY9: 99.7 | AZ9: 99.2 | BA9: 98.8 | BB9: 98.3 | BC9: 97.8 | BD9: 97.5 | BE9: 97.7 | BF9: 96.3 | BG9: 96.1 | BH9: 95.3 | BI9: 94.8 | BJ9: 94.2 | BK9: 93.5 | BL9: 92.8 | BM9: 92.4 | BN9: 91.9 | BO9: 91.2 | BP9: 90.6 | BQ9: 89 | BR9: 88.5 | BS9: 86.5 | BT9: 85.3 | BU9: 84.2 | BV9: 83.5 | BW9: 82.9 | BX9: 82.3 | BY9: 81.3 | BZ9: 80.8 | CA9: 80.1 | CB9: 79.3 | CC9: 77.9 | CD9: 77.8 | CE9: 76.7 | CF9: 77.1 | CG9: 75.7 | CH9: 74.5 | CI9: 73 | CJ9: 73.3
A10: GDP DEFLATOR YEARLY AVG | H10: =AVERAGE(E9:H9) -> 126.525 | L10: =AVERAGE(I9:L9) -> 124.925 | P10: =AVERAGE(M9:P9) -> 124.4 | T10: =AVERAGE(Q9:T9) -> 121.875 | X10: =AVERAGE(U9:X9) -> 118.825 | AB10: =AVERAGE(Y9:AB9) -> 116.075 | AF10: =AVERAGE(AC9:AF9) -> 114.1 | AJ10: =AVERAGE(AG9:AJ9) -> 112.125 | AN10: =AVERAGE(AK9:AN9) -> 109.5 | AR10: =AVERAGE(AO9:AR9) -> 106.175 | AV10: =AVERAGE(AS9:AV9) -> 102.85 | AZ10: =AVERAGE(AW9:AZ9) -> 100 | BD10: =AVERAGE(BA9:BD9) -> 98.1 | BH10: =AVERAGE(BE9:BH9) -> 96.35 | BL10: =AVERAGE(BI9:BL9) -> 93.825 | BP10: =AVERAGE(BM9:BP9) -> 91.525 | BT10: =AVERAGE(BQ9:BT9) -> 87.325 | BX10: =AVERAGE(BU9:BX9) -> 83.225 | CB10: =AVERAGE(BY9:CB9) -> 80.375 | CF10: =AVERAGE(CC9:CF9) -> 77.375 | CJ10: =AVERAGE(CG9:CJ9) -> 74.125
A11: year | F11: 2011 | G11: 2010 | H11: 2009 | I11: 2008 | J11: 2007 | K11: 2006 | L11: 2005 | M11: 2004 | N11: 2003 | O11: 2002 | P11: 2001 | Q11: 2000 | R11: 1999 | S11: 1998 | T11: 1997 | U11: 1996 | V11: 1995 | W11: 1994 | X11: 1993 | Y11: 1992 | Z11: 1991
A12: GDP DEFLATOR YEARLY AVG | F12: =H10 -> 126.525 | G12: =L10 -> 124.925 | H12: =P10 -> 124.4 | I12: =T10 -> 121.875 | J12: =X10 -> 118.825 | K12: =AB10 -> 116.075 | L12: =AF10 -> 114.1 | M12: =AJ10 -> 112.125 | N12: =AN10 -> 109.5 | O12: =AR10 -> 106.175 | P12: =AV10 -> 102.85 | Q12: =AZ10 -> 100 | R12: =BD10 -> 98.1 | S12: =BH10 -> 96.35 | T12: =BL10 -> 93.825 | U12: =BP10 -> 91.525 | V12: =BT10 -> 87.325 | W12: =BX10 -> 83.225 | X12: =CB10 -> 80.375 | Y12: =CF10 -> 77.375 | Z12: =CJ10 -> 74.125
A13: GDP DEFLATOR YEAR ON YEAR CHG | F13: =ROUND(F12/G12-1,3) -> 0.013 | G13: =ROUND(G12/H12-1,3) -> 0.004 | H13: 0.021 | I13: 0.026 | J13: 0.024 | K13: 0.017 | L13: 0.018 | M13: 0.024 | N13: 0.031 | O13: 0.032 | P13: 0.029 | Q13: 0.019 | R13: 0.018 | S13: 0.027 | T13: 0.025 | U13: 0.048 | V13: 0.049 | W13: 0.035 | X13: 0.039 | Y13: 0.044
A16: sex | B16: age | C16: citizen | D16: geo | E16: 2012Q1 | F16: 2011Q4 | G16: 2011Q3 | H16: 2011Q2 | I16: 2011Q1 | J16: 2010Q4 | K16: 2010Q3 | L16: 2010Q2 | M16: 2010Q1 | N16: 2009Q4 | O16: 2009Q3 | P16: 2009Q2 | Q16: 2009Q1 | R16: 2008Q4 | S16: 2008Q3 | T16: 2008Q2 | U16: 2008Q1 | V16: 2007Q4 | W16: 2007Q3 | X16: 2007Q2 | Y16: 2007Q1 | Z16: 2006Q4 | AA16: 2006Q3 | AB16: 2006Q2 | AC16: 2006Q1 | AD16: 2005Q4 | AE16: 2005Q3 | AF16: 2005Q2 | AG16: 2005Q1 | AH16: 2004Q4 | AI16: 2004Q3 | AJ16: 2004Q2 | AK16: 2004Q1 | AL16: 2003Q4 | AM16: 2003Q3 | AN16: 2003Q2 | AO16: 2003Q1 | AP16: 2002Q4 | AQ16: 2002Q3 | AR16: 2002Q2 | AS16: 2002Q1 | AT16: 2001Q4 | AU16: 2001Q3 | AV16: 2001Q2 | AW16: 2001Q1 | AX16: 2000Q4 | AY16: 2000Q3 | AZ16: 2000Q2 | BA16: 2000Q1 | BB16: 1999Q4 | BC16: 1999Q3 | BD16: 1999Q2 | BE16: 1999Q1 | BF16: 1998Q4 | BG16: 1998Q3 | BH16: 1998Q2 | BI16: 1998Q1
A17: T | B17: Y20-64 | C17: TOTAL | D17: IT | E17: 67.9 | F17: 67.3 | G17: 66 | H17: 66.5 | I17: 66.5 | J17: 66.8 | K17: 65.7 | L17: 66.9 | M17: 66.7 | N17: 66.8 | O17: 66.3 | P17: 67 | Q17: 66.8 | R17: 67.2 | S17: 67 | T17: 67.8 | U17: 67.1 | V17: 67.3 | W17: 66.8 | X17: 66.8 | Y17: 66.1 | Z17: 67.1 | AA17: 66.3 | AB17: 67.2 | AC17: 66.8 | AD17: 67 | AE17: 65.8 | AF17: 66.5 | AG17: 66.5 | AH17: 67.2 | AI17: 66.3 | AJ17: 66.6 | AK17: 66.4 b | AL17: 65.6 | AM17: 65.5 | AN17: 65.7 | AO17: 65.1 | AP17: 65.2 | AQ17: 65 | AR17: 64.9 | AS17: 64.6 | AT17: 64.7 | AU17: 64.6 | AV17: 64.1 | AW17: 64.1 | AX17: 64.3 | AY17: 64.1 | AZ17: 63.6 | BA17: 63.1 | BB17: 63.5 | BC17: 63.5 | BD17: 63.4 | BE17: 62.8 | BF17: 63.2 | BG17: 62.9 | BH17: 62.8 | BI17: 61.8
A18: LABOR FORCE PARTICIPATION YEARLY AVG | I18: =AVERAGE(F17:I17) -> 66.575 | M18: =AVERAGE(J17:M17) -> 66.525 | Q18: =AVERAGE(N17:Q17) -> 66.725 | U18: =AVERAGE(R17:U17) -> 67.275 | Y18: =AVERAGE(V17:Y17) -> 66.75 | AC18: =AVERAGE(Z17:AC17) -> 66.85 | AG18: =AVERAGE(AD17:AG17) -> 66.45 | AK18: =AVERAGE(AH17:AK17) -> 66.7 | AO18: =AVERAGE(AL17:AO17) -> 65.475 | AS18: =AVERAGE(AP17:AS17) -> 64.925 | AW18: =AVERAGE(AT17:AW17) -> 64.375 | BA18: =AVERAGE(AX17:BA17) -> 63.775 | BE18: =AVERAGE(BB17:BE17) -> 63.3 | BI18: =AVERAGE(BF17:BI17) -> 62.675
G19: 2011 | H19: 2010 | I19: 2009 | J19: 2008 | K19: 2007 | L19: 2006 | M19: 2005 | N19: 2004 | O19: 2003 | P19: 2002 | Q19: 2001 | R19: 2000 | S19: 1999 | T19: 1998
A20: LABOR FORCE PARTICIPATION YEARLY AVG | G20: =I18 -> 66.575 | H20: =M18 -> 66.525 | I20: =Q18 -> 66.725 | J20: =U18 -> 67.275 | K20: =Y18 -> 66.75 | L20: =AC18 -> 66.85 | M20: =AG18 -> 66.45 | N20: =AK18 -> 66.7 | O20: =AO18 -> 65.475 | P20: =AS18 -> 64.925 | Q20: =AW18 -> 64.375 | R20: =BA18 -> 63.775 | S20: =BE18 -> 63.3 | T20: =BI18 -> 62.675
A21: LABOR FORCE PARTICIPATION AS PERCENTAGE | G21: =G20*0.01 -> 0.66575 | H21: =H20*0.01 -> 0.66525 | I21: 0.66725 | J21: 0.67275 | K21: 0.6675 | L21: 0.6685 | M21: 0.6645 | N21: 0.667 | O21: 0.65475 | P21: 0.64925 | Q21: 0.64375 | R21: 0.63775 | S21: 0.633 | T21: 0.62675
A24: intrt | B24: geo | C24: 2011 | D24: 2010 | E24: 2009 | F24: 2008 | G24: 2007 | H24: 2006 | I24: 2005 | J24: 2004 | K24: 2003 | L24: 2002 | M24: 2001 | N24: 2000 | O24: 1999 | P24: 1998 | Q24: 1997 | R24: 1996 | S24: 1995 | T24: 1994 | U24: 1993 | V24: 1992 | W24: 1991 | X24: 1990 | Y24: 1989 | Z24: 1988 | AA24: 1987 | AB24: 1986 | AC24: 1985 | AD24: 1984 | AE24: 1983 | AF24: 1982 | AG24: 1981 | AH24: 1980 | AI24: 1979 | AJ24: 1978 | AK24: 1977 | AL24: 1976 | AM24: 1975 | AN24: 1974 | AO24: 1973 | AP24: 1972 | AQ24: 1971 | AR24: 1970 | AS24: 1969 | AT24: 1968 | AU24: 1967 | AV24: 1966 | AW24: 1965 | AX24: 1964 | AY24: 1963 | AZ24: 1962 | BA24: 1961 | BB24: 1960 | BC24: 1959 | BD24: 1958 | BE24: 1957 | BF24: 1956 | BG24: 1955 | BH24: 1954 | BI24: 1953 | BJ24: 1952 | BK24: 1951 | BL24: 1950 | BM24: 1949
A25: MAT_Y10 | B25: IT | C25: : | D25: : | E25: : | F25: : | G25: 4.26 | H25: 4.05 | I25: 3.56 | J25: 4.26 | K25: 4.25 | L25: 5.03 | M25: 5.19 | N25: 5.58 | O25: 4.73 | P25: 4.88 | Q25: 6.86 | R25: 9.4 | S25: 12.21 | T25: 10.52 | U25: 11.19 | V25: 13.27 | W25: 13.28 | X25: 13.54 | Y25: 12.79 | Z25: 10.9 | AA25: 10.64 | AB25: 11.47 | AC25: 13.71 | AD25: 15.6 | AE25: 18.3 | AF25: 20.22 | AG25: 19.36 | AH25: 15.25 | AI25: 13.02 | AJ25: 13.05 | AK25: 14.71 | AL25: 12.66 | AM25: 10.04 | AN25: 9.61 | AO25: 6.92 | AP25: 6.59 | AQ25: 7 | AR25: 7.73 | AS25: 5.8 | AT25: 5.61 | AU25: 5.59 | AV25: 5.49 | AW25: 5.39 | AX25: 5.74 | AY25: 5.19 | AZ25: 5.05 | BA25: 4.97 | BB25: 5.26 | BC25: 5.42 | BD25: 6.19 | BE25: 7.27 | BF25: 6.93 | BG25: 6.4 | BH25: 6.22 | BI25: 6.13 | BJ25: 5.93 | BK25: 6.06 | BL25: 5.75 | BM25: 5.33
A30: PRODUCTIVITY AUTOREGRESSION
A32: =LINEST(F6:T6,G6:U6,1,1) -> 0.09187865382 | B32: -0.006901011218 | D32: SD
A33: 0.2814084078 | B33: 0.00527018172 | D33: =STDEV(F6:U6) -> 0.0170997076 | G33: =ROUND(B32,6)&" + "&ROUND(A32,5)&" * productivitygrowth[y-1] + "&ROUND(D33/100,5)&" * normrandom_prod[y]" -> -0.006901 + 0.09188 * productivitygrowth[y-1] + 0.00017 * normrandom_prod[y]
A34: 0.008133267955 | B34: 0.01827927587
A35: 0.1065994856 | B35: 13
A36: 3.561829146e-05 | B36: 0.004343715042
A39: GDP DELATOR AUTOREGRESSION
A41: =LINEST(F13:X13,G13:Y13,1,1) -> 0.6756840934 | B41: 0.00741512792 | D41: SD
A42: 0.1725602412 | B42: 0.005184370144 | D42: =STDEV(F13:Y13) -> 0.01164508028 | G42: =ROUND(B41,6)&" + "&ROUND(A41,5)&" * inflation[y-1] + "&ROUND(D42/100,5)&" * normrandom_infl[y]" -> 0.007415 + 0.67568 * inflation[y-1] + 0.00012 * normrandom_infl[y]
A43: 0.4742091988 | B43: 0.008393223478
A44: 15.3322507 | B44: 17
A45: 0.001080098805 | B45: 0.001197585406
A48: LABOR FORCE PARTICIPATION AUTOREGRESSION
A50: =LINEST(G21:R21,H21:S21,1,1) -> 0.7769511025 | B50: 0.149407051 | D50: SD
A51: 0.0908801808 | B51: 0.05977471719 | D51: =STDEV(G21:S21) -> 0.01311506034 | G51: =ROUND(B50,6)&" + "&ROUND(A50,5)&" * laborforcepart[y-1] + "&ROUND(D51/100,5)&" * normrandom_lfp[y]" -> 0.149407 + 0.77695 * laborforcepart[y-1] + 0.00013 * normrandom_lfp[y]
A52: 0.8796463916 | B52: 0.00406713665
A53: 73.08849343 | B53: 10
A54: 0.001209000661 | B54: 0.0001654160053
A57: INTEREST RATE AUTOREGRESSION
A59: =LINEST(G25:BL25,H25:BM25,1,1) -> 0.9529168321 | B59: 0.3899494986 | D59: SD
A60: 0.04227384073 | B60: 0.4072501444 | D60: =STDEV(G25:BM25) -> 4.23074351 | G60: =ROUND(B59/100,6)&" + "&ROUND(A59,5)&" *newissuerate[y-1] + "&ROUND(D60/100,5)&" * normrandom_int[y]" -> 0.003899 + 0.95292 *newissuerate[y-1] + 0.04231 * normrandom_int[y]
A61: 0.9007304015 | B61: 1.349456343
A62: 508.1203434 | B62: 56
A63: 925.3036189 | B63: 101.9778156

Sheet series
A1: Series Name | B1: Series Description | C1: Series Type | D1: Type/Format | E1: Minimum | F1: Maximum | G1: RandomMean | H1: RandomStdDevOrSigma | I1: Projection Comments | J1: Include in Output File? | K1: Year 0 | L1: Year 1 | M1: Year 2 | N1: Year 3 | O1: Year 4 | P1: Year 5 | Q1: Year 6 | R1: Year 7 | S1: Year 8 | T1: Year 9 | U1: Year 10 | V1: Year 11
A2: normrandom_births | B2: Random Draws for Population Aged 0-1 | C2: Random Numbers | D2: double(8,6) | G2: 0 | H2: 0.5 | I2: Normally Distributed Random Numbers for Population Aged 0-1 | J2: Y
A3: normrandom_deaths | B3: Randon Draws for Population Aged 1+ | C3: Random Numbers | D3: double(8,6) | G3: 0 | H3: 0.5 | I3: Normally Distributed Random Numbers for Population Aged 1+ | J3: Y
A4: normrandom_lfp | B4: Random Draws for Labor Force Participation | C4: Random Numbers | D4: double(8,6) | G4: 0 | H4: 0.5 | I4: Normally Distributed Random Numbers for Labor Force Participation | J4: Y
A5: normrandom_unem | B5: Random Draws for Unemployment | C5: Random Numbers | D5: double(8,6) | G5: 0 | H5: 0.5 | I5: Normally Distributed Random Numbers for Unemployment | J5: Y
A6: normrandom_prod | B6: Random Draws for Productivity | C6: Random Numbers | D6: double(8,6) | G6: 0 | H6: 0.5 | I6: Normally Distributed Random Numbers for Productivity | J6: Y
A7: normrandom_infl | B7: Random Draws for Inflation | C7: Random Numbers | D7: double(8,6) | G7: 0 | H7: 0.5 | I7: Normally Distributed Random Numbers for Inflation | J7: Y
A8: normrandom_int | B8: Random Draws for Interest Rates | C8: Random Numbers | D8: double(8,6) | G8: 0 | H8: 0.5 | I8: Normally Distributed Random Numbers for Metal Prices | J8: Y
A9: // ISTAT Population Projections
A10: ISTATPopAge0to1 | B10: ISTAT Medium Projection for Pop Age 0 to 1 | C10: Macroeconomic | D10: double(14,0) | I10: ISTAT Medium Projection for Pop Age 0 to 1 | J10: N | K10: 555791 | L10: 556526 | M10: 551548 | N10: 546157 | O10: 540869 | P10: 535879 | Q10: 531383 | R10: 527419 | S10: 524029 | T10: 521194 | U10: 518885 | V10: 517053
A11: ISTATPopAge1to2 | B11: ISTAT Medium Projection for Pop Age 1 to 2 | C11: Macroeconomic | D11: double(14,0) | I11: ISTAT Medium Projection for Pop Age 1 to 2 | J11: N | K11: 567607 | L11: 558260 | M11: 558839 | N11: 553753 | O11: 548277 | P11: 542921 | Q11: 537872 | R11: 533324 | S11: 529312 | T11: 525880 | U11: 523005 | V11: 520660
A12: ISTATPopAge2to3 | B12: ISTAT Medium Projection for Pop Age 2 to 3 | C12: Macroeconomic | D12: double(14,0) | I12: ISTAT Medium Projection for Pop Age 2 to 3 | J12: N | K12: 577278 | L12: 570231 | M12: 560726 | N12: 561192 | O12: 556019 | P12: 550472 | Q12: 545053 | R12: 539951 | S12: 535354 | T12: 531298 | U12: 527826 | V12: 524913
A13: ISTATPopAge3to4 | B13: ISTAT Medium Projection for Pop Age 3 to 4 | C13: Macroeconomic | D13: double(14,0) | I13: ISTAT Medium Projection for Pop Age 3 to 4 | J13: N | K13: 572270 | L13: 580019 | M13: 572812 | N13: 563193 | O13: 563570 | P13: 558325 | Q13: 552715 | R13: 547242 | S13: 542090 | T13: 537450 | U13: 533353 | V13: 529842
A14: ISTATPopAge4to5 | B14: ISTAT Medium Projection for Pop Age 4 to 5 | C14: Macroeconomic | D14: double(14,0) | I14: ISTAT Medium Projection for Pop Age 4 to 5 | J14: N | K14: 573500 | L14: 575119 | M14: 582704 | N14: 575381 | O14: 565674 | P14: 565977 | Q14: 560669 | R14: 555004 | S14: 549482 | T14: 544285 | U14: 539604 | V14: 535469
A15: ISTATPopAge5to6 | B15: ISTAT Medium Projection for Pop Age 5 to 6 | C15: Macroeconomic | D15: double(14,0) | I15: ISTAT Medium Projection for Pop Age 5 to 6 | J15: N | K15: 569347 | L15: 576446 | M15: 577900 | N15: 585367 | O15: 577955 | P15: 568175 | Q15: 568414 | R15: 563051 | S15: 557337 | T15: 551770 | U15: 546533 | V15: 541813
A16: ISTATPopAge6to7 | B16: ISTAT Medium Projection for Pop Age 6 to 7 | C16: Macroeconomic | D16: double(14,0) | I16: ISTAT Medium Projection for Pop Age 6 to 7 | J16: N | K16: 575185 | L16: 572384 | M16: 579316 | N16: 580652 | O16: 588029 | P16: 580543 | Q16: 570700 | R16: 570884 | S16: 565471 | T16: 559713 | U16: 554105 | V16: 548830
A17: ISTATPopAge7to8 | B17: ISTAT Medium Projection for Pop Age 7 to 8 | C17: Macroeconomic | D17: double(14,0) | I17: ISTAT Medium Projection for Pop Age 7 to 8 | J17: N | K17: 568432 | L17: 578306 | M17: 575338 | N17: 582152 | O17: 583398 | P17: 590699 | Q17: 583150 | R17: 573252 | S17: 573387 | T17: 567930 | U17: 562131 | V17: 556485
A18: ISTATPopAge8to9 | B18: ISTAT Medium Projection for Pop Age 8 to 9 | C18: Macroeconomic | D18: double(14,0) | I18: ISTAT Medium Projection for Pop Age 8 to 9 | J18: N | K18: 563492 | L18: 571635 | M18: 581340 | N18: 578254 | O18: 584977 | P18: 586148 | Q18: 593386 | R18: 585782 | S18: 575835 | T18: 575925 | U18: 570428 | V18: 564591
A19: ISTATPopAge9to10 | B19: ISTAT Medium Projection for Pop Age 9 to 10 | C19: Macroeconomic | D19: double(14,0) | I19: ISTAT Medium Projection for Pop Age 9 to 10 | J19: N | K19: 565696 | L19: 566774 | M19: 574748 | N19: 584334 | O19: 581157 | P19: 587805 | Q19: 588912 | R19: 596094 | S19: 588442 | T19: 578451 | U19: 578500 | V19: 572966
A20: ISTATPopAge10to11 | B20: ISTAT Medium Projection for Pop Age 10 to 11 | C20: Macroeconomic | D20: double(14,0) | I20: ISTAT Medium Projection for Pop Age 10 to 11 | J20: N | K20: 573475 | L20: 569055 | M20: 569963 | N20: 577817 | O20: 587311 | P20: 584060 | Q20: 590643 | R20: 591696 | S20: 598828 | T20: 591132 | U20: 581101 | V20: 581114
A21: ISTATPopAge11to12 | B21: ISTAT Medium Projection for Pop Age 11 to 12 | C21: Macroeconomic | D21: double(14,0) | I21: ISTAT Medium Projection for Pop Age 11 to 12 | J21: N | K21: 563899 | L21: 576908 | M21: 572317 | N21: 573106 | O21: 580868 | P21: 590286 | Q21: 586972 | R21: 593500 | S21: 594503 | T21: 601590 | U21: 593855 | V21: 583788
A22: ISTATPopAge12to13 | B22: ISTAT Medium Projection for Pop Age 12 to 13 | C22: Macroeconomic | D22: double(14,0) | I22: ISTAT Medium Projection for Pop Age 12 to 13 | J22: N | K22: 562990 | L22: 567409 | M22: 580245 | N22: 575534 | O22: 576231 | P22: 583917 | Q22: 593271 | R22: 589901 | S22: 596380 | T22: 597339 | U22: 604386 | V22: 596615
A23: ISTATPopAge13to14 | B23: ISTAT Medium Projection for Pop Age 13 to 14 | C23: Macroeconomic | D23: double(14,0) | I23: ISTAT Medium Projection for Pop Age 13 to 14 | J23: N | K23: 561318 | L23: 566583 | M23: 570828 | N23: 583541 | O23: 578738 | P23: 579359 | Q23: 586980 | R23: 596278 | S23: 592859 | T23: 599293 | U23: 600213 | V23: 607222
A24: ISTATPopAge14to15 | B24: ISTAT Medium Projection for Pop Age 14 to 15 | C24: Macroeconomic | D24: double(14,0) | I24: ISTAT Medium Projection for Pop Age 14 to 15 | J24: N | K24: 562942 | L24: 565013 | M24: 570100 | N24: 574221 | O24: 586838 | P24: 581959 | Q24: 582515 | R24: 590080 | S24: 599327 | T24: 595865 | U24: 602258 | V24: 603141
A25: ISTATPopAge15to16 | B25: ISTAT Medium Projection for Pop Age 15 to 16 | C25: Macroeconomic | D25: double(14,0) | I25: ISTAT Medium Projection for Pop Age 15 to 16 | J25: N | K25: 562402 | L25: 566786 | M25: 568673 | N25: 573632 | O25: 577656 | P25: 590192 | Q25: 585248 | R25: 585747 | S25: 593261 | T25: 602461 | U25: 598959 | V25: 605314
A26: ISTATPopAge16to17 | B26: ISTAT Medium Projection for Pop Age 16 to 17 | C26: Macroeconomic | D26: double(14,0) | I26: ISTAT Medium Projection for Pop Age 16 to 17 | J26: N | K26: 570268 | L26: 566500 | M26: 570689 | N26: 572442 | O26: 577298 | P26: 581238 | Q26: 593702 | R26: 588699 | S26: 589146 | T26: 596611 | U26: 605767 | V26: 602226
A27: ISTATPopAge17to18 | B27: ISTAT Medium Projection for Pop Age 17 to 18 | C27: Macroeconomic | D27: double(14,0) | I27: ISTAT Medium Projection for Pop Age 17 to 18 | J27: N | K27: 583922 | L27: 574807 | M27: 570827 | N27: 574869 | O27: 576509 | P27: 581273 | Q27: 585137 | R27: 597532 | S27: 592474 | T27: 592869 | U27: 600286 | V27: 609397
A28: ISTATPopAge18to19 | B28: ISTAT Medium Projection for Pop Age 18 to 19 | C28: Macroeconomic | D28: double(14,0) | I28: ISTAT Medium Projection for Pop Age 18 to 19 | J28: N | K28: 608040 | L28: 589168 | M28: 579813 | N28: 575666 | O28: 579577 | P28: 581114 | Q28: 585790 | R28: 589578 | S28: 601904 | T28: 596789 | U28: 597131 | V28: 604497
A29: ISTATPopAge19to20 | B29: ISTAT Medium Projection for Pop Age 19 to 20 | C29: Macroeconomic | D29: double(14,0) | I29: ISTAT Medium Projection for Pop Age 19 to 20 | J29: N | K29: 609985 | L29: 614271 | M29: 595119 | N29: 585569 | O29: 581272 | P29: 585060 | Q29: 586494 | R29: 591080 | S29: 594790 | T29: 607042 | U29: 601867 | V29: 602153
A30: ISTATPopAge20to21 | B30: ISTAT Medium Projection for Pop Age 20 to 21 | C30: Macroeconomic | D30: double(14,0) | I30: ISTAT Medium Projection for Pop Age 20 to 21 | J30: N | K30: 621128 | L30: 617430 | M30: 621373 | N30: 601994 | O30: 592267 | P30: 587827 | Q30: 591491 | R30: 592819 | S30: 597311 | T30: 600938 | U30: 613110 | V30: 607869
A31: ISTATPopAge21to22 | B31: ISTAT Medium Projection for Pop Age 21 to 22 | C31: Macroeconomic | D31: double(14,0) | I31: ISTAT Medium Projection for Pop Age 21 to 22 | J31: N | K31: 620783 | L31: 629873 | M31: 625775 | N31: 629439 | O31: 609857 | P31: 599964 | Q31: 595381 | R31: 598920 | S31: 600138 | T31: 604531 | U31: 608069 | V31: 620155
A32: ISTATPopAge22to23 | B32: ISTAT Medium Projection for Pop Age 22 to 23 | C32: Macroeconomic | D32: double(14,0) | I32: ISTAT Medium Projection for Pop Age 22 to 23 | J32: N | K32: 634686 | L32: 630769 | M32: 639394 | N32: 634979 | O32: 638399 | P32: 618629 | Q32: 608575 | R32: 603850 | S32: 607262 | T32: 608367 | U32: 612655 | V32: 616099
A33: ISTATPopAge23to24 | B33: ISTAT Medium Projection for Pop Age 23 to 24 | C33: Macroeconomic | D33: double(14,0) | I33: ISTAT Medium Projection for Pop Age 23 to 24 | J33: N | K33: 624521 | L33: 645706 | M33: 641279 | N33: 649543 | O33: 644858 | P33: 648056 | Q33: 628111 | R33: 617900 | S33: 613036 | T33: 616319 | U33: 617309 | V33: 621490
A34: ISTATPopAge24to25 | B34: ISTAT Medium Projection for Pop Age 24 to 25 | C34: Macroeconomic | D34: double(14,0) | I34: ISTAT Medium Projection for Pop Age 24 to 25 | J34: N | K34: 633498 | L34: 636294 | M34: 656913 | N34: 652102 | O34: 660067 | P34: 655143 | Q34: 658138 | R34: 638027 | S34: 627666 | T34: 622665 | U34: 625821 | V34: 626695
A35: ISTATPopAge25to26 | B35: ISTAT Medium Projection for Pop Age 25 to 26 | C35: Macroeconomic | D35: double(14,0) | I35: ISTAT Medium Projection for Pop Age 25 to 26 | J35: N | K35: 658140 | L35: 645677 | M35: 647887 | N35: 668087 | O35: 662966 | P35: 670672 | Q35: 665536 | R35: 668344 | S35: 648078 | T35: 637573 | U35: 632440 | V35: 635472
A36: ISTATPopAge26to27 | B36: ISTAT Medium Projection for Pop Age 26 to 27 | C36: Macroeconomic | D36: double(14,0) | I36: ISTAT Medium Projection for Pop Age 26 to 27 | J36: N | K36: 674585 | L36: 670382 | M36: 657323 | N36: 659112 | O36: 678979 | P36: 673597 | Q36: 681077 | R36: 675749 | S36: 678385 | T36: 657975 | U36: 647336 | V36: 642075
A37: ISTATPopAge27to28 | B37: ISTAT Medium Projection for Pop Age 27 to 28 | C37: Macroeconomic | D37: double(14,0) | I37: ISTAT Medium Projection for Pop Age 27 to 28 | J37: N | K37: 691904 | L37: 686597 | M37: 681791 | N37: 668315 | O37: 669776 | P37: 689366 | Q37: 683762 | R37: 691041 | S37: 685541 | T37: 688020 | U37: 667477 | V37: 656710
A38: ISTATPopAge28to29 | B38: ISTAT Medium Projection for Pop Age 28 to 29 | C38: Macroeconomic | D38: double(14,0) | I38: ISTAT Medium Projection for Pop Age 28 to 29 | J38: N | K38: 718890 | L38: 703452 | M38: 697550 | N38: 692328 | O38: 678535 | P38: 679730 | Q38: 699085 | R38: 693288 | S38: 700389 | T38: 694735 | U38: 697069 | V38: 676405
A39: ISTATPopAge29to30 | B39: ISTAT Medium Projection for Pop Age 29 to 30 | C39: Macroeconomic | D39: double(14,0) | I39: ISTAT Medium Projection for Pop Age 29 to 30 | J39: N | K39: 727747 | L39: 729806 | M39: 713795 | N39: 707489 | O39: 701954 | P39: 687910 | Q39: 688885 | R39: 708038 | S39: 702072 | T39: 709016 | U39: 703223 | V39: 705427
A40: ISTATPopAge30to31 | B40: ISTAT Medium Projection for Pop Age 30 to 31 | C40: Macroeconomic | D40: double(14,0) | I40: ISTAT Medium Projection for Pop Age 30 to 31 | J40: N | K40: 747662 | L40: 737946 | M40: 739446 | N40: 723051 | O40: 716446 | P40: 710666 | Q40: 696417 | R40: 697207 | S40: 716183 | T40: 710072 | U40: 716875 | V40: 710959
A41: ISTATPopAge31to32 | B41: ISTAT Medium Projection for Pop Age 31 to 32 | C41: Macroeconomic | D41: double(14,0) | I41: ISTAT Medium Projection for Pop Age 31 to 32 | J41: N | K41: 773723 | L41: 757096 | M41: 746857 | N41: 747984 | O41: 731310 | P41: 724472 | Q41: 718494 | R41: 704075 | S41: 704707 | T41: 723531 | U41: 717293 | V41: 723971
A42: ISTATPopAge32to33 | B42: ISTAT Medium Projection for Pop Age 32 to 33 | C42: Macroeconomic | D42: double(14,0) | I42: ISTAT Medium Projection for Pop Age 32 to 33 | J42: N | K42: 816637 | L42: 782393 | M42: 765277 | N42: 754695 | O42: 755549 | P42: 738661 | Q42: 731636 | R42: 725495 | S42: 710934 | T42: 711431 | U42: 730121 | V42: 723772
A43: ISTATPopAge33to34 | B43: ISTAT Medium Projection for Pop Age 33 to 34 | C43: Macroeconomic | D43: double(14,0) | I43: ISTAT Medium Projection for Pop Age 33 to 34 | J43: N | K43: 843340 | L43: 824567 | M43: 789878 | N43: 772444 | O43: 761614 | P43: 762258 | Q43: 745200 | R43: 738024 | S43: 731746 | T43: 717066 | U43: 717447 | V43: 736019
A44: ISTATPopAge34to35 | B44: ISTAT Medium Projection for Pop Age 34 to 35 | C44: Macroeconomic | D44: double(14,0) | I44: ISTAT Medium Projection for Pop Age 34 to 35 | J44: N | K44: 880817 | L44: 850595 | M44: 831399 | N44: 796427 | O44: 778765 | P44: 767747 | Q44: 768224 | R44: 751030 | S44: 743727 | T44: 737335 | U44: 722554 | V44: 722833
A45: ISTATPopAge35to36 | B45: ISTAT Medium Projection for Pop Age 35 to 36 | C45: Macroeconomic | D45: double(14,0) | I45: ISTAT Medium Projection for Pop Age 35 to 36 | J45: N | K45: 925300 | L45: 887455 | M45: 856848 | N45: 837379 | O45: 802209 | P45: 784376 | Q45: 773211 | R45: 773551 | S45: 756245 | T45: 748837 | U45: 742348 | V45: 727481
A46: ISTATPopAge36to37 | B46: ISTAT Medium Projection for Pop Age 36 to 37 | C46: Macroeconomic | D46: double(14,0) | I46: ISTAT Medium Projection for Pop Age 36 to 37 | J46: N | K46: 962370 | L46: 931375 | M46: 893181 | N46: 862329 | O46: 842668 | P46: 807353 | Q46: 789388 | R46: 778104 | S46: 778331 | T46: 760933 | U46: 753436 | V46: 746865
A47: ISTATPopAge37to38 | B47: ISTAT Medium Projection for Pop Age 37 to 38 | C47: Macroeconomic | D47: double(14,0) | I47: ISTAT Medium Projection for Pop Age 37 to 38 | J47: N | K47: 956278 | L47: 967945 | M47: 936622 | N47: 898210 | O47: 867189 | P47: 847386 | Q47: 811961 | R47: 793891 | S47: 782511 | T47: 782644 | U47: 765171 | V47: 757599
A48: ISTATPopAge38to39 | B48: ISTAT Medium Projection for Pop Age 38 to 39 | C48: Macroeconomic | D48: double(14,0) | I48: ISTAT Medium Projection for Pop Age 38 to 39 | J48: N | K48: 966262 | L48: 961431 | M48: 972764 | N48: 941236 | O48: 902678 | P48: 871534 | Q48: 851623 | R48: 816116 | S48: 797963 | T48: 786505 | U48: 786557 | V48: 769022
A49: ISTATPopAge39to40 | B49: ISTAT Medium Projection for Pop Age 39 to 40 | C49: Macroeconomic | D49: double(14,0) | I49: ISTAT Medium Projection for Pop Age 39 to 40 | J49: N | K49: 977959 | L49: 971018 | M49: 965889 | N49: 977004 | O49: 945338 | P49: 906677 | Q49: 875443 | R49: 855448 | S49: 819880 | T49: 801660 | U49: 790138 | V49: 790123
A50: ISTATPopAge40to41 | B50: ISTAT Medium Projection for Pop Age 40 to 41 | C50: Macroeconomic | D50: double(14,0) | I50: ISTAT Medium Projection for Pop Age 40 to 41 | J50: N | K50: 969446 | L50: 982345 | M50: 975129 | N50: 969809 | O50: 980766 | P50: 949004 | Q50: 910272 | R50: 878972 | S50: 858913 | T50: 823300 | U50: 805026 | V50: 793452
A51: ISTATPopAge41to42 | B51: ISTAT Medium Projection for Pop Age 41 to 42 | C51: Macroeconomic | D51: double(14,0) | I51: ISTAT Medium Projection for Pop Age 41 to 42 | J51: N | K51: 994831 | L51: 973501 | M51: 986128 | N51: 978738 | O51: 973286 | P51: 984124 | Q51: 952294 | R51: 913513 | S51: 882167 | T51: 862058 | U51: 826414 | V51: 808099
A52: ISTATPopAge42to43 | B52: ISTAT Medium Projection for Pop Age 42 to 43 | C52: Macroeconomic | D52: double(14,0) | I52: ISTAT Medium Projection for Pop Age 42 to 43 | J52: N | K52: 985492 | L52: 998536 | M52: 976985 | N52: 989435 | O52: 981926 | P52: 976379 | Q52: 987122 | R52: 955247 | S52: 916435 | T52: 885057 | U52: 864912 | V52: 829248
A53: ISTATPopAge43to44 | B53: ISTAT Medium Projection for Pop Age 43 to 44 | C53: Macroeconomic | D53: double(14,0) | I53: ISTAT Medium Projection for Pop Age 43 to 44 | J53: N | K53: 989601 | L53: 988884 | M53: 1001691 | N53: 980010 | O53: 992333 | P53: 984739 | Q53: 979122 | R53: 989791 | S53: 957887 | T53: 919060 | U53: 887661 | V53: 867490
A54: ISTATPopAge44to45 | B54: ISTAT Medium Projection for Pop Age 44 to 45 | C54: Macroeconomic | D54: double(14,0) | I54: ISTAT Medium Projection for Pop Age 44 to 45 | J54: N | K54: 1001029 | L54: 992665 | M54: 991742 | N54: 1004395 | O54: 982633 | P54: 994862 | Q54: 987207 | R54: 981538 | S54: 992146 | T54: 960228 | U54: 921397 | V54: 889991
A55: ISTATPopAge45to46 | B55: ISTAT Medium Projection for Pop Age 45 to 46 | C55: Macroeconomic | D55: double(14,0) | I55: ISTAT Medium Projection for Pop Age 45 to 46 | J55: N | K55: 1000924 | L55: 1003749 | M55: 995206 | N55: 994156 | O55: 1006700 | P55: 984890 | Q55: 997044 | R55: 989347 | S55: 983640 | T55: 994199 | U55: 962279 | V55: 923457
A56: ISTATPopAge46to47 | B56: ISTAT Medium Projection for Pop Age 46 to 47 | C56: Macroeconomic | D56: double(14,0) | I56: ISTAT Medium Projection for Pop Age 46 to 47 | J56: N | K56: 1012102 | L56: 1003312 | M56: 1005959 | N56: 997312 | O56: 996180 | P56: 1008642 | Q56: 986806 | R56: 998903 | S56: 991177 | T56: 985444 | U56: 995963 | V56: 964052
A57: ISTATPopAge47to48 | B57: ISTAT Medium Projection for Pop Age 47 to 48 | C57: Macroeconomic | D57: double(14,0) | I57: ISTAT Medium Projection for Pop Age 47 to 48 | J57: N | K57: 950687 | L57: 1014136 | M57: 1005200 | N57: 1007740 | O57: 999032 | P57: 997845 | Q57: 1010245 | R57: 988402 | S57: 1000452 | T57: 992710 | U57: 986962 | V57: 997449
A58: ISTATPopAge48to49 | B58: ISTAT Medium Projection for Pop Age 48 to 49 | C58: Macroeconomic | D58: double(14,0) | I58: ISTAT Medium Projection for Pop Age 48 to 49 | J58: N | K58: 919794 | L58: 952472 | M58: 1015672 | N58: 1006661 | O58: 1009133 | P58: 1000391 | Q58: 999169 | R58: 1011522 | S58: 989686 | T58: 1001701 | U58: 993952 | V58: 988197
A59: ISTATPopAge49to50 | B59: ISTAT Medium Projection for Pop Age 49 to 50 | C59: Macroeconomic | D59: double(14,0) | I59: ISTAT Medium Projection for Pop Age 49 to 50 | J59: N | K59: 901283 | L59: 921271 | M59: 953760 | N59: 1016769 | O59: 1007721 | P59: 1010151 | Q59: 1001396 | R59: 1000154 | S59: 1012471 | T59: 990655 | U59: 1002642 | V59: 994896
A60: ISTATPopAge50to51 | B60: ISTAT Medium Projection for Pop Age 50 to 51 | C60: Macroeconomic | D60: double(14,0) | I60: ISTAT Medium Projection for Pop Age 50 to 51 | J60: N | K60: 873384 | L60: 902405 | M60: 922237 | N60: 954595 | O60: 1017443 | P60: 1008383 | Q60: 1010790 | R60: 1002037 | S60: 1000787 | T60: 1013076 | U60: 991292 | V60: 1003258
A61: ISTATPopAge51to52 | B61: ISTAT Medium Projection for Pop Age 51 to 52 | C61: Macroeconomic | D61: double(14,0) | I61: ISTAT Medium Projection for Pop Age 51 to 52 | J61: N | K61: 852870 | L61: 874142 | M61: 902999 | N61: 922730 | O61: 954988 | P61: 1017688 | Q61: 1008637 | R61: 1011033 | S61: 1002295 | T61: 1001047 | U61: 1013317 | V61: 991574
A62: ISTATPopAge52to53 | B62: ISTAT Medium Projection for Pop Age 52 to 53 | C62: Macroeconomic | D62: double(14,0) | I62: ISTAT Medium Projection for Pop Age 52 to 53 | J62: N | K62: 815381 | L62: 853229 | M62: 874365 | N62: 903108 | O62: 922768 | P62: 954943 | Q62: 1017503 | R62: 1008475 | S62: 1010872 | T62: 1002158 | U62: 1000922 | V62: 1013178
A63: ISTATPopAge53to54 | B63: ISTAT Medium Projection for Pop Age 53 to 54 | C63: Macroeconomic | D63: double(14,0) | I63: ISTAT Medium Projection for Pop Age 53 to 54 | J63: N | K63: 807844 | L63: 815372 | M63: 853048 | N63: 874095 | O63: 902750 | P63: 922356 | Q63: 954458 | R63: 1016879 | S63: 1007887 | T63: 1010294 | U63: 1001617 | V63: 1000399
A64: ISTATPopAge54to55 | B64: ISTAT Medium Projection for Pop Age 54 to 55 | C64: Macroeconomic | D64: double(14,0) | I64: ISTAT Medium Projection for Pop Age 54 to 55 | J64: N | K64: 793721 | L64: 807385 | M64: 814833 | N64: 852375 | O64: 873358 | P64: 901939 | Q64: 921502 | R64: 953537 | S64: 1015818 | T64: 1006873 | U64: 1009298 | V64: 1000665
A65: ISTATPopAge55to56 | B65: ISTAT Medium Projection for Pop Age 55 to 56 | C65: Macroeconomic | D65: double(14,0) | I65: ISTAT Medium Projection for Pop Age 55 to 56 | J65: N | K65: 779402 | L65: 792836 | M65: 806410 | N65: 813821 | O65: 851248 | P65: 872180 | Q65: 900695 | R65: 920223 | S65: 952194 | T65: 1014331 | U65: 1005444 | V65: 1007894
A66: ISTATPopAge56to57 | B66: ISTAT Medium Projection for Pop Age 56 to 57 | C66: Macroeconomic | D66: double(14,0) | I66: ISTAT Medium Projection for Pop Age 56 to 57 | J66: N | K66: 767470 | L66: 778100 | M66: 791461 | N66: 804982 | O66: 812378 | P66: 849699 | Q66: 870590 | R66: 899043 | S66: 918542 | T66: 950452 | U66: 1012440 | V66: 1003620
A67: ISTATPopAge57to58 | B67: ISTAT Medium Projection for Pop Age 57 to 58 | C67: Macroeconomic | D67: double(14,0) | I67: ISTAT Medium Projection for Pop Age 57 to 58 | J67: N | K67: 732797 | L67: 765762 | M67: 776334 | N67: 789656 | O67: 803145 | P67: 810540 | Q67: 847760 | R67: 868616 | S67: 897011 | T67: 916486 | U67: 948336 | V67: 1010168
A68: ISTATPopAge58to59 | B68: ISTAT Medium Projection for Pop Age 58 to 59 | C68: Macroeconomic | D68: double(14,0) | I68: ISTAT Medium Projection for Pop Age 58 to 59 | J68: N | K68: 724353 | L68: 730795 | M68: 763616 | N68: 774162 | O68: 787465 | P68: 800932 | Q68: 808339 | R68: 845458 | S68: 866284 | T68: 894624 | U68: 914077 | V68: 945869
A69: ISTATPopAge59to60 | B69: ISTAT Medium Projection for Pop Age 59 to 60 | C69: Macroeconomic | D69: double(14,0) | I69: ISTAT Medium Projection for Pop Age 59 to 60 | J69: N | K69: 723294 | L69: 721951 | M69: 728370 | N69: 761069 | O69: 771607 | P69: 784901 | Q69: 798357 | R69: 805782 | S69: 842801 | T69: 863600 | U69: 891886 | V69: 911320
A70: ISTATPopAge60to61 | B70: ISTAT Medium Projection for Pop Age 60 to 61 | C70: Macroeconomic | D70: double(14,0) | I70: ISTAT Medium Projection for Pop Age 60 to 61 | J70: N | K70: 749124 | L70: 720437 | M70: 719123 | N70: 725547 | O70: 758133 | P70: 768673 | Q70: 781967 | R70: 795416 | S70: 802867 | T70: 839783 | U70: 860557 | V70: 888788
A71: ISTATPopAge61to62 | B71: ISTAT Medium Projection for Pop Age 61 to 62 | C71: Macroeconomic | D71: double(14,0) | I71: ISTAT Medium Projection for Pop Age 61 to 62 | J71: N | K71: 753089 | L71: 745636 | M71: 717152 | N71: 715895 | O71: 722339 | P71: 754814 | Q71: 765364 | R71: 778663 | S71: 792110 | T71: 799592 | U71: 836401 | V71: 857151
A72: ISTATPopAge62to63 | B72: ISTAT Medium Projection for Pop Age 62 to 63 | C72: Macroeconomic | D72: double(14,0) | I72: ISTAT Medium Projection for Pop Age 62 to 63 | J72: N | K72: 785968 | L72: 749049 | M72: 741699 | N72: 713456 | O72: 712274 | P72: 718747 | Q72: 751109 | R72: 761674 | S72: 774984 | T72: 788430 | U72: 795948 | V72: 832643
A73: ISTATPopAge63to64 | B73: ISTAT Medium Projection for Pop Age 63 to 64 | C73: Macroeconomic | D73: double(14,0) | I73: ISTAT Medium Projection for Pop Age 63 to 64 | J73: N | K73: 768037 | L73: 781139 | M73: 744545 | N73: 737326 | O73: 709352 | P73: 708256 | Q73: 714766 | R73: 747011 | S73: 757594 | T73: 770916 | U73: 784363 | V73: 791922
A74: ISTATPopAge64to65 | B74: ISTAT Medium Projection for Pop Age 64 to 65 | C74: Macroeconomic | D74: double(14,0) | I74: ISTAT Medium Projection for Pop Age 64 to 65 | J74: N | K74: 768913 | L74: 762719 | M74: 775815 | N74: 739587 | O74: 732518 | P74: 704837 | Q74: 703839 | R74: 710391 | S74: 742512 | T74: 753117 | U74: 766452 | V74: 779903
A75: ISTATPopAge65to66 | B75: ISTAT Medium Projection for Pop Age 65 to 66 | C75: Macroeconomic | D75: double(14,0) | I75: ISTAT Medium Projection for Pop Age 65 to 66 | J75: N | K75: 594882 | L75: 762932 | M75: 756892 | N75: 769999 | O75: 734170 | P75: 727267 | Q75: 699904 | R75: 699013 | S75: 705612 | T75: 737601 | U75: 748230 | V75: 761582
A76: ISTATPopAge66to67 | B76: ISTAT Medium Projection for Pop Age 66 to 67 | C76: Macroeconomic | D76: double(14,0) | I76: ISTAT Medium Projection for Pop Age 66 to 67 | J76: N | K76: 611436 | L76: 589804 | M76: 756419 | N76: 750558 | O76: 763685 | P76: 728286 | Q76: 721563 | R76: 694542 | S76: 693768 | T76: 700417 | U76: 732267 | V76: 742921
A77: ISTATPopAge67to68 | B77: ISTAT Medium Projection for Pop Age 67 to 68 | C77: Macroeconomic | D77: double(14,0) | I77: ISTAT Medium Projection for Pop Age 67 to 68 | J77: N | K77: 617350 | L77: 605617 | M77: 584280 | N77: 749386 | O77: 743721 | P77: 756871 | Q77: 721934 | R77: 715405 | S77: 688748 | T77: 688099 | U77: 694804 | V77: 726503
A78: ISTATPopAge68to69 | B78: ISTAT Medium Projection for Pop Age 68 to 69 | C78: Macroeconomic | D78: double(14,0) | I78: ISTAT Medium Projection for Pop Age 68 to 69 | J78: N | K78: 612704 | L78: 610809 | M78: 599321 | N78: 578309 | O78: 741820 | P78: 736364 | Q78: 749541 | R78: 715096 | S78: 708773 | T78: 682505 | U78: 681989 | V78: 688752
A79: ISTATPopAge69to70 | B79: ISTAT Medium Projection for Pop Age 69 to 70 | C79: Macroeconomic | D79: double(14,0) | I79: ISTAT Medium Projection for Pop Age 69 to 70 | J79: N | K79: 615866 | L79: 605469 | M79: 603738 | N79: 592524 | O79: 571861 | P79: 733674 | Q79: 728440 | R79: 741647 | S79: 707725 | T79: 701622 | U79: 675768 | V79: 675393
A80: ISTATPopAge70to71 | B80: ISTAT Medium Projection for Pop Age 70 to 71 | C80: Macroeconomic | D80: double(14,0) | I80: ISTAT Medium Projection for Pop Age 70 to 71 | J80: N | K80: 673600 | L80: 607740 | M80: 597629 | N80: 596083 | O80: 585165 | P80: 564876 | Q80: 724869 | R80: 719871 | S80: 733106 | T80: 699745 | U80: 693874 | V80: 668464
A81: ISTATPopAge71to72 | B81: ISTAT Medium Projection for Pop Age 71 to 72 | C81: Macroeconomic | D81: double(14,0) | I81: ISTAT Medium Projection for Pop Age 71 to 72 | J81: N | K81: 658842 | L81: 663587 | M81: 598921 | N81: 589124 | O81: 587777 | P81: 577177 | Q81: 557290 | R81: 715316 | S81: 710570 | T81: 723830 | U81: 691071 | V81: 685448
A82: ISTATPopAge72to73 | B82: ISTAT Medium Projection for Pop Age 72 to 73 | C82: Macroeconomic | D82: double(14,0) | I82: ISTAT Medium Projection for Pop Age 72 to 73 | J82: N | K82: 637152 | L82: 647842 | M82: 652734 | N82: 589356 | O82: 579896 | P82: 578760 | Q82: 568498 | R82: 549042 | S82: 704938 | T82: 700456 | U82: 713738 | V82: 681625
A83: ISTATPopAge73to74 | B83: ISTAT Medium Projection for Pop Age 73 to 74 | C83: Macroeconomic | D83: double(14,0) | I83: ISTAT Medium Projection for Pop Age 73 to 74 | J83: N | K83: 585257 | L83: 625238 | M83: 635944 | N83: 640992 | O83: 578994 | P83: 569893 | Q83: 568979 | R83: 559076 | S83: 540081 | T83: 693667 | U83: 689462 | V83: 702759
A84: ISTATPopAge74to75 | B84: ISTAT Medium Projection for Pop Age 74 to 75 | C84: Macroeconomic | D84: double(14,0) | I84: ISTAT Medium Projection for Pop Age 74 to 75 | J84: N | K84: 547332 | L84: 572995 | M84: 612392 | N84: 623112 | O84: 628322 | P84: 567800 | Q84: 559078 | R84: 558395 | S84: 548872 | T84: 530371 | U84: 681453 | V84: 677539
A85: ISTATPopAge75to76 | B85: ISTAT Medium Projection for Pop Age 75 to 76 | C85: Macroeconomic | D85: double(14,0) | I85: ISTAT Medium Projection for Pop Age 75 to 76 | J85: N | K85: 552801 | L85: 534514 | M85: 559824 | N85: 598594 | O85: 609324 | P85: 614698 | Q85: 555749 | R85: 547426 | S85: 546985 | T85: 537861 | U85: 519889 | V85: 668267
A86: ISTATPopAge76to77 | B86: ISTAT Medium Projection for Pop Age 76 to 77 | C86: Macroeconomic | D86: double(14,0) | I86: ISTAT Medium Projection for Pop Age 76 to 77 | J86: N | K86: 528927 | L86: 538333 | M86: 520800 | N86: 545732 | O86: 583824 | P86: 594557 | Q86: 600097 | R86: 542820 | S86: 534918 | T86: 534725 | U86: 526023 | V86: 508613
A87: ISTATPopAge77to78 | B87: ISTAT Medium Projection for Pop Age 77 to 78 | C87: Macroeconomic | D87: double(14,0) | I87: ISTAT Medium Projection for Pop Age 77 to 78 | J87: N | K87: 505774 | L87: 513472 | M87: 522895 | N87: 506158 | O87: 530679 | P87: 568038 | Q87: 578766 | R87: 584471 | S87: 528971 | T87: 521509 | U87: 521571 | V87: 513312
A88: ISTATPopAge78to79 | B88: ISTAT Medium Projection for Pop Age 78 to 79 | C88: Macroeconomic | D88: double(14,0) | I88: ISTAT Medium Projection for Pop Age 78 to 79 | J88: N | K88: 478861 | L88: 489175 | M88: 496965 | N88: 506397 | O88: 490494 | P88: 514562 | Q88: 551123 | R88: 561830 | S88: 567697 | T88: 514087 | U88: 507085 | V88: 507410
A89: ISTATPopAge79to80 | B89: ISTAT Medium Projection for Pop Age 79 to 80 | C89: Macroeconomic | D89: double(14,0) | I89: ISTAT Medium Projection for Pop Age 79 to 80 | J89: N | K89: 467232 | L89: 461198 | M89: 471447 | N89: 479315 | O89: 488738 | P89: 473708 | Q89: 497274 | R89: 532955 | S89: 543622 | T89: 549640 | U89: 498044 | V89: 491521
A90: ISTATPopAge80to81 | B90: ISTAT Medium Projection for Pop Age 80 to 81 | C90: Macroeconomic | D90: double(14,0) | I90: ISTAT Medium Projection for Pop Age 80 to 81 | J90: N | K90: 466289 | L90: 447829 | M90: 442377 | N90: 452535 | O90: 460461 | P90: 469851 | Q90: 455729 | R90: 478734 | S90: 513448 | T90: 524047 | U90: 530201 | V90: 480748
A91: ISTATPopAge81to82 | B91: ISTAT Medium Projection for Pop Age 81 to 82 | C91: Macroeconomic | D91: double(14,0) | I91: ISTAT Medium Projection for Pop Age 81 to 82 | J91: N | K91: 409508 | L91: 444424 | M91: 427187 | N91: 422329 | O91: 432359 | P91: 440316 | Q91: 449643 | R91: 436463 | S91: 458841 | T91: 492486 | U91: 502985 | V91: 509256
A92: ISTATPopAge82to83 | B92: ISTAT Medium Projection for Pop Age 82 to 83 | C92: Macroeconomic | D92: double(14,0) | I92: ISTAT Medium Projection for Pop Age 82 to 83 | J92: N | K92: 383855 | L92: 387835 | M92: 421301 | N92: 405327 | O92: 401066 | P92: 410929 | Q92: 418882 | R92: 428111 | S92: 415905 | T92: 437584 | U92: 470053 | V92: 480417
A93: ISTATPopAge83to84 | B93: ISTAT Medium Projection for Pop Age 83 to 84 | C93: Macroeconomic | D93: double(14,0) | I93: ISTAT Medium Projection for Pop Age 83 to 84 | J93: N | K93: 357773 | L93: 361046 | M93: 365115 | N93: 397025 | O93: 382340 | P93: 378675 | Q93: 388328 | R93: 396240 | S93: 405332 | T93: 394122 | U93: 415028 | V93: 446213
A94: ISTATPopAge84to85 | B94: ISTAT Medium Projection for Pop Age 84 to 85 | C94: Macroeconomic | D94: double(14,0) | I94: ISTAT Medium Projection for Pop Age 84 to 85 | J94: N | K94: 323867 | L94: 333865 | M94: 337274 | N94: 341402 | O94: 371646 | P94: 358267 | Q94: 355191 | R94: 364586 | S94: 372411 | T94: 381322 | U94: 371125 | V94: 391177
A95: ISTATPopAge85to86 | B95: ISTAT Medium Projection for Pop Age 85 to 86 | C95: Macroeconomic | D95: double(14,0) | I95: ISTAT Medium Projection for Pop Age 85 to 86 | J95: N | K95: 293152 | L95: 299540 | M95: 309142 | N95: 312651 | O95: 316803 | P95: 345271 | Q95: 333208 | R95: 330705 | S95: 339790 | T95: 347480 | U95: 356160 | V95: 346985
A96: ISTATPopAge86to87 | B96: ISTAT Medium Projection for Pop Age 86 to 87 | C96: Macroeconomic | D96: double(14,0) | I96: ISTAT Medium Projection for Pop Age 86 to 87 | J96: N | K96: 263311 | L96: 268438 | M96: 274640 | N96: 283795 | O96: 287363 | P96: 291500 | Q96: 318092 | R96: 307339 | S96: 305386 | T96: 314108 | U96: 321608 | V96: 330006
A97: ISTATPopAge87to88 | B97: ISTAT Medium Projection for Pop Age 87 to 88 | C97: Macroeconomic | D97: double(14,0) | I97: ISTAT Medium Projection for Pop Age 87 to 88 | J97: N | K97: 236268 | L97: 238404 | M97: 243411 | N97: 249372 | O97: 258026 | P97: 261607 | Q97: 265683 | R97: 290307 | S97: 280843 | T97: 279407 | U97: 287710 | V97: 294959
A98: ISTATPopAge88to89 | B98: ISTAT Medium Projection for Pop Age 88 to 89 | C98: Macroeconomic | D98: double(14,0) | I98: ISTAT Medium Projection for Pop Age 88 to 89 | J98: N | K98: 203475 | L98: 211167 | M98: 213407 | N98: 218234 | O98: 223899 | P98: 231992 | Q98: 235532 | R98: 239498 | S98: 262064 | T98: 253853 | U98: 252891 | V98: 260715
A99: ISTATPopAge89to90 | B99: ISTAT Medium Projection for Pop Age 89 to 90 | C99: Macroeconomic | D99: double(14,0) | I99: ISTAT Medium Projection for Pop Age 89 to 90 | J99: N | K99: 174856 | L99: 179167 | M99: 186238 | N99: 188519 | O99: 193103 | P99: 198414 | Q99: 205886 | R99: 209327 | S99: 213127 | T99: 233553 | U99: 226547 | V99: 226005
A100: ISTATPopAge90to91 | B100: ISTAT Medium Projection for Pop Age 90 to 91 | C100: Macroeconomic | D100: double(14,0) | I100: ISTAT Medium Projection for Pop Age 90 to 91 | J100: N | K100: 146395 | L100: 151385 | M100: 155399 | N100: 161804 | O100: 164064 | P100: 168345 | Q100: 173249 | R100: 180048 | S100: 183333 | T100: 186916 | U100: 205147 | V100: 199281
A101: ISTATPopAge91to92 | B101: ISTAT Medium Projection for Pop Age 91 to 92 | C101: Macroeconomic | D101: double(14,0) | I101: ISTAT Medium Projection for Pop Age 91 to 92 | J101: N | K101: 80927 | L101: 124531 | M101: 129034 | N101: 132713 | O101: 138433 | P101: 140623 | Q101: 144558 | R101: 149023 | S101: 155123 | T101: 158210 | U101: 161539 | V101: 177588
A102: ISTATPopAge92to93 | B102: ISTAT Medium Projection for Pop Age 92 to 93 | C102: Macroeconomic | D102: double(14,0) | I102: ISTAT Medium Projection for Pop Age 92 to 93 | J102: N | K102: 50679 | L102: 67644 | M102: 104386 | N102: 108396 | O102: 111727 | P102: 116775 | Q102: 118861 | R102: 122432 | S102: 126450 | T102: 131861 | U102: 134726 | V102: 137783
A103: ISTATPopAge93to94 | B103: ISTAT Medium Projection for Pop Age 93 to 94 | C103: Macroeconomic | D103: double(14,0) | I103: ISTAT Medium Projection for Pop Age 93 to 94 | J103: N | K103: 42930 | L103: 41632 | M103: 55743 | N103: 86285 | O103: 89816 | P103: 92797 | Q103: 97205 | R103: 99162 | S103: 102367 | T103: 105946 | U103: 110699 | V103: 113329
A104: ISTATPopAge94to95 | B104: ISTAT Medium Projection for Pop Age 94 to 95 | C104: Macroeconomic | D104: double(14,0) | I104: ISTAT Medium Projection for Pop Age 94 to 95 | J104: N | K104: 41801 | L104: 34626 | M104: 33677 | N104: 45247 | O104: 70272 | P104: 73344 | Q104: 75978 | R104: 79782 | S104: 81588 | T104: 84431 | U104: 87583 | V104: 91715
A105: ISTATPopAge95to96 | B105: ISTAT Medium Projection for Pop Age 95 to 96 | C105: Macroeconomic | D105: double(14,0) | I105: ISTAT Medium Projection for Pop Age 95 to 96 | J105: N | K105: 40846 | L105: 33015 | M105: 27433 | N105: 26765 | O105: 36095 | P105: 56262 | Q105: 58893 | R105: 61183 | S105: 64418 | T105: 66053 | U105: 68536 | V105: 71273
A106: ISTATPopAge96to97 | B106: ISTAT Medium Projection for Pop Age 96 to 97 | C106: Macroeconomic | D106: double(14,0) | I106: ISTAT Medium Projection for Pop Age 96 to 97 | J106: N | K106: 31707 | L106: 31497 | M106: 25538 | N106: 21291 | O106: 20844 | P106: 28222 | Q106: 44161 | R106: 46373 | S106: 48327 | T106: 51030 | U106: 52475 | V106: 54605
A107: ISTATPopAge97to98 | B107: ISTAT Medium Projection for Pop Age 97 to 98 | C107: Macroeconomic | D107: double(14,0) | I107: ISTAT Medium Projection for Pop Age 97 to 98 | J107: N | K107: 22819 | L107: 23842 | M107: 23773 | N107: 19342 | O107: 16183 | P107: 15902 | Q107: 21623 | R107: 33976 | S107: 35800 | T107: 37434 | U107: 39654 | V107: 40905
A108: ISTATPopAge98to99 | B108: ISTAT Medium Projection for Pop Age 98 to 99 | C108: Macroeconomic | D108: double(14,0) | I108: ISTAT Medium Projection for Pop Age 98 to 99 | J108: N | K108: 16270 | L108: 16728 | M108: 17556 | N108: 17579 | O108: 14357 | P108: 12061 | Q108: 11897 | R108: 16250 | S108: 25645 | T108: 27121 | U108: 28466 | V108: 30259
A109: ISTATPopAge99to100 | B109: ISTAT Medium Projection for Pop Age 99 to 100 | C109: Macroeconomic | D109: double(14,0) | I109: ISTAT Medium Projection for Pop Age 99 to 100 | J109: N | K109: 10648 | L109: 11589 | M109: 11976 | N109: 12628 | O109: 12703 | P109: 10417 | Q109: 8791 | R109: 8707 | S109: 11948 | T109: 18941 | U109: 20110 | V109: 21193
A110: ISTATPopAge100andOver | B110: ISTAT Medium Projection for Pop Age 100 and Over | C110: Macroeconomic | D110: double(14,0) | I110: ISTAT Medium Projection for Pop Age 100 and Over | J110: N | K110: 16145 | L110: 17430 | M110: 18981 | N110: 20331 | O110: 21738 | P110: 22787 | Q110: 21932 | R110: 20245 | S110: 19112 | T110: 20764 | U110: 27063 | V110: 32379
A111: // Population with Random Effects
A112: PopAge0to1 | B112: Pop Age 0 to 1 | C112: Macroeconomic | D112: double(14,0) | I112: ISTAT Medium Estimate | J112: N | K112: 555791 | L112: =L10 &" * ( 1 + normrandom_births[1] * 0.05)" -> 556526 * ( 1 + normrandom_births[1] * 0.05) | M112: =M10 &" * ( 1 + normrandom_births[1] * 0.05)" -> 551548 * ( 1 + normrandom_births[1] * 0.05) | N112: 546157 * ( 1 + normrandom_births[1] * 0.05) | O112: 540869 * ( 1 + normrandom_births[1] * 0.05) | P112: 535879 * ( 1 + normrandom_births[1] * 0.05) | Q112: 531383 * ( 1 + normrandom_births[1] * 0.05) | R112: 527419 * ( 1 + normrandom_births[1] * 0.05) | S112: 524029 * ( 1 + normrandom_births[1] * 0.05) | T112: 521194 * ( 1 + normrandom_births[1] * 0.05) | U112: 518885 * ( 1 + normrandom_births[1] * 0.05) | V112: 517053 * ( 1 + normrandom_births[1] * 0.05)
A113: PopAge1to2 | B113: Pop Age 1 to 2 | C113: Macroeconomic | D113: double(14,0) | I113: ISTAT Medium Estimate | J113: N | K113: 567607 | L113: =L11 &" * ( 1 + normrandom_deaths[1] * 0.01)" -> 558260 * ( 1 + normrandom_deaths[1] * 0.01) | M113: =M11 &" * ( 1 + normrandom_deaths[1] * 0.01)" -> 558839 * ( 1 + normrandom_deaths[1] * 0.01) | N113: 553753 * ( 1 + normrandom_deaths[1] * 0.01) | O113: 548277 * ( 1 + normrandom_deaths[1] * 0.01) | P113: 542921 * ( 1 + normrandom_deaths[1] * 0.01) | Q113: 537872 * ( 1 + normrandom_deaths[1] * 0.01) | R113: 533324 * ( 1 + normrandom_deaths[1] * 0.01) | S113: 529312 * ( 1 + normrandom_deaths[1] * 0.01) | T113: 525880 * ( 1 + normrandom_deaths[1] * 0.01) | U113: 523005 * ( 1 + normrandom_deaths[1] * 0.01) | V113: 520660 * ( 1 + normrandom_deaths[1] * 0.01)
A114: PopAge2to3 | B114: Pop Age 2 to 3 | C114: Macroeconomic | D114: double(14,0) | I114: ISTAT Medium Estimate | J114: N | K114: 577278 | L114: =L12 &" * ( 1 + normrandom_deaths[1] * 0.01)" -> 570231 * ( 1 + normrandom_deaths[1] * 0.01) | M114: 560726 * ( 1 + normrandom_deaths[1] * 0.01) | N114: 561192 * ( 1 + normrandom_deaths[1] * 0.01) | O114: 556019 * ( 1 + normrandom_deaths[1] * 0.01) | P114: 550472 * ( 1 + normrandom_deaths[1] * 0.01) | Q114: 545053 * ( 1 + normrandom_deaths[1] * 0.01) | R114: 539951 * ( 1 + normrandom_deaths[1] * 0.01) | S114: 535354 * ( 1 + normrandom_deaths[1] * 0.01) | T114: 531298 * ( 1 + normrandom_deaths[1] * 0.01) | U114: 527826 * ( 1 + normrandom_deaths[1] * 0.01) | V114: 524913 * ( 1 + normrandom_deaths[1] * 0.01)
A115: PopAge3to4 | B115: Pop Age 3 to 4 | C115: Macroeconomic | D115: double(14,0) | I115: ISTAT Medium Estimate | J115: N | K115: 572270 | L115: =L13 &" * ( 1 + normrandom_deaths[1] * 0.01)" -> 580019 * ( 1 + normrandom_deaths[1] * 0.01) | M115: 572812 * ( 1 + normrandom_deaths[1] * 0.01) | N115: 563193 * ( 1 + normrandom_deaths[1] * 0.01) | O115: 563570 * ( 1 + normrandom_deaths[1] * 0.01) | P115: 558325 * ( 1 + normrandom_deaths[1] * 0.01) | Q115: 552715 * ( 1 + normrandom_deaths[1] * 0.01) | R115: 547242 * ( 1 + normrandom_deaths[1] * 0.01) | S115: 542090 * ( 1 + normrandom_deaths[1] * 0.01) | T115: 537450 * ( 1 + normrandom_deaths[1] * 0.01) | U115: 533353 * ( 1 + normrandom_deaths[1] * 0.01) | V115: 529842 * ( 1 + normrandom_deaths[1] * 0.01)
A116: PopAge4to5 | B116: Pop Age 4 to 5 | C116: Macroeconomic | D116: double(14,0) | I116: ISTAT Medium Estimate | J116: N | K116: 573500 | L116: =L14 &" * ( 1 + normrandom_deaths[1] * 0.01)" -> 575119 * ( 1 + normrandom_deaths[1] * 0.01) | M116: 582704 * ( 1 + normrandom_deaths[1] * 0.01) | N116: 575381 * ( 1 + normrandom_deaths[1] * 0.01) | O116: 565674 * ( 1 + normrandom_deaths[1] * 0.01) | P116: 565977 * ( 1 + normrandom_deaths[1] * 0.01) | Q116: 560669 * ( 1 + normrandom_deaths[1] * 0.01) | R116: 555004 * ( 1 + normrandom_deaths[1] * 0.01) | S116: 549482 * ( 1 + normrandom_deaths[1] * 0.01) | T116: 544285 * ( 1 + normrandom_deaths[1] * 0.01) | U116: 539604 * ( 1 + normrandom_deaths[1] * 0.01) | V116: 535469 * ( 1 + normrandom_deaths[1] * 0.01)
A117: PopAge5to6 | B117: Pop Age 5 to 6 | C117: Macroeconomic | D117: double(14,0) | I117: ISTAT Medium Estimate | J117: N | K117: 569347 | L117: =L15 &" * ( 1 + normrandom_deaths[1] * 0.01)" -> 576446 * ( 1 + normrandom_deaths[1] * 0.01) | M117: 577900 * ( 1 + normrandom_deaths[1] * 0.01) | N117: 585367 * ( 1 + normrandom_deaths[1] * 0.01) | O117: 577955 * ( 1 + normrandom_deaths[1] * 0.01) | P117: 568175 * ( 1 + normrandom_deaths[1] * 0.01) | Q117: 568414 * ( 1 + normrandom_deaths[1] * 0.01) | R117: 563051 * ( 1 + normrandom_deaths[1] * 0.01) | S117: 557337 * ( 1 + normrandom_deaths[1] * 0.01) | T117: 551770 * ( 1 + normrandom_deaths[1] * 0.01) | U117: 546533 * ( 1 + normrandom_deaths[1] * 0.01) | V117: 541813 * ( 1 + normrandom_deaths[1] * 0.01)
A118: PopAge6to7 | B118: Pop Age 6 to 7 | C118: Macroeconomic | D118: double(14,0) | I118: ISTAT Medium Estimate | J118: N | K118: 575185 | L118: =L16 &" * ( 1 + normrandom_deaths[1] * 0.01)" -> 572384 * ( 1 + normrandom_deaths[1] * 0.01) | M118: 579316 * ( 1 + normrandom_deaths[1] * 0.01) | N118: 580652 * ( 1 + normrandom_deaths[1] * 0.01) | O118: 588029 * ( 1 + normrandom_deaths[1] * 0.01) | P118: 580543 * ( 1 + normrandom_deaths[1] * 0.01) | Q118: 570700 * ( 1 + normrandom_deaths[1] * 0.01) | R118: 570884 * ( 1 + normrandom_deaths[1] * 0.01) | S118: 565471 * ( 1 + normrandom_deaths[1] * 0.01) | T118: 559713 * ( 1 + normrandom_deaths[1] * 0.01) | U118: 554105 * ( 1 + normrandom_deaths[1] * 0.01) | V118: 548830 * ( 1 + normrandom_deaths[1] * 0.01)
A119: PopAge7to8 | B119: Pop Age 7 to 8 | C119: Macroeconomic | D119: double(14,0) | I119: ISTAT Medium Estimate | J119: N | K119: 568432 | L119: =L17 &" * ( 1 + normrandom_deaths[1] * 0.01)" -> 578306 * ( 1 + normrandom_deaths[1] * 0.01) | M119: 575338 * ( 1 + normrandom_deaths[1] * 0.01) | N119: 582152 * ( 1 + normrandom_deaths[1] * 0.01) | O119: 583398 * ( 1 + normrandom_deaths[1] * 0.01) | P119: 590699 * ( 1 + normrandom_deaths[1] * 0.01) | Q119: 583150 * ( 1 + normrandom_deaths[1] * 0.01) | R119: 573252 * ( 1 + normrandom_deaths[1] * 0.01) | S119: 573387 * ( 1 + normrandom_deaths[1] * 0.01) | T119: 567930 * ( 1 + normrandom_deaths[1] * 0.01) | U119: 562131 * ( 1 + normrandom_deaths[1] * 0.01) | V119: 556485 * ( 1 + normrandom_deaths[1] * 0.01)
A120: PopAge8to9 | B120: Pop Age 8 to 9 | C120: Macroeconomic | D120: double(14,0) | I120: ISTAT Medium Estimate | J120: N | K120: 563492 | L120: =L18 &" * ( 1 + normrandom_deaths[1] * 0.01)" -> 571635 * ( 1 + normrandom_deaths[1] * 0.01) | M120: 581340 * ( 1 + normrandom_deaths[1] * 0.01) | N120: 578254 * ( 1 + normrandom_deaths[1] * 0.01) | O120: 584977 * ( 1 + normrandom_deaths[1] * 0.01) | P120: 586148 * ( 1 + normrandom_deaths[1] * 0.01) | Q120: 593386 * ( 1 + normrandom_deaths[1] * 0.01) | R120: 585782 * ( 1 + normrandom_deaths[1] * 0.01) | S120: 575835 * ( 1 + normrandom_deaths[1] * 0.01) | T120: 575925 * ( 1 + normrandom_deaths[1] * 0.01) | U120: 570428 * ( 1 + normrandom_deaths[1] * 0.01) | V120: 564591 * ( 1 + normrandom_deaths[1] * 0.01)
A121: PopAge9to10 | B121: Pop Age 9 to 10 | C121: Macroeconomic | D121: double(14,0) | I121: ISTAT Medium Estimate | J121: N | K121: 565696 | L121: =L19 &" * ( 1 + normrandom_deaths[1] * 0.01)" -> 566774 * ( 1 + normrandom_deaths[1] * 0.01) | M121: 574748 * ( 1 + normrandom_deaths[1] * 0.01) | N121: 584334 * ( 1 + normrandom_deaths[1] * 0.01) | O121: 581157 * ( 1 + normrandom_deaths[1] * 0.01) | P121: 587805 * ( 1 + normrandom_deaths[1] * 0.01) | Q121: 588912 * ( 1 + normrandom_deaths[1] * 0.01) | R121: 596094 * ( 1 + normrandom_deaths[1] * 0.01) | S121: 588442 * ( 1 + normrandom_deaths[1] * 0.01) | T121: 578451 * ( 1 + normrandom_deaths[1] * 0.01) | U121: 578500 * ( 1 + normrandom_deaths[1] * 0.01) | V121: 572966 * ( 1 + normrandom_deaths[1] * 0.01)
A122: PopAge10to11 | B122: Pop Age 10 to 11 | C122: Macroeconomic | D122: double(14,0) | I122: ISTAT Medium Estimate | J122: N | K122: 573475 | L122: =L20 &" * ( 1 + normrandom_deaths[1] * 0.01)" -> 569055 * ( 1 + normrandom_deaths[1] * 0.01) | M122: 569963 * ( 1 + normrandom_deaths[1] * 0.01) | N122: 577817 * ( 1 + normrandom_deaths[1] * 0.01) | O122: 587311 * ( 1 + normrandom_deaths[1] * 0.01) | P122: 584060 * ( 1 + normrandom_deaths[1] * 0.01) | Q122: 590643 * ( 1 + normrandom_deaths[1] * 0.01) | R122: 591696 * ( 1 + normrandom_deaths[1] * 0.01) | S122: 598828 * ( 1 + normrandom_deaths[1] * 0.01) | T122: 591132 * ( 1 + normrandom_deaths[1] * 0.01) | U122: 581101 * ( 1 + normrandom_deaths[1] * 0.01) | V122: 581114 * ( 1 + normrandom_deaths[1] * 0.01)
A123: PopAge11to12 | B123: Pop Age 11 to 12 | C123: Macroeconomic | D123: double(14,0) | I123: ISTAT Medium Estimate | J123: N | K123: 563899 | L123: =L21 &" * ( 1 + normrandom_deaths[1] * 0.01)" -> 576908 * ( 1 + normrandom_deaths[1] * 0.01) | M123: 572317 * ( 1 + normrandom_deaths[1] * 0.01) | N123: 573106 * ( 1 + normrandom_deaths[1] * 0.01) | O123: 580868 * ( 1 + normrandom_deaths[1] * 0.01) | P123: 590286 * ( 1 + normrandom_deaths[1] * 0.01) | Q123: 586972 * ( 1 + normrandom_deaths[1] * 0.01) | R123: 593500 * ( 1 + normrandom_deaths[1] * 0.01) | S123: 594503 * ( 1 + normrandom_deaths[1] * 0.01) | T123: 601590 * ( 1 + normrandom_deaths[1] * 0.01) | U123: 593855 * ( 1 + normrandom_deaths[1] * 0.01) | V123: 583788 * ( 1 + normrandom_deaths[1] * 0.01)
A124: PopAge12to13 | B124: Pop Age 12 to 13 | C124: Macroeconomic | D124: double(14,0) | I124: ISTAT Medium Estimate | J124: N | K124: 562990 | L124: =L22 &" * ( 1 + normrandom_deaths[1] * 0.01)" -> 567409 * ( 1 + normrandom_deaths[1] * 0.01) | M124: 580245 * ( 1 + normrandom_deaths[1] * 0.01) | N124: 575534 * ( 1 + normrandom_deaths[1] * 0.01) | O124: 576231 * ( 1 + normrandom_deaths[1] * 0.01) | P124: 583917 * ( 1 + normrandom_deaths[1] * 0.01) | Q124: 593271 * ( 1 + normrandom_deaths[1] * 0.01) | R124: 589901 * ( 1 + normrandom_deaths[1] * 0.01) | S124: 596380 * ( 1 + normrandom_deaths[1] * 0.01) | T124: 597339 * ( 1 + normrandom_deaths[1] * 0.01) | U124: 604386 * ( 1 + normrandom_deaths[1] * 0.01) | V124: 596615 * ( 1 + normrandom_deaths[1] * 0.01)
A125: PopAge13to14 | B125: Pop Age 13 to 14 | C125: Macroeconomic | D125: double(14,0) | I125: ISTAT Medium Estimate | J125: N | K125: 561318 | L125: =L23 &" * ( 1 + normrandom_deaths[1] * 0.01)" -> 566583 * ( 1 + normrandom_deaths[1] * 0.01) | M125: 570828 * ( 1 + normrandom_deaths[1] * 0.01) | N125: 583541 * ( 1 + normrandom_deaths[1] * 0.01) | O125: 578738 * ( 1 + normrandom_deaths[1] * 0.01) | P125: 579359 * ( 1 + normrandom_deaths[1] * 0.01) | Q125: 586980 * ( 1 + normrandom_deaths[1] * 0.01) | R125: 596278 * ( 1 + normrandom_deaths[1] * 0.01) | S125: 592859 * ( 1 + normrandom_deaths[1] * 0.01) | T125: 599293 * ( 1 + normrandom_deaths[1] * 0.01) | U125: 600213 * ( 1 + normrandom_deaths[1] * 0.01) | V125: 607222 * ( 1 + normrandom_deaths[1] * 0.01)
A126: PopAge14to15 | B126: Pop Age 14 to 15 | C126: Macroeconomic | D126: double(14,0) | I126: ISTAT Medium Estimate | J126: N | K126: 562942 | L126: =L24 &" * ( 1 + normrandom_deaths[1] * 0.01)" -> 565013 * ( 1 + normrandom_deaths[1] * 0.01) | M126: 570100 * ( 1 + normrandom_deaths[1] * 0.01) | N126: 574221 * ( 1 + normrandom_deaths[1] * 0.01) | O126: 586838 * ( 1 + normrandom_deaths[1] * 0.01) | P126: 581959 * ( 1 + normrandom_deaths[1] * 0.01) | Q126: 582515 * ( 1 + normrandom_deaths[1] * 0.01) | R126: 590080 * ( 1 + normrandom_deaths[1] * 0.01) | S126: 599327 * ( 1 + normrandom_deaths[1] * 0.01) | T126: 595865 * ( 1 + normrandom_deaths[1] * 0.01) | U126: 602258 * ( 1 + normrandom_deaths[1] * 0.01) | V126: 603141 * ( 1 + normrandom_deaths[1] * 0.01)
A127: PopAge15to16 | B127: Pop Age 15 to 16 | C127: Macroeconomic | D127: double(14,0) | I127: ISTAT Medium Estimate | J127: N | K127: 562402 | L127: =L25 &" * ( 1 + normrandom_deaths[1] * 0.01)" -> 566786 * ( 1 + normrandom_deaths[1] * 0.01) | M127: 568673 * ( 1 + normrandom_deaths[1] * 0.01) | N127: 573632 * ( 1 + normrandom_deaths[1] * 0.01) | O127: 577656 * ( 1 + normrandom_deaths[1] * 0.01) | P127: 590192 * ( 1 + normrandom_deaths[1] * 0.01) | Q127: 585248 * ( 1 + normrandom_deaths[1] * 0.01) | R127: 585747 * ( 1 + normrandom_deaths[1] * 0.01) | S127: 593261 * ( 1 + normrandom_deaths[1] * 0.01) | T127: 602461 * ( 1 + normrandom_deaths[1] * 0.01) | U127: 598959 * ( 1 + normrandom_deaths[1] * 0.01) | V127: 605314 * ( 1 + normrandom_deaths[1] * 0.01)
A128: PopAge16to17 | B128: Pop Age 16 to 17 | C128: Macroeconomic | D128: double(14,0) | I128: ISTAT Medium Estimate | J128: N | K128: 570268 | L128: =L26 &" * ( 1 + normrandom_deaths[1] * 0.01)" -> 566500 * ( 1 + normrandom_deaths[1] * 0.01) | M128: 570689 * ( 1 + normrandom_deaths[1] * 0.01) | N128: 572442 * ( 1 + normrandom_deaths[1] * 0.01) | O128: 577298 * ( 1 + normrandom_deaths[1] * 0.01) | P128: 581238 * ( 1 + normrandom_deaths[1] * 0.01) | Q128: 593702 * ( 1 + normrandom_deaths[1] * 0.01) | R128: 588699 * ( 1 + normrandom_deaths[1] * 0.01) | S128: 589146 * ( 1 + normrandom_deaths[1] * 0.01) | T128: 596611 * ( 1 + normrandom_deaths[1] * 0.01) | U128: 605767 * ( 1 + normrandom_deaths[1] * 0.01) | V128: 602226 * ( 1 + normrandom_deaths[1] * 0.01)
A129: PopAge17to18 | B129: Pop Age 17 to 18 | C129: Macroeconomic | D129: double(14,0) | I129: ISTAT Medium Estimate | J129: N | K129: 583922 | L129: =L27 &" * ( 1 + normrandom_deaths[1] * 0.01)" -> 574807 * ( 1 + normrandom_deaths[1] * 0.01) | M129: 570827 * ( 1 + normrandom_deaths[1] * 0.01) | N129: 574869 * ( 1 + normrandom_deaths[1] * 0.01) | O129: 576509 * ( 1 + normrandom_deaths[1] * 0.01) | P129: 581273 * ( 1 + normrandom_deaths[1] * 0.01) | Q129: 585137 * ( 1 + normrandom_deaths[1] * 0.01) | R129: 597532 * ( 1 + normrandom_deaths[1] * 0.01) | S129: 592474 * ( 1 + normrandom_deaths[1] * 0.01) | T129: 592869 * ( 1 + normrandom_deaths[1] * 0.01) | U129: 600286 * ( 1 + normrandom_deaths[1] * 0.01) | V129: 609397 * ( 1 + normrandom_deaths[1] * 0.01)
A130: PopAge18to19 | B130: Pop Age 18 to 19 | C130: Macroeconomic | D130: double(14,0) | I130: ISTAT Medium Estimate | J130: N | K130: 608040 | L130: =L28 &" * ( 1 + normrandom_deaths[1] * 0.01)" -> 589168 * ( 1 + normrandom_deaths[1] * 0.01) | M130: 579813 * ( 1 + normrandom_deaths[1] * 0.01) | N130: 575666 * ( 1 + normrandom_deaths[1] * 0.01) | O130: 579577 * ( 1 + normrandom_deaths[1] * 0.01) | P130: 581114 * ( 1 + normrandom_deaths[1] * 0.01) | Q130: 585790 * ( 1 + normrandom_deaths[1] * 0.01) | R130: 589578 * ( 1 + normrandom_deaths[1] * 0.01) | S130: 601904 * ( 1 + normrandom_deaths[1] * 0.01) | T130: 596789 * ( 1 + normrandom_deaths[1] * 0.01) | U130: 597131 * ( 1 + normrandom_deaths[1] * 0.01) | V130: 604497 * ( 1 + normrandom_deaths[1] * 0.01)
A131: PopAge19to20 | B131: Pop Age 19 to 20 | C131: Macroeconomic | D131: double(14,0) | I131: ISTAT Medium Estimate | J131: N | K131: 609985 | L131: =L29 &" * ( 1 + normrandom_deaths[1] * 0.01)" -> 614271 * ( 1 + normrandom_deaths[1] * 0.01) | M131: 595119 * ( 1 + normrandom_deaths[1] * 0.01) | N131: 585569 * ( 1 + normrandom_deaths[1] * 0.01) | O131: 581272 * ( 1 + normrandom_deaths[1] * 0.01) | P131: 585060 * ( 1 + normrandom_deaths[1] * 0.01) | Q131: 586494 * ( 1 + normrandom_deaths[1] * 0.01) | R131: 591080 * ( 1 + normrandom_deaths[1] * 0.01) | S131: 594790 * ( 1 + normrandom_deaths[1] * 0.01) | T131: 607042 * ( 1 + normrandom_deaths[1] * 0.01) | U131: 601867 * ( 1 + normrandom_deaths[1] * 0.01) | V131: 602153 * ( 1 + normrandom_deaths[1] * 0.01)
A132: PopAge20to21 | B132: Pop Age 20 to 21 | C132: Macroeconomic | D132: double(14,0) | I132: ISTAT Medium Estimate | J132: N | K132: 621128 | L132: =L30 &" * ( 1 + normrandom_deaths[1] * 0.01)" -> 617430 * ( 1 + normrandom_deaths[1] * 0.01) | M132: 621373 * ( 1 + normrandom_deaths[1] * 0.01) | N132: 601994 * ( 1 + normrandom_deaths[1] * 0.01) | O132: 592267 * ( 1 + normrandom_deaths[1] * 0.01) | P132: 587827 * ( 1 + normrandom_deaths[1] * 0.01) | Q132: 591491 * ( 1 + normrandom_deaths[1] * 0.01) | R132: 592819 * ( 1 + normrandom_deaths[1] * 0.01) | S132: 597311 * ( 1 + normrandom_deaths[1] * 0.01) | T132: 600938 * ( 1 + normrandom_deaths[1] * 0.01) | U132: 613110 * ( 1 + normrandom_deaths[1] * 0.01) | V132: 607869 * ( 1 + normrandom_deaths[1] * 0.01)
A133: PopAge21to22 | B133: Pop Age 21 to 22 | C133: Macroeconomic | D133: double(14,0) | I133: ISTAT Medium Estimate | J133: N | K133: 620783 | L133: =L31 &" * ( 1 + normrandom_deaths[1] * 0.01)" -> 629873 * ( 1 + normrandom_deaths[1] * 0.01) | M133: 625775 * ( 1 + normrandom_deaths[1] * 0.01) | N133: 629439 * ( 1 + normrandom_deaths[1] * 0.01) | O133: 609857 * ( 1 + normrandom_deaths[1] * 0.01) | P133: 599964 * ( 1 + normrandom_deaths[1] * 0.01) | Q133: 595381 * ( 1 + normrandom_deaths[1] * 0.01) | R133: 598920 * ( 1 + normrandom_deaths[1] * 0.01) | S133: 600138 * ( 1 + normrandom_deaths[1] * 0.01) | T133: 604531 * ( 1 + normrandom_deaths[1] * 0.01) | U133: 608069 * ( 1 + normrandom_deaths[1] * 0.01) | V133: 620155 * ( 1 + normrandom_deaths[1] * 0.01)
A134: PopAge22to23 | B134: Pop Age 22 to 23 | C134: Macroeconomic | D134: double(14,0) | I134: ISTAT Medium Estimate | J134: N | K134: 634686 | L134: =L32 &" * ( 1 + normrandom_deaths[1] * 0.01)" -> 630769 * ( 1 + normrandom_deaths[1] * 0.01) | M134: 639394 * ( 1 + normrandom_deaths[1] * 0.01) | N134: 634979 * ( 1 + normrandom_deaths[1] * 0.01) | O134: 638399 * ( 1 + normrandom_deaths[1] * 0.01) | P134: 618629 * ( 1 + normrandom_deaths[1] * 0.01) | Q134: 608575 * ( 1 + normrandom_deaths[1] * 0.01) | R134: 603850 * ( 1 + normrandom_deaths[1] * 0.01) | S134: 607262 * ( 1 + normrandom_deaths[1] * 0.01) | T134: 608367 * ( 1 + normrandom_deaths[1] * 0.01) | U134: 612655 * ( 1 + normrandom_deaths[1] * 0.01) | V134: 616099 * ( 1 + normrandom_deaths[1] * 0.01)
A135: PopAge23to24 | B135: Pop Age 23 to 24 | C135: Macroeconomic | D135: double(14,0) | I135: ISTAT Medium Estimate | J135: N | K135: 624521 | L135: =L33 &" * ( 1 + normrandom_deaths[1] * 0.01)" -> 645706 * ( 1 + normrandom_deaths[1] * 0.01) | M135: 641279 * ( 1 + normrandom_deaths[1] * 0.01) | N135: 649543 * ( 1 + normrandom_deaths[1] * 0.01) | O135: 644858 * ( 1 + normrandom_deaths[1] * 0.01) | P135: 648056 * ( 1 + normrandom_deaths[1] * 0.01) | Q135: 628111 * ( 1 + normrandom_deaths[1] * 0.01) | R135: 617900 * ( 1 + normrandom_deaths[1] * 0.01) | S135: 613036 * ( 1 + normrandom_deaths[1] * 0.01) | T135: 616319 * ( 1 + normrandom_deaths[1] * 0.01) | U135: 617309 * ( 1 + normrandom_deaths[1] * 0.01) | V135: 621490 * ( 1 + normrandom_deaths[1] * 0.01)
A136: PopAge24to25 | B136: Pop Age 24 to 25 | C136: Macroeconomic | D136: double(14,0) | I136: ISTAT Medium Estimate | J136: N | K136: 633498 | L136: =L34 &" * ( 1 + normrandom_deaths[1] * 0.01)" -> 636294 * ( 1 + normrandom_deaths[1] * 0.01) | M136: 656913 * ( 1 + normrandom_deaths[1] * 0.01) | N136: 652102 * ( 1 + normrandom_deaths[1] * 0.01) | O136: 660067 * ( 1 + normrandom_deaths[1] * 0.01) | P136: 655143 * ( 1 + normrandom_deaths[1] * 0.01) | Q136: 658138 * ( 1 + normrandom_deaths[1] * 0.01) | R136: 638027 * ( 1 + normrandom_deaths[1] * 0.01) | S136: 627666 * ( 1 + normrandom_deaths[1] * 0.01) | T136: 622665 * ( 1 + normrandom_deaths[1] * 0.01) | U136: 625821 * ( 1 + normrandom_deaths[1] * 0.01) | V136: 626695 * ( 1 + normrandom_deaths[1] * 0.01)
A137: PopAge25to26 | B137: Pop Age 25 to 26 | C137: Macroeconomic | D137: double(14,0) | I137: ISTAT Medium Estimate | J137: N | K137: 658140 | L137: =L35 &" * ( 1 + normrandom_deaths[1] * 0.01)" -> 645677 * ( 1 + normrandom_deaths[1] * 0.01) | M137: 647887 * ( 1 + normrandom_deaths[1] * 0.01) | N137: 668087 * ( 1 + normrandom_deaths[1] * 0.01) | O137: 662966 * ( 1 + normrandom_deaths[1] * 0.01) | P137: 670672 * ( 1 + normrandom_deaths[1] * 0.01) | Q137: 665536 * ( 1 + normrandom_deaths[1] * 0.01) | R137: 668344 * ( 1 + normrandom_deaths[1] * 0.01) | S137: 648078 * ( 1 + normrandom_deaths[1] * 0.01) | T137: 637573 * ( 1 + normrandom_deaths[1] * 0.01) | U137: 632440 * ( 1 + normrandom_deaths[1] * 0.01) | V137: 635472 * ( 1 + normrandom_deaths[1] * 0.01)
A138: PopAge26to27 | B138: Pop Age 26 to 27 | C138: Macroeconomic | D138: double(14,0) | I138: ISTAT Medium Estimate | J138: N | K138: 674585 | L138: =L36 &" * ( 1 + normrandom_deaths[1] * 0.01)" -> 670382 * ( 1 + normrandom_deaths[1] * 0.01) | M138: 657323 * ( 1 + normrandom_deaths[1] * 0.01) | N138: 659112 * ( 1 + normrandom_deaths[1] * 0.01) | O138: 678979 * ( 1 + normrandom_deaths[1] * 0.01) | P138: 673597 * ( 1 + normrandom_deaths[1] * 0.01) | Q138: 681077 * ( 1 + normrandom_deaths[1] * 0.01) | R138: 675749 * ( 1 + normrandom_deaths[1] * 0.01) | S138: 678385 * ( 1 + normrandom_deaths[1] * 0.01) | T138: 657975 * ( 1 + normrandom_deaths[1] * 0.01) | U138: 647336 * ( 1 + normrandom_deaths[1] * 0.01) | V138: 642075 * ( 1 + normrandom_deaths[1] * 0.01)
A139: PopAge27to28 | B139: Pop Age 27 to 28 | C139: Macroeconomic | D139: double(14,0) | I139: ISTAT Medium Estimate | J139: N | K139: 691904 | L139: =L37 &" * ( 1 + normrandom_deaths[1] * 0.01)" -> 686597 * ( 1 + normrandom_deaths[1] * 0.01) | M139: 681791 * ( 1 + normrandom_deaths[1] * 0.01) | N139: 668315 * ( 1 + normrandom_deaths[1] * 0.01) | O139: 669776 * ( 1 + normrandom_deaths[1] * 0.01) | P139: 689366 * ( 1 + normrandom_deaths[1] * 0.01) | Q139: 683762 * ( 1 + normrandom_deaths[1] * 0.01) | R139: 691041 * ( 1 + normrandom_deaths[1] * 0.01) | S139: 685541 * ( 1 + normrandom_deaths[1] * 0.01) | T139: 688020 * ( 1 + normrandom_deaths[1] * 0.01) | U139: 667477 * ( 1 + normrandom_deaths[1] * 0.01) | V139: 656710 * ( 1 + normrandom_deaths[1] * 0.01)
A140: PopAge28to29 | B140: Pop Age 28 to 29 | C140: Macroeconomic | D140: double(14,0) | I140: ISTAT Medium Estimate | J140: N | K140: 718890 | L140: =L38 &" * ( 1 + normrandom_deaths[1] * 0.01)" -> 703452 * ( 1 + normrandom_deaths[1] * 0.01) | M140: 697550 * ( 1 + normrandom_deaths[1] * 0.01) | N140: 692328 * ( 1 + normrandom_deaths[1] * 0.01) | O140: 678535 * ( 1 + normrandom_deaths[1] * 0.01) | P140: 679730 * ( 1 + normrandom_deaths[1] * 0.01) | Q140: 699085 * ( 1 + normrandom_deaths[1] * 0.01) | R140: 693288 * ( 1 + normrandom_deaths[1] * 0.01) | S140: 700389 * ( 1 + normrandom_deaths[1] * 0.01) | T140: 694735 * ( 1 + normrandom_deaths[1] * 0.01) | U140: 697069 * ( 1 + normrandom_deaths[1] * 0.01) | V140: 676405 * ( 1 + normrandom_deaths[1] * 0.01)
A141: PopAge29to30 | B141: Pop Age 29 to 30 | C141: Macroeconomic | D141: double(14,0) | I141: ISTAT Medium Estimate | J141: N | K141: 727747 | L141: =L39 &" * ( 1 + normrandom_deaths[1] * 0.01)" -> 729806 * ( 1 + normrandom_deaths[1] * 0.01) | M141: 713795 * ( 1 + normrandom_deaths[1] * 0.01) | N141: 707489 * ( 1 + normrandom_deaths[1] * 0.01) | O141: 701954 * ( 1 + normrandom_deaths[1] * 0.01) | P141: 687910 * ( 1 + normrandom_deaths[1] * 0.01) | Q141: 688885 * ( 1 + normrandom_deaths[1] * 0.01) | R141: 708038 * ( 1 + normrandom_deaths[1] * 0.01) | S141: 702072 * ( 1 + normrandom_deaths[1] * 0.01) | T141: 709016 * ( 1 + normrandom_deaths[1] * 0.01) | U141: 703223 * ( 1 + normrandom_deaths[1] * 0.01) | V141: 705427 * ( 1 + normrandom_deaths[1] * 0.01)
A142: PopAge30to31 | B142: Pop Age 30 to 31 | C142: Macroeconomic | D142: double(14,0) | I142: ISTAT Medium Estimate | J142: N | K142: 747662 | L142: =L40 &" * ( 1 + normrandom_deaths[1] * 0.01)" -> 737946 * ( 1 + normrandom_deaths[1] * 0.01) | M142: 739446 * ( 1 + normrandom_deaths[1] * 0.01) | N142: 723051 * ( 1 + normrandom_deaths[1] * 0.01) | O142: 716446 * ( 1 + normrandom_deaths[1] * 0.01) | P142: 710666 * ( 1 + normrandom_deaths[1] * 0.01) | Q142: 696417 * ( 1 + normrandom_deaths[1] * 0.01) | R142: 697207 * ( 1 + normrandom_deaths[1] * 0.01) | S142: 716183 * ( 1 + normrandom_deaths[1] * 0.01) | T142: 710072 * ( 1 + normrandom_deaths[1] * 0.01) | U142: 716875 * ( 1 + normrandom_deaths[1] * 0.01) | V142: 710959 * ( 1 + normrandom_deaths[1] * 0.01)
A143: PopAge31to32 | B143: Pop Age 31 to 32 | C143: Macroeconomic | D143: double(14,0) | I143: ISTAT Medium Estimate | J143: N | K143: 773723 | L143: =L41 &" * ( 1 + normrandom_deaths[1] * 0.01)" -> 757096 * ( 1 + normrandom_deaths[1] * 0.01) | M143: 746857 * ( 1 + normrandom_deaths[1] * 0.01) | N143: 747984 * ( 1 + normrandom_deaths[1] * 0.01) | O143: 731310 * ( 1 + normrandom_deaths[1] * 0.01) | P143: 724472 * ( 1 + normrandom_deaths[1] * 0.01) | Q143: 718494 * ( 1 + normrandom_deaths[1] * 0.01) | R143: 704075 * ( 1 + normrandom_deaths[1] * 0.01) | S143: 704707 * ( 1 + normrandom_deaths[1] * 0.01) | T143: 723531 * ( 1 + normrandom_deaths[1] * 0.01) | U143: 717293 * ( 1 + normrandom_deaths[1] * 0.01) | V143: 723971 * ( 1 + normrandom_deaths[1] * 0.01)
A144: PopAge32to33 | B144: Pop Age 32 to 33 | C144: Macroeconomic | D144: double(14,0) | I144: ISTAT Medium Estimate | J144: N | K144: 816637 | L144: =L42 &" * ( 1 + normrandom_deaths[1] * 0.01)" -> 782393 * ( 1 + normrandom_deaths[1] * 0.01) | M144: 765277 * ( 1 + normrandom_deaths[1] * 0.01) | N144: 754695 * ( 1 + normrandom_deaths[1] * 0.01) | O144: 755549 * ( 1 + normrandom_deaths[1] * 0.01) | P144: 738661 * ( 1 + normrandom_deaths[1] * 0.01) | Q144: 731636 * ( 1 + normrandom_deaths[1] * 0.01) | R144: 725495 * ( 1 + normrandom_deaths[1] * 0.01) | S144: 710934 * ( 1 + normrandom_deaths[1] * 0.01) | T144: 711431 * ( 1 + normrandom_deaths[1] * 0.01) | U144: 730121 * ( 1 + normrandom_deaths[1] * 0.01) | V144: 723772 * ( 1 + normrandom_deaths[1] * 0.01)
A145: PopAge33to34 | B145: Pop Age 33 to 34 | C145: Macroeconomic | D145: double(14,0) | I145: ISTAT Medium Estimate | J145: N | K145: 843340 | L145: =L43 &" * ( 1 + normrandom_deaths[1] * 0.01)" -> 824567 * ( 1 + normrandom_deaths[1] * 0.01) | M145: 789878 * ( 1 + normrandom_deaths[1] * 0.01) | N145: 772444 * ( 1 + normrandom_deaths[1] * 0.01) | O145: 761614 * ( 1 + normrandom_deaths[1] * 0.01) | P145: 762258 * ( 1 + normrandom_deaths[1] * 0.01) | Q145: 745200 * ( 1 + normrandom_deaths[1] * 0.01) | R145: 738024 * ( 1 + normrandom_deaths[1] * 0.01) | S145: 731746 * ( 1 + normrandom_deaths[1] * 0.01) | T145: 717066 * ( 1 + normrandom_deaths[1] * 0.01) | U145: 717447 * ( 1 + normrandom_deaths[1] * 0.01) | V145: 736019 * ( 1 + normrandom_deaths[1] * 0.01)
A146: PopAge34to35 | B146: Pop Age 34 to 35 | C146: Macroeconomic | D146: double(14,0) | I146: ISTAT Medium Estimate | J146: N | K146: 880817 | L146: =L44 &" * ( 1 + normrandom_deaths[1] * 0.01)" -> 850595 * ( 1 + normrandom_deaths[1] * 0.01) | M146: 831399 * ( 1 + normrandom_deaths[1] * 0.01) | N146: 796427 * ( 1 + normrandom_deaths[1] * 0.01) | O146: 778765 * ( 1 + normrandom_deaths[1] * 0.01) | P146: 767747 * ( 1 + normrandom_deaths[1] * 0.01) | Q146: 768224 * ( 1 + normrandom_deaths[1] * 0.01) | R146: 751030 * ( 1 + normrandom_deaths[1] * 0.01) | S146: 743727 * ( 1 + normrandom_deaths[1] * 0.01) | T146: 737335 * ( 1 + normrandom_deaths[1] * 0.01) | U146: 722554 * ( 1 + normrandom_deaths[1] * 0.01) | V146: 722833 * ( 1 + normrandom_deaths[1] * 0.01)
A147: PopAge35to36 | B147: Pop Age 35 to 36 | C147: Macroeconomic | D147: double(14,0) | I147: ISTAT Medium Estimate | J147: N | K147: 925300 | L147: =L45 &" * ( 1 + normrandom_deaths[1] * 0.01)" -> 887455 * ( 1 + normrandom_deaths[1] * 0.01) | M147: 856848 * ( 1 + normrandom_deaths[1] * 0.01) | N147: 837379 * ( 1 + normrandom_deaths[1] * 0.01) | O147: 802209 * ( 1 + normrandom_deaths[1] * 0.01) | P147: 784376 * ( 1 + normrandom_deaths[1] * 0.01) | Q147: 773211 * ( 1 + normrandom_deaths[1] * 0.01) | R147: 773551 * ( 1 + normrandom_deaths[1] * 0.01) | S147: 756245 * ( 1 + normrandom_deaths[1] * 0.01) | T147: 748837 * ( 1 + normrandom_deaths[1] * 0.01) | U147: 742348 * ( 1 + normrandom_deaths[1] * 0.01) | V147: 727481 * ( 1 + normrandom_deaths[1] * 0.01)
A148: PopAge36to37 | B148: Pop Age 36 to 37 | C148: Macroeconomic | D148: double(14,0) | I148: ISTAT Medium Estimate | J148: N | K148: 962370 | L148: =L46 &" * ( 1 + normrandom_deaths[1] * 0.01)" -> 931375 * ( 1 + normrandom_deaths[1] * 0.01) | M148: 893181 * ( 1 + normrandom_deaths[1] * 0.01) | N148: 862329 * ( 1 + normrandom_deaths[1] * 0.01) | O148: 842668 * ( 1 + normrandom_deaths[1] * 0.01) | P148: 807353 * ( 1 + normrandom_deaths[1] * 0.01) | Q148: 789388 * ( 1 + normrandom_deaths[1] * 0.01) | R148: 778104 * ( 1 + normrandom_deaths[1] * 0.01) | S148: 778331 * ( 1 + normrandom_deaths[1] * 0.01) | T148: 760933 * ( 1 + normrandom_deaths[1] * 0.01) | U148: 753436 * ( 1 + normrandom_deaths[1] * 0.01) | V148: 746865 * ( 1 + normrandom_deaths[1] * 0.01)
A149: PopAge37to38 | B149: Pop Age 37 to 38 | C149: Macroeconomic | D149: double(14,0) | I149: ISTAT Medium Estimate | J149: N | K149: 956278 | L149: =L47 &" * ( 1 + normrandom_deaths[1] * 0.01)" -> 967945 * ( 1 + normrandom_deaths[1] * 0.01) | M149: 936622 * ( 1 + normrandom_deaths[1] * 0.01) | N149: 898210 * ( 1 + normrandom_deaths[1] * 0.01) | O149: 867189 * ( 1 + normrandom_deaths[1] * 0.01) | P149: 847386 * ( 1 + normrandom_deaths[1] * 0.01) | Q149: 811961 * ( 1 + normrandom_deaths[1] * 0.01) | R149: 793891 * ( 1 + normrandom_deaths[1] * 0.01) | S149: 782511 * ( 1 + normrandom_deaths[1] * 0.01) | T149: 782644 * ( 1 + normrandom_deaths[1] * 0.01) | U149: 765171 * ( 1 + normrandom_deaths[1] * 0.01) | V149: 757599 * ( 1 + normrandom_deaths[1] * 0.01)
A150: PopAge38to39 | B150: Pop Age 38 to 39 | C150: Macroeconomic | D150: double(14,0) | I150: ISTAT Medium Estimate | J150: N | K150: 966262 | L150: =L48 &" * ( 1 + normrandom_deaths[1] * 0.01)" -> 961431 * ( 1 + normrandom_deaths[1] * 0.01) | M150: 972764 * ( 1 + normrandom_deaths[1] * 0.01) | N150: 941236 * ( 1 + normrandom_deaths[1] * 0.01) | O150: 902678 * ( 1 + normrandom_deaths[1] * 0.01) | P150: 871534 * ( 1 + normrandom_deaths[1] * 0.01) | Q150: 851623 * ( 1 + normrandom_deaths[1] * 0.01) | R150: 816116 * ( 1 + normrandom_deaths[1] * 0.01) | S150: 797963 * ( 1 + normrandom_deaths[1] * 0.01) | T150: 786505 * ( 1 + normrandom_deaths[1] * 0.01) | U150: 786557 * ( 1 + normrandom_deaths[1] * 0.01) | V150: 769022 * ( 1 + normrandom_deaths[1] * 0.01)
A151: PopAge39to40 | B151: Pop Age 39 to 40 | C151: Macroeconomic | D151: double(14,0) | I151: ISTAT Medium Estimate | J151: N | K151: 977959 | L151: =L49 &" * ( 1 + normrandom_deaths[1] * 0.01)" -> 971018 * ( 1 + normrandom_deaths[1] * 0.01) | M151: 965889 * ( 1 + normrandom_deaths[1] * 0.01) | N151: 977004 * ( 1 + normrandom_deaths[1] * 0.01) | O151: 945338 * ( 1 + normrandom_deaths[1] * 0.01) | P151: 906677 * ( 1 + normrandom_deaths[1] * 0.01) | Q151: 875443 * ( 1 + normrandom_deaths[1] * 0.01) | R151: 855448 * ( 1 + normrandom_deaths[1] * 0.01) | S151: 819880 * ( 1 + normrandom_deaths[1] * 0.01) | T151: 801660 * ( 1 + normrandom_deaths[1] * 0.01) | U151: 790138 * ( 1 + normrandom_deaths[1] * 0.01) | V151: 790123 * ( 1 + normrandom_deaths[1] * 0.01)
A152: PopAge40to41 | B152: Pop Age 40 to 41 | C152: Macroeconomic | D152: double(14,0) | I152: ISTAT Medium Estimate | J152: N | K152: 969446 | L152: =L50 &" * ( 1 + normrandom_deaths[1] * 0.01)" -> 982345 * ( 1 + normrandom_deaths[1] * 0.01) | M152: 975129 * ( 1 + normrandom_deaths[1] * 0.01) | N152: 969809 * ( 1 + normrandom_deaths[1] * 0.01) | O152: 980766 * ( 1 + normrandom_deaths[1] * 0.01) | P152: 949004 * ( 1 + normrandom_deaths[1] * 0.01) | Q152: 910272 * ( 1 + normrandom_deaths[1] * 0.01) | R152: 878972 * ( 1 + normrandom_deaths[1] * 0.01) | S152: 858913 * ( 1 + normrandom_deaths[1] * 0.01) | T152: 823300 * ( 1 + normrandom_deaths[1] * 0.01) | U152: 805026 * ( 1 + normrandom_deaths[1] * 0.01) | V152: 793452 * ( 1 + normrandom_deaths[1] * 0.01)
A153: PopAge41to42 | B153: Pop Age 41 to 42 | C153: Macroeconomic | D153: double(14,0) | I153: ISTAT Medium Estimate | J153: N | K153: 994831 | L153: =L51 &" * ( 1 + normrandom_deaths[1] * 0.01)" -> 973501 * ( 1 + normrandom_deaths[1] * 0.01) | M153: 986128 * ( 1 + normrandom_deaths[1] * 0.01) | N153: 978738 * ( 1 + normrandom_deaths[1] * 0.01) | O153: 973286 * ( 1 + normrandom_deaths[1] * 0.01) | P153: 984124 * ( 1 + normrandom_deaths[1] * 0.01) | Q153: 952294 * ( 1 + normrandom_deaths[1] * 0.01) | R153: 913513 * ( 1 + normrandom_deaths[1] * 0.01) | S153: 882167 * ( 1 + normrandom_deaths[1] * 0.01) | T153: 862058 * ( 1 + normrandom_deaths[1] * 0.01) | U153: 826414 * ( 1 + normrandom_deaths[1] * 0.01) | V153: 808099 * ( 1 + normrandom_deaths[1] * 0.01)
A154: PopAge42to43 | B154: Pop Age 42 to 43 | C154: Macroeconomic | D154: double(14,0) | I154: ISTAT Medium Estimate | J154: N | K154: 985492 | L154: =L52 &" * ( 1 + normrandom_deaths[1] * 0.01)" -> 998536 * ( 1 + normrandom_deaths[1] * 0.01) | M154: 976985 * ( 1 + normrandom_deaths[1] * 0.01) | N154: 989435 * ( 1 + normrandom_deaths[1] * 0.01) | O154: 981926 * ( 1 + normrandom_deaths[1] * 0.01) | P154: 976379 * ( 1 + normrandom_deaths[1] * 0.01) | Q154: 987122 * ( 1 + normrandom_deaths[1] * 0.01) | R154: 955247 * ( 1 + normrandom_deaths[1] * 0.01) | S154: 916435 * ( 1 + normrandom_deaths[1] * 0.01) | T154: 885057 * ( 1 + normrandom_deaths[1] * 0.01) | U154: 864912 * ( 1 + normrandom_deaths[1] * 0.01) | V154: 829248 * ( 1 + normrandom_deaths[1] * 0.01)
A155: PopAge43to44 | B155: Pop Age 43 to 44 | C155: Macroeconomic | D155: double(14,0) | I155: ISTAT Medium Estimate | J155: N | K155: 989601 | L155: =L53 &" * ( 1 + normrandom_deaths[1] * 0.01)" -> 988884 * ( 1 + normrandom_deaths[1] * 0.01) | M155: 1001691 * ( 1 + normrandom_deaths[1] * 0.01) | N155: 980010 * ( 1 + normrandom_deaths[1] * 0.01) | O155: 992333 * ( 1 + normrandom_deaths[1] * 0.01) | P155: 984739 * ( 1 + normrandom_deaths[1] * 0.01) | Q155: 979122 * ( 1 + normrandom_deaths[1] * 0.01) | R155: 989791 * ( 1 + normrandom_deaths[1] * 0.01) | S155: 957887 * ( 1 + normrandom_deaths[1] * 0.01) | T155: 919060 * ( 1 + normrandom_deaths[1] * 0.01) | U155: 887661 * ( 1 + normrandom_deaths[1] * 0.01) | V155: 867490 * ( 1 + normrandom_deaths[1] * 0.01)
A156: PopAge44to45 | B156: Pop Age 44 to 45 | C156: Macroeconomic | D156: double(14,0) | I156: ISTAT Medium Estimate | J156: N | K156: 1001029 | L156: =L54 &" * ( 1 + normrandom_deaths[1] * 0.01)" -> 992665 * ( 1 + normrandom_deaths[1] * 0.01) | M156: 991742 * ( 1 + normrandom_deaths[1] * 0.01) | N156: 1004395 * ( 1 + normrandom_deaths[1] * 0.01) | O156: 982633 * ( 1 + normrandom_deaths[1] * 0.01) | P156: 994862 * ( 1 + normrandom_deaths[1] * 0.01) | Q156: 987207 * ( 1 + normrandom_deaths[1] * 0.01) | R156: 981538 * ( 1 + normrandom_deaths[1] * 0.01) | S156: 992146 * ( 1 + normrandom_deaths[1] * 0.01) | T156: 960228 * ( 1 + normrandom_deaths[1] * 0.01) | U156: 921397 * ( 1 + normrandom_deaths[1] * 0.01) | V156: 889991 * ( 1 + normrandom_deaths[1] * 0.01)
A157: PopAge45to46 | B157: Pop Age 45 to 46 | C157: Macroeconomic | D157: double(14,0) | I157: ISTAT Medium Estimate | J157: N | K157: 1000924 | L157: =L55 &" * ( 1 + normrandom_deaths[1] * 0.01)" -> 1003749 * ( 1 + normrandom_deaths[1] * 0.01) | M157: 995206 * ( 1 + normrandom_deaths[1] * 0.01) | N157: 994156 * ( 1 + normrandom_deaths[1] * 0.01) | O157: 1006700 * ( 1 + normrandom_deaths[1] * 0.01) | P157: 984890 * ( 1 + normrandom_deaths[1] * 0.01) | Q157: 997044 * ( 1 + normrandom_deaths[1] * 0.01) | R157: 989347 * ( 1 + normrandom_deaths[1] * 0.01) | S157: 983640 * ( 1 + normrandom_deaths[1] * 0.01) | T157: 994199 * ( 1 + normrandom_deaths[1] * 0.01) | U157: 962279 * ( 1 + normrandom_deaths[1] * 0.01) | V157: 923457 * ( 1 + normrandom_deaths[1] * 0.01)
A158: PopAge46to47 | B158: Pop Age 46 to 47 | C158: Macroeconomic | D158: double(14,0) | I158: ISTAT Medium Estimate | J158: N | K158: 1012102 | L158: =L56 &" * ( 1 + normrandom_deaths[1] * 0.01)" -> 1003312 * ( 1 + normrandom_deaths[1] * 0.01) | M158: 1005959 * ( 1 + normrandom_deaths[1] * 0.01) | N158: 997312 * ( 1 + normrandom_deaths[1] * 0.01) | O158: 996180 * ( 1 + normrandom_deaths[1] * 0.01) | P158: 1008642 * ( 1 + normrandom_deaths[1] * 0.01) | Q158: 986806 * ( 1 + normrandom_deaths[1] * 0.01) | R158: 998903 * ( 1 + normrandom_deaths[1] * 0.01) | S158: 991177 * ( 1 + normrandom_deaths[1] * 0.01) | T158: 985444 * ( 1 + normrandom_deaths[1] * 0.01) | U158: 995963 * ( 1 + normrandom_deaths[1] * 0.01) | V158: 964052 * ( 1 + normrandom_deaths[1] * 0.01)
A159: PopAge47to48 | B159: Pop Age 47 to 48 | C159: Macroeconomic | D159: double(14,0) | I159: ISTAT Medium Estimate | J159: N | K159: 950687 | L159: =L57 &" * ( 1 + normrandom_deaths[1] * 0.01)" -> 1014136 * ( 1 + normrandom_deaths[1] * 0.01) | M159: 1005200 * ( 1 + normrandom_deaths[1] * 0.01) | N159: 1007740 * ( 1 + normrandom_deaths[1] * 0.01) | O159: 999032 * ( 1 + normrandom_deaths[1] * 0.01) | P159: 997845 * ( 1 + normrandom_deaths[1] * 0.01) | Q159: 1010245 * ( 1 + normrandom_deaths[1] * 0.01) | R159: 988402 * ( 1 + normrandom_deaths[1] * 0.01) | S159: 1000452 * ( 1 + normrandom_deaths[1] * 0.01) | T159: 992710 * ( 1 + normrandom_deaths[1] * 0.01) | U159: 986962 * ( 1 + normrandom_deaths[1] * 0.01) | V159: 997449 * ( 1 + normrandom_deaths[1] * 0.01)
A160: PopAge48to49 | B160: Pop Age 48 to 49 | C160: Macroeconomic | D160: double(14,0) | I160: ISTAT Medium Estimate | J160: N | K160: 919794 | L160: =L58 &" * ( 1 + normrandom_deaths[1] * 0.01)" -> 952472 * ( 1 + normrandom_deaths[1] * 0.01) | M160: 1015672 * ( 1 + normrandom_deaths[1] * 0.01) | N160: 1006661 * ( 1 + normrandom_deaths[1] * 0.01) | O160: 1009133 * ( 1 + normrandom_deaths[1] * 0.01) | P160: 1000391 * ( 1 + normrandom_deaths[1] * 0.01) | Q160: 999169 * ( 1 + normrandom_deaths[1] * 0.01) | R160: 1011522 * ( 1 + normrandom_deaths[1] * 0.01) | S160: 989686 * ( 1 + normrandom_deaths[1] * 0.01) | T160: 1001701 * ( 1 + normrandom_deaths[1] * 0.01) | U160: 993952 * ( 1 + normrandom_deaths[1] * 0.01) | V160: 988197 * ( 1 + normrandom_deaths[1] * 0.01)
A161: PopAge49to50 | B161: Pop Age 49 to 50 | C161: Macroeconomic | D161: double(14,0) | I161: ISTAT Medium Estimate | J161: N | K161: 901283 | L161: =L59 &" * ( 1 + normrandom_deaths[1] * 0.01)" -> 921271 * ( 1 + normrandom_deaths[1] * 0.01) | M161: 953760 * ( 1 + normrandom_deaths[1] * 0.01) | N161: 1016769 * ( 1 + normrandom_deaths[1] * 0.01) | O161: 1007721 * ( 1 + normrandom_deaths[1] * 0.01) | P161: 1010151 * ( 1 + normrandom_deaths[1] * 0.01) | Q161: 1001396 * ( 1 + normrandom_deaths[1] * 0.01) | R161: 1000154 * ( 1 + normrandom_deaths[1] * 0.01) | S161: 1012471 * ( 1 + normrandom_deaths[1] * 0.01) | T161: 990655 * ( 1 + normrandom_deaths[1] * 0.01) | U161: 1002642 * ( 1 + normrandom_deaths[1] * 0.01) | V161: 994896 * ( 1 + normrandom_deaths[1] * 0.01)
A162: PopAge50to51 | B162: Pop Age 50 to 51 | C162: Macroeconomic | D162: double(14,0) | I162: ISTAT Medium Estimate | J162: N | K162: 873384 | L162: =L60 &" * ( 1 + normrandom_deaths[1] * 0.01)" -> 902405 * ( 1 + normrandom_deaths[1] * 0.01) | M162: 922237 * ( 1 + normrandom_deaths[1] * 0.01) | N162: 954595 * ( 1 + normrandom_deaths[1] * 0.01) | O162: 1017443 * ( 1 + normrandom_deaths[1] * 0.01) | P162: 1008383 * ( 1 + normrandom_deaths[1] * 0.01) | Q162: 1010790 * ( 1 + normrandom_deaths[1] * 0.01) | R162: 1002037 * ( 1 + normrandom_deaths[1] * 0.01) | S162: 1000787 * ( 1 + normrandom_deaths[1] * 0.01) | T162: 1013076 * ( 1 + normrandom_deaths[1] * 0.01) | U162: 991292 * ( 1 + normrandom_deaths[1] * 0.01) | V162: 1003258 * ( 1 + normrandom_deaths[1] * 0.01)
A163: PopAge51to52 | B163: Pop Age 51 to 52 | C163: Macroeconomic | D163: double(14,0) | I163: ISTAT Medium Estimate | J163: N | K163: 852870 | L163: =L61 &" * ( 1 + normrandom_deaths[1] * 0.01)" -> 874142 * ( 1 + normrandom_deaths[1] * 0.01) | M163: 902999 * ( 1 + normrandom_deaths[1] * 0.01) | N163: 922730 * ( 1 + normrandom_deaths[1] * 0.01) | O163: 954988 * ( 1 + normrandom_deaths[1] * 0.01) | P163: 1017688 * ( 1 + normrandom_deaths[1] * 0.01) | Q163: 1008637 * ( 1 + normrandom_deaths[1] * 0.01) | R163: 1011033 * ( 1 + normrandom_deaths[1] * 0.01) | S163: 1002295 * ( 1 + normrandom_deaths[1] * 0.01) | T163: 1001047 * ( 1 + normrandom_deaths[1] * 0.01) | U163: 1013317 * ( 1 + normrandom_deaths[1] * 0.01) | V163: 991574 * ( 1 + normrandom_deaths[1] * 0.01)
A164: PopAge52to53 | B164: Pop Age 52 to 53 | C164: Macroeconomic | D164: double(14,0) | I164: ISTAT Medium Estimate | J164: N | K164: 815381 | L164: =L62 &" * ( 1 + normrandom_deaths[1] * 0.01)" -> 853229 * ( 1 + normrandom_deaths[1] * 0.01) | M164: 874365 * ( 1 + normrandom_deaths[1] * 0.01) | N164: 903108 * ( 1 + normrandom_deaths[1] * 0.01) | O164: 922768 * ( 1 + normrandom_deaths[1] * 0.01) | P164: 954943 * ( 1 + normrandom_deaths[1] * 0.01) | Q164: 1017503 * ( 1 + normrandom_deaths[1] * 0.01) | R164: 1008475 * ( 1 + normrandom_deaths[1] * 0.01) | S164: 1010872 * ( 1 + normrandom_deaths[1] * 0.01) | T164: 1002158 * ( 1 + normrandom_deaths[1] * 0.01) | U164: 1000922 * ( 1 + normrandom_deaths[1] * 0.01) | V164: 1013178 * ( 1 + normrandom_deaths[1] * 0.01)
A165: PopAge53to54 | B165: Pop Age 53 to 54 | C165: Macroeconomic | D165: double(14,0) | I165: ISTAT Medium Estimate | J165: N | K165: 807844 | L165: =L63 &" * ( 1 + normrandom_deaths[1] * 0.01)" -> 815372 * ( 1 + normrandom_deaths[1] * 0.01) | M165: 853048 * ( 1 + normrandom_deaths[1] * 0.01) | N165: 874095 * ( 1 + normrandom_deaths[1] * 0.01) | O165: 902750 * ( 1 + normrandom_deaths[1] * 0.01) | P165: 922356 * ( 1 + normrandom_deaths[1] * 0.01) | Q165: 954458 * ( 1 + normrandom_deaths[1] * 0.01) | R165: 1016879 * ( 1 + normrandom_deaths[1] * 0.01) | S165: 1007887 * ( 1 + normrandom_deaths[1] * 0.01) | T165: 1010294 * ( 1 + normrandom_deaths[1] * 0.01) | U165: 1001617 * ( 1 + normrandom_deaths[1] * 0.01) | V165: 1000399 * ( 1 + normrandom_deaths[1] * 0.01)
A166: PopAge54to55 | B166: Pop Age 54 to 55 | C166: Macroeconomic | D166: double(14,0) | I166: ISTAT Medium Estimate | J166: N | K166: 793721 | L166: =L64 &" * ( 1 + normrandom_deaths[1] * 0.01)" -> 807385 * ( 1 + normrandom_deaths[1] * 0.01) | M166: 814833 * ( 1 + normrandom_deaths[1] * 0.01) | N166: 852375 * ( 1 + normrandom_deaths[1] * 0.01) | O166: 873358 * ( 1 + normrandom_deaths[1] * 0.01) | P166: 901939 * ( 1 + normrandom_deaths[1] * 0.01) | Q166: 921502 * ( 1 + normrandom_deaths[1] * 0.01) | R166: 953537 * ( 1 + normrandom_deaths[1] * 0.01) | S166: 1015818 * ( 1 + normrandom_deaths[1] * 0.01) | T166: 1006873 * ( 1 + normrandom_deaths[1] * 0.01) | U166: 1009298 * ( 1 + normrandom_deaths[1] * 0.01) | V166: 1000665 * ( 1 + normrandom_deaths[1] * 0.01)
A167: PopAge55to56 | B167: Pop Age 55 to 56 | C167: Macroeconomic | D167: double(14,0) | I167: ISTAT Medium Estimate | J167: N | K167: 779402 | L167: =L65 &" * ( 1 + normrandom_deaths[1] * 0.01)" -> 792836 * ( 1 + normrandom_deaths[1] * 0.01) | M167: 806410 * ( 1 + normrandom_deaths[1] * 0.01) | N167: 813821 * ( 1 + normrandom_deaths[1] * 0.01) | O167: 851248 * ( 1 + normrandom_deaths[1] * 0.01) | P167: 872180 * ( 1 + normrandom_deaths[1] * 0.01) | Q167: 900695 * ( 1 + normrandom_deaths[1] * 0.01) | R167: 920223 * ( 1 + normrandom_deaths[1] * 0.01) | S167: 952194 * ( 1 + normrandom_deaths[1] * 0.01) | T167: 1014331 * ( 1 + normrandom_deaths[1] * 0.01) | U167: 1005444 * ( 1 + normrandom_deaths[1] * 0.01) | V167: 1007894 * ( 1 + normrandom_deaths[1] * 0.01)
A168: PopAge56to57 | B168: Pop Age 56 to 57 | C168: Macroeconomic | D168: double(14,0) | I168: ISTAT Medium Estimate | J168: N | K168: 767470 | L168: =L66 &" * ( 1 + normrandom_deaths[1] * 0.01)" -> 778100 * ( 1 + normrandom_deaths[1] * 0.01) | M168: 791461 * ( 1 + normrandom_deaths[1] * 0.01) | N168: 804982 * ( 1 + normrandom_deaths[1] * 0.01) | O168: 812378 * ( 1 + normrandom_deaths[1] * 0.01) | P168: 849699 * ( 1 + normrandom_deaths[1] * 0.01) | Q168: 870590 * ( 1 + normrandom_deaths[1] * 0.01) | R168: 899043 * ( 1 + normrandom_deaths[1] * 0.01) | S168: 918542 * ( 1 + normrandom_deaths[1] * 0.01) | T168: 950452 * ( 1 + normrandom_deaths[1] * 0.01) | U168: 1012440 * ( 1 + normrandom_deaths[1] * 0.01) | V168: 1003620 * ( 1 + normrandom_deaths[1] * 0.01)
A169: PopAge57to58 | B169: Pop Age 57 to 58 | C169: Macroeconomic | D169: double(14,0) | I169: ISTAT Medium Estimate | J169: N | K169: 732797 | L169: =L67 &" * ( 1 + normrandom_deaths[1] * 0.01)" -> 765762 * ( 1 + normrandom_deaths[1] * 0.01) | M169: 776334 * ( 1 + normrandom_deaths[1] * 0.01) | N169: 789656 * ( 1 + normrandom_deaths[1] * 0.01) | O169: 803145 * ( 1 + normrandom_deaths[1] * 0.01) | P169: 810540 * ( 1 + normrandom_deaths[1] * 0.01) | Q169: 847760 * ( 1 + normrandom_deaths[1] * 0.01) | R169: 868616 * ( 1 + normrandom_deaths[1] * 0.01) | S169: 897011 * ( 1 + normrandom_deaths[1] * 0.01) | T169: 916486 * ( 1 + normrandom_deaths[1] * 0.01) | U169: 948336 * ( 1 + normrandom_deaths[1] * 0.01) | V169: 1010168 * ( 1 + normrandom_deaths[1] * 0.01)
A170: PopAge58to59 | B170: Pop Age 58 to 59 | C170: Macroeconomic | D170: double(14,0) | I170: ISTAT Medium Estimate | J170: N | K170: 724353 | L170: =L68 &" * ( 1 + normrandom_deaths[1] * 0.01)" -> 730795 * ( 1 + normrandom_deaths[1] * 0.01) | M170: 763616 * ( 1 + normrandom_deaths[1] * 0.01) | N170: 774162 * ( 1 + normrandom_deaths[1] * 0.01) | O170: 787465 * ( 1 + normrandom_deaths[1] * 0.01) | P170: 800932 * ( 1 + normrandom_deaths[1] * 0.01) | Q170: 808339 * ( 1 + normrandom_deaths[1] * 0.01) | R170: 845458 * ( 1 + normrandom_deaths[1] * 0.01) | S170: 866284 * ( 1 + normrandom_deaths[1] * 0.01) | T170: 894624 * ( 1 + normrandom_deaths[1] * 0.01) | U170: 914077 * ( 1 + normrandom_deaths[1] * 0.01) | V170: 945869 * ( 1 + normrandom_deaths[1] * 0.01)
A171: PopAge59to60 | B171: Pop Age 59 to 60 | C171: Macroeconomic | D171: double(14,0) | I171: ISTAT Medium Estimate | J171: N | K171: 723294 | L171: =L69 &" * ( 1 + normrandom_deaths[1] * 0.01)" -> 721951 * ( 1 + normrandom_deaths[1] * 0.01) | M171: 728370 * ( 1 + normrandom_deaths[1] * 0.01) | N171: 761069 * ( 1 + normrandom_deaths[1] * 0.01) | O171: 771607 * ( 1 + normrandom_deaths[1] * 0.01) | P171: 784901 * ( 1 + normrandom_deaths[1] * 0.01) | Q171: 798357 * ( 1 + normrandom_deaths[1] * 0.01) | R171: 805782 * ( 1 + normrandom_deaths[1] * 0.01) | S171: 842801 * ( 1 + normrandom_deaths[1] * 0.01) | T171: 863600 * ( 1 + normrandom_deaths[1] * 0.01) | U171: 891886 * ( 1 + normrandom_deaths[1] * 0.01) | V171: 911320 * ( 1 + normrandom_deaths[1] * 0.01)
A172: PopAge60to61 | B172: Pop Age 60 to 61 | C172: Macroeconomic | D172: double(14,0) | I172: ISTAT Medium Estimate | J172: N | K172: 749124 | L172: =L70 &" * ( 1 + normrandom_deaths[1] * 0.01)" -> 720437 * ( 1 + normrandom_deaths[1] * 0.01) | M172: 719123 * ( 1 + normrandom_deaths[1] * 0.01) | N172: 725547 * ( 1 + normrandom_deaths[1] * 0.01) | O172: 758133 * ( 1 + normrandom_deaths[1] * 0.01) | P172: 768673 * ( 1 + normrandom_deaths[1] * 0.01) | Q172: 781967 * ( 1 + normrandom_deaths[1] * 0.01) | R172: 795416 * ( 1 + normrandom_deaths[1] * 0.01) | S172: 802867 * ( 1 + normrandom_deaths[1] * 0.01) | T172: 839783 * ( 1 + normrandom_deaths[1] * 0.01) | U172: 860557 * ( 1 + normrandom_deaths[1] * 0.01) | V172: 888788 * ( 1 + normrandom_deaths[1] * 0.01)
A173: PopAge61to62 | B173: Pop Age 61 to 62 | C173: Macroeconomic | D173: double(14,0) | I173: ISTAT Medium Estimate | J173: N | K173: 753089 | L173: =L71 &" * ( 1 + normrandom_deaths[1] * 0.01)" -> 745636 * ( 1 + normrandom_deaths[1] * 0.01) | M173: 717152 * ( 1 + normrandom_deaths[1] * 0.01) | N173: 715895 * ( 1 + normrandom_deaths[1] * 0.01) | O173: 722339 * ( 1 + normrandom_deaths[1] * 0.01) | P173: 754814 * ( 1 + normrandom_deaths[1] * 0.01) | Q173: 765364 * ( 1 + normrandom_deaths[1] * 0.01) | R173: 778663 * ( 1 + normrandom_deaths[1] * 0.01) | S173: 792110 * ( 1 + normrandom_deaths[1] * 0.01) | T173: 799592 * ( 1 + normrandom_deaths[1] * 0.01) | U173: 836401 * ( 1 + normrandom_deaths[1] * 0.01) | V173: 857151 * ( 1 + normrandom_deaths[1] * 0.01)
A174: PopAge62to63 | B174: Pop Age 62 to 63 | C174: Macroeconomic | D174: double(14,0) | I174: ISTAT Medium Estimate | J174: N | K174: 785968 | L174: =L72 &" * ( 1 + normrandom_deaths[1] * 0.01)" -> 749049 * ( 1 + normrandom_deaths[1] * 0.01) | M174: 741699 * ( 1 + normrandom_deaths[1] * 0.01) | N174: 713456 * ( 1 + normrandom_deaths[1] * 0.01) | O174: 712274 * ( 1 + normrandom_deaths[1] * 0.01) | P174: 718747 * ( 1 + normrandom_deaths[1] * 0.01) | Q174: 751109 * ( 1 + normrandom_deaths[1] * 0.01) | R174: 761674 * ( 1 + normrandom_deaths[1] * 0.01) | S174: 774984 * ( 1 + normrandom_deaths[1] * 0.01) | T174: 788430 * ( 1 + normrandom_deaths[1] * 0.01) | U174: 795948 * ( 1 + normrandom_deaths[1] * 0.01) | V174: 832643 * ( 1 + normrandom_deaths[1] * 0.01)
A175: PopAge63to64 | B175: Pop Age 63 to 64 | C175: Macroeconomic | D175: double(14,0) | I175: ISTAT Medium Estimate | J175: N | K175: 768037 | L175: =L73 &" * ( 1 + normrandom_deaths[1] * 0.01)" -> 781139 * ( 1 + normrandom_deaths[1] * 0.01) | M175: 744545 * ( 1 + normrandom_deaths[1] * 0.01) | N175: 737326 * ( 1 + normrandom_deaths[1] * 0.01) | O175: 709352 * ( 1 + normrandom_deaths[1] * 0.01) | P175: 708256 * ( 1 + normrandom_deaths[1] * 0.01) | Q175: 714766 * ( 1 + normrandom_deaths[1] * 0.01) | R175: 747011 * ( 1 + normrandom_deaths[1] * 0.01) | S175: 757594 * ( 1 + normrandom_deaths[1] * 0.01) | T175: 770916 * ( 1 + normrandom_deaths[1] * 0.01) | U175: 784363 * ( 1 + normrandom_deaths[1] * 0.01) | V175: 791922 * ( 1 + normrandom_deaths[1] * 0.01)
A176: PopAge64to65 | B176: Pop Age 64 to 65 | C176: Macroeconomic | D176: double(14,0) | I176: ISTAT Medium Estimate | J176: N | K176: 768913 | L176: =L74 &" * ( 1 + normrandom_deaths[1] * 0.01)" -> 762719 * ( 1 + normrandom_deaths[1] * 0.01) | M176: 775815 * ( 1 + normrandom_deaths[1] * 0.01) | N176: 739587 * ( 1 + normrandom_deaths[1] * 0.01) | O176: 732518 * ( 1 + normrandom_deaths[1] * 0.01) | P176: 704837 * ( 1 + normrandom_deaths[1] * 0.01) | Q176: 703839 * ( 1 + normrandom_deaths[1] * 0.01) | R176: 710391 * ( 1 + normrandom_deaths[1] * 0.01) | S176: 742512 * ( 1 + normrandom_deaths[1] * 0.01) | T176: 753117 * ( 1 + normrandom_deaths[1] * 0.01) | U176: 766452 * ( 1 + normrandom_deaths[1] * 0.01) | V176: 779903 * ( 1 + normrandom_deaths[1] * 0.01)
A177: PopAge65to66 | B177: Pop Age 65 to 66 | C177: Macroeconomic | D177: double(14,0) | I177: ISTAT Medium Estimate | J177: N | K177: 594882 | L177: =L75 &" * ( 1 + normrandom_deaths[1] * 0.01)" -> 762932 * ( 1 + normrandom_deaths[1] * 0.01) | M177: 756892 * ( 1 + normrandom_deaths[1] * 0.01) | N177: 769999 * ( 1 + normrandom_deaths[1] * 0.01) | O177: 734170 * ( 1 + normrandom_deaths[1] * 0.01) | P177: 727267 * ( 1 + normrandom_deaths[1] * 0.01) | Q177: 699904 * ( 1 + normrandom_deaths[1] * 0.01) | R177: 699013 * ( 1 + normrandom_deaths[1] * 0.01) | S177: 705612 * ( 1 + normrandom_deaths[1] * 0.01) | T177: 737601 * ( 1 + normrandom_deaths[1] * 0.01) | U177: 748230 * ( 1 + normrandom_deaths[1] * 0.01) | V177: 761582 * ( 1 + normrandom_deaths[1] * 0.01)
A178: PopAge66to67 | B178: Pop Age 66 to 67 | C178: Macroeconomic | D178: double(14,0) | I178: ISTAT Medium Estimate | J178: N | K178: 611436 | L178: =L76 &" * ( 1 + normrandom_deaths[1] * 0.01)" -> 589804 * ( 1 + normrandom_deaths[1] * 0.01) | M178: 756419 * ( 1 + normrandom_deaths[1] * 0.01) | N178: 750558 * ( 1 + normrandom_deaths[1] * 0.01) | O178: 763685 * ( 1 + normrandom_deaths[1] * 0.01) | P178: 728286 * ( 1 + normrandom_deaths[1] * 0.01) | Q178: 721563 * ( 1 + normrandom_deaths[1] * 0.01) | R178: 694542 * ( 1 + normrandom_deaths[1] * 0.01) | S178: 693768 * ( 1 + normrandom_deaths[1] * 0.01) | T178: 700417 * ( 1 + normrandom_deaths[1] * 0.01) | U178: 732267 * ( 1 + normrandom_deaths[1] * 0.01) | V178: 742921 * ( 1 + normrandom_deaths[1] * 0.01)
A179: PopAge67to68 | B179: Pop Age 67 to 68 | C179: Macroeconomic | D179: double(14,0) | I179: ISTAT Medium Estimate | J179: N | K179: 617350 | L179: =L77 &" * ( 1 + normrandom_deaths[1] * 0.01)" -> 605617 * ( 1 + normrandom_deaths[1] * 0.01) | M179: 584280 * ( 1 + normrandom_deaths[1] * 0.01) | N179: 749386 * ( 1 + normrandom_deaths[1] * 0.01) | O179: 743721 * ( 1 + normrandom_deaths[1] * 0.01) | P179: 756871 * ( 1 + normrandom_deaths[1] * 0.01) | Q179: 721934 * ( 1 + normrandom_deaths[1] * 0.01) | R179: 715405 * ( 1 + normrandom_deaths[1] * 0.01) | S179: 688748 * ( 1 + normrandom_deaths[1] * 0.01) | T179: 688099 * ( 1 + normrandom_deaths[1] * 0.01) | U179: 694804 * ( 1 + normrandom_deaths[1] * 0.01) | V179: 726503 * ( 1 + normrandom_deaths[1] * 0.01)
A180: PopAge68to69 | B180: Pop Age 68 to 69 | C180: Macroeconomic | D180: double(14,0) | I180: ISTAT Medium Estimate | J180: N | K180: 612704 | L180: =L78 &" * ( 1 + normrandom_deaths[1] * 0.01)" -> 610809 * ( 1 + normrandom_deaths[1] * 0.01) | M180: 599321 * ( 1 + normrandom_deaths[1] * 0.01) | N180: 578309 * ( 1 + normrandom_deaths[1] * 0.01) | O180: 741820 * ( 1 + normrandom_deaths[1] * 0.01) | P180: 736364 * ( 1 + normrandom_deaths[1] * 0.01) | Q180: 749541 * ( 1 + normrandom_deaths[1] * 0.01) | R180: 715096 * ( 1 + normrandom_deaths[1] * 0.01) | S180: 708773 * ( 1 + normrandom_deaths[1] * 0.01) | T180: 682505 * ( 1 + normrandom_deaths[1] * 0.01) | U180: 681989 * ( 1 + normrandom_deaths[1] * 0.01) | V180: 688752 * ( 1 + normrandom_deaths[1] * 0.01)
A181: PopAge69to70 | B181: Pop Age 69 to 70 | C181: Macroeconomic | D181: double(14,0) | I181: ISTAT Medium Estimate | J181: N | K181: 615866 | L181: =L79 &" * ( 1 + normrandom_deaths[1] * 0.01)" -> 605469 * ( 1 + normrandom_deaths[1] * 0.01) | M181: 603738 * ( 1 + normrandom_deaths[1] * 0.01) | N181: 592524 * ( 1 + normrandom_deaths[1] * 0.01) | O181: 571861 * ( 1 + normrandom_deaths[1] * 0.01) | P181: 733674 * ( 1 + normrandom_deaths[1] * 0.01) | Q181: 728440 * ( 1 + normrandom_deaths[1] * 0.01) | R181: 741647 * ( 1 + normrandom_deaths[1] * 0.01) | S181: 707725 * ( 1 + normrandom_deaths[1] * 0.01) | T181: 701622 * ( 1 + normrandom_deaths[1] * 0.01) | U181: 675768 * ( 1 + normrandom_deaths[1] * 0.01) | V181: 675393 * ( 1 + normrandom_deaths[1] * 0.01)
A182: PopAge70to71 | B182: Pop Age 70 to 71 | C182: Macroeconomic | D182: double(14,0) | I182: ISTAT Medium Estimate | J182: N | K182: 673600 | L182: =L80 &" * ( 1 + normrandom_deaths[1] * 0.01)" -> 607740 * ( 1 + normrandom_deaths[1] * 0.01) | M182: 597629 * ( 1 + normrandom_deaths[1] * 0.01) | N182: 596083 * ( 1 + normrandom_deaths[1] * 0.01) | O182: 585165 * ( 1 + normrandom_deaths[1] * 0.01) | P182: 564876 * ( 1 + normrandom_deaths[1] * 0.01) | Q182: 724869 * ( 1 + normrandom_deaths[1] * 0.01) | R182: 719871 * ( 1 + normrandom_deaths[1] * 0.01) | S182: 733106 * ( 1 + normrandom_deaths[1] * 0.01) | T182: 699745 * ( 1 + normrandom_deaths[1] * 0.01) | U182: 693874 * ( 1 + normrandom_deaths[1] * 0.01) | V182: 668464 * ( 1 + normrandom_deaths[1] * 0.01)
A183: PopAge71to72 | B183: Pop Age 71 to 72 | C183: Macroeconomic | D183: double(14,0) | I183: ISTAT Medium Estimate | J183: N | K183: 658842 | L183: =L81 &" * ( 1 + normrandom_deaths[1] * 0.01)" -> 663587 * ( 1 + normrandom_deaths[1] * 0.01) | M183: 598921 * ( 1 + normrandom_deaths[1] * 0.01) | N183: 589124 * ( 1 + normrandom_deaths[1] * 0.01) | O183: 587777 * ( 1 + normrandom_deaths[1] * 0.01) | P183: 577177 * ( 1 + normrandom_deaths[1] * 0.01) | Q183: 557290 * ( 1 + normrandom_deaths[1] * 0.01) | R183: 715316 * ( 1 + normrandom_deaths[1] * 0.01) | S183: 710570 * ( 1 + normrandom_deaths[1] * 0.01) | T183: 723830 * ( 1 + normrandom_deaths[1] * 0.01) | U183: 691071 * ( 1 + normrandom_deaths[1] * 0.01) | V183: 685448 * ( 1 + normrandom_deaths[1] * 0.01)
A184: PopAge72to73 | B184: Pop Age 72 to 73 | C184: Macroeconomic | D184: double(14,0) | I184: ISTAT Medium Estimate | J184: N | K184: 637152 | L184: =L82 &" * ( 1 + normrandom_deaths[1] * 0.01)" -> 647842 * ( 1 + normrandom_deaths[1] * 0.01) | M184: 652734 * ( 1 + normrandom_deaths[1] * 0.01) | N184: 589356 * ( 1 + normrandom_deaths[1] * 0.01) | O184: 579896 * ( 1 + normrandom_deaths[1] * 0.01) | P184: 578760 * ( 1 + normrandom_deaths[1] * 0.01) | Q184: 568498 * ( 1 + normrandom_deaths[1] * 0.01) | R184: 549042 * ( 1 + normrandom_deaths[1] * 0.01) | S184: 704938 * ( 1 + normrandom_deaths[1] * 0.01) | T184: 700456 * ( 1 + normrandom_deaths[1] * 0.01) | U184: 713738 * ( 1 + normrandom_deaths[1] * 0.01) | V184: 681625 * ( 1 + normrandom_deaths[1] * 0.01)
A185: PopAge73to74 | B185: Pop Age 73 to 74 | C185: Macroeconomic | D185: double(14,0) | I185: ISTAT Medium Estimate | J185: N | K185: 585257 | L185: =L83 &" * ( 1 + normrandom_deaths[1] * 0.01)" -> 625238 * ( 1 + normrandom_deaths[1] * 0.01) | M185: 635944 * ( 1 + normrandom_deaths[1] * 0.01) | N185: 640992 * ( 1 + normrandom_deaths[1] * 0.01) | O185: 578994 * ( 1 + normrandom_deaths[1] * 0.01) | P185: 569893 * ( 1 + normrandom_deaths[1] * 0.01) | Q185: 568979 * ( 1 + normrandom_deaths[1] * 0.01) | R185: 559076 * ( 1 + normrandom_deaths[1] * 0.01) | S185: 540081 * ( 1 + normrandom_deaths[1] * 0.01) | T185: 693667 * ( 1 + normrandom_deaths[1] * 0.01) | U185: 689462 * ( 1 + normrandom_deaths[1] * 0.01) | V185: 702759 * ( 1 + normrandom_deaths[1] * 0.01)
A186: PopAge74to75 | B186: Pop Age 74 to 75 | C186: Macroeconomic | D186: double(14,0) | I186: ISTAT Medium Estimate | J186: N | K186: 547332 | L186: =L84 &" * ( 1 + normrandom_deaths[1] * 0.01)" -> 572995 * ( 1 + normrandom_deaths[1] * 0.01) | M186: 612392 * ( 1 + normrandom_deaths[1] * 0.01) | N186: 623112 * ( 1 + normrandom_deaths[1] * 0.01) | O186: 628322 * ( 1 + normrandom_deaths[1] * 0.01) | P186: 567800 * ( 1 + normrandom_deaths[1] * 0.01) | Q186: 559078 * ( 1 + normrandom_deaths[1] * 0.01) | R186: 558395 * ( 1 + normrandom_deaths[1] * 0.01) | S186: 548872 * ( 1 + normrandom_deaths[1] * 0.01) | T186: 530371 * ( 1 + normrandom_deaths[1] * 0.01) | U186: 681453 * ( 1 + normrandom_deaths[1] * 0.01) | V186: 677539 * ( 1 + normrandom_deaths[1] * 0.01)
A187: PopAge75to76 | B187: Pop Age 75 to 76 | C187: Macroeconomic | D187: double(14,0) | I187: ISTAT Medium Estimate | J187: N | K187: 552801 | L187: =L85 &" * ( 1 + normrandom_deaths[1] * 0.01)" -> 534514 * ( 1 + normrandom_deaths[1] * 0.01) | M187: 559824 * ( 1 + normrandom_deaths[1] * 0.01) | N187: 598594 * ( 1 + normrandom_deaths[1] * 0.01) | O187: 609324 * ( 1 + normrandom_deaths[1] * 0.01) | P187: 614698 * ( 1 + normrandom_deaths[1] * 0.01) | Q187: 555749 * ( 1 + normrandom_deaths[1] * 0.01) | R187: 547426 * ( 1 + normrandom_deaths[1] * 0.01) | S187: 546985 * ( 1 + normrandom_deaths[1] * 0.01) | T187: 537861 * ( 1 + normrandom_deaths[1] * 0.01) | U187: 519889 * ( 1 + normrandom_deaths[1] * 0.01) | V187: 668267 * ( 1 + normrandom_deaths[1] * 0.01)
A188: PopAge76to77 | B188: Pop Age 76 to 77 | C188: Macroeconomic | D188: double(14,0) | I188: ISTAT Medium Estimate | J188: N | K188: 528927 | L188: =L86 &" * ( 1 + normrandom_deaths[1] * 0.01)" -> 538333 * ( 1 + normrandom_deaths[1] * 0.01) | M188: 520800 * ( 1 + normrandom_deaths[1] * 0.01) | N188: 545732 * ( 1 + normrandom_deaths[1] * 0.01) | O188: 583824 * ( 1 + normrandom_deaths[1] * 0.01) | P188: 594557 * ( 1 + normrandom_deaths[1] * 0.01) | Q188: 600097 * ( 1 + normrandom_deaths[1] * 0.01) | R188: 542820 * ( 1 + normrandom_deaths[1] * 0.01) | S188: 534918 * ( 1 + normrandom_deaths[1] * 0.01) | T188: 534725 * ( 1 + normrandom_deaths[1] * 0.01) | U188: 526023 * ( 1 + normrandom_deaths[1] * 0.01) | V188: 508613 * ( 1 + normrandom_deaths[1] * 0.01)
A189: PopAge77to78 | B189: Pop Age 77 to 78 | C189: Macroeconomic | D189: double(14,0) | I189: ISTAT Medium Estimate | J189: N | K189: 505774 | L189: =L87 &" * ( 1 + normrandom_deaths[1] * 0.01)" -> 513472 * ( 1 + normrandom_deaths[1] * 0.01) | M189: 522895 * ( 1 + normrandom_deaths[1] * 0.01) | N189: 506158 * ( 1 + normrandom_deaths[1] * 0.01) | O189: 530679 * ( 1 + normrandom_deaths[1] * 0.01) | P189: 568038 * ( 1 + normrandom_deaths[1] * 0.01) | Q189: 578766 * ( 1 + normrandom_deaths[1] * 0.01) | R189: 584471 * ( 1 + normrandom_deaths[1] * 0.01) | S189: 528971 * ( 1 + normrandom_deaths[1] * 0.01) | T189: 521509 * ( 1 + normrandom_deaths[1] * 0.01) | U189: 521571 * ( 1 + normrandom_deaths[1] * 0.01) | V189: 513312 * ( 1 + normrandom_deaths[1] * 0.01)
A190: PopAge78to79 | B190: Pop Age 78 to 79 | C190: Macroeconomic | D190: double(14,0) | I190: ISTAT Medium Estimate | J190: N | K190: 478861 | L190: =L88 &" * ( 1 + normrandom_deaths[1] * 0.01)" -> 489175 * ( 1 + normrandom_deaths[1] * 0.01) | M190: 496965 * ( 1 + normrandom_deaths[1] * 0.01) | N190: 506397 * ( 1 + normrandom_deaths[1] * 0.01) | O190: 490494 * ( 1 + normrandom_deaths[1] * 0.01) | P190: 514562 * ( 1 + normrandom_deaths[1] * 0.01) | Q190: 551123 * ( 1 + normrandom_deaths[1] * 0.01) | R190: 561830 * ( 1 + normrandom_deaths[1] * 0.01) | S190: 567697 * ( 1 + normrandom_deaths[1] * 0.01) | T190: 514087 * ( 1 + normrandom_deaths[1] * 0.01) | U190: 507085 * ( 1 + normrandom_deaths[1] * 0.01) | V190: 507410 * ( 1 + normrandom_deaths[1] * 0.01)
A191: PopAge79to80 | B191: Pop Age 79 to 80 | C191: Macroeconomic | D191: double(14,0) | I191: ISTAT Medium Estimate | J191: N | K191: 467232 | L191: =L89 &" * ( 1 + normrandom_deaths[1] * 0.01)" -> 461198 * ( 1 + normrandom_deaths[1] * 0.01) | M191: 471447 * ( 1 + normrandom_deaths[1] * 0.01) | N191: 479315 * ( 1 + normrandom_deaths[1] * 0.01) | O191: 488738 * ( 1 + normrandom_deaths[1] * 0.01) | P191: 473708 * ( 1 + normrandom_deaths[1] * 0.01) | Q191: 497274 * ( 1 + normrandom_deaths[1] * 0.01) | R191: 532955 * ( 1 + normrandom_deaths[1] * 0.01) | S191: 543622 * ( 1 + normrandom_deaths[1] * 0.01) | T191: 549640 * ( 1 + normrandom_deaths[1] * 0.01) | U191: 498044 * ( 1 + normrandom_deaths[1] * 0.01) | V191: 491521 * ( 1 + normrandom_deaths[1] * 0.01)
A192: PopAge80to81 | B192: Pop Age 80 to 81 | C192: Macroeconomic | D192: double(14,0) | I192: ISTAT Medium Estimate | J192: N | K192: 466289 | L192: =L90 &" * ( 1 + normrandom_deaths[1] * 0.01)" -> 447829 * ( 1 + normrandom_deaths[1] * 0.01) | M192: 442377 * ( 1 + normrandom_deaths[1] * 0.01) | N192: 452535 * ( 1 + normrandom_deaths[1] * 0.01) | O192: 460461 * ( 1 + normrandom_deaths[1] * 0.01) | P192: 469851 * ( 1 + normrandom_deaths[1] * 0.01) | Q192: 455729 * ( 1 + normrandom_deaths[1] * 0.01) | R192: 478734 * ( 1 + normrandom_deaths[1] * 0.01) | S192: 513448 * ( 1 + normrandom_deaths[1] * 0.01) | T192: 524047 * ( 1 + normrandom_deaths[1] * 0.01) | U192: 530201 * ( 1 + normrandom_deaths[1] * 0.01) | V192: 480748 * ( 1 + normrandom_deaths[1] * 0.01)
A193: PopAge81to82 | B193: Pop Age 81 to 82 | C193: Macroeconomic | D193: double(14,0) | I193: ISTAT Medium Estimate | J193: N | K193: 409508 | L193: =L91 &" * ( 1 + normrandom_deaths[1] * 0.01)" -> 444424 * ( 1 + normrandom_deaths[1] * 0.01) | M193: 427187 * ( 1 + normrandom_deaths[1] * 0.01) | N193: 422329 * ( 1 + normrandom_deaths[1] * 0.01) | O193: 432359 * ( 1 + normrandom_deaths[1] * 0.01) | P193: 440316 * ( 1 + normrandom_deaths[1] * 0.01) | Q193: 449643 * ( 1 + normrandom_deaths[1] * 0.01) | R193: 436463 * ( 1 + normrandom_deaths[1] * 0.01) | S193: 458841 * ( 1 + normrandom_deaths[1] * 0.01) | T193: 492486 * ( 1 + normrandom_deaths[1] * 0.01) | U193: 502985 * ( 1 + normrandom_deaths[1] * 0.01) | V193: 509256 * ( 1 + normrandom_deaths[1] * 0.01)
A194: PopAge82to83 | B194: Pop Age 82 to 83 | C194: Macroeconomic | D194: double(14,0) | I194: ISTAT Medium Estimate | J194: N | K194: 383855 | L194: =L92 &" * ( 1 + normrandom_deaths[1] * 0.01)" -> 387835 * ( 1 + normrandom_deaths[1] * 0.01) | M194: 421301 * ( 1 + normrandom_deaths[1] * 0.01) | N194: 405327 * ( 1 + normrandom_deaths[1] * 0.01) | O194: 401066 * ( 1 + normrandom_deaths[1] * 0.01) | P194: 410929 * ( 1 + normrandom_deaths[1] * 0.01) | Q194: 418882 * ( 1 + normrandom_deaths[1] * 0.01) | R194: 428111 * ( 1 + normrandom_deaths[1] * 0.01) | S194: 415905 * ( 1 + normrandom_deaths[1] * 0.01) | T194: 437584 * ( 1 + normrandom_deaths[1] * 0.01) | U194: 470053 * ( 1 + normrandom_deaths[1] * 0.01) | V194: 480417 * ( 1 + normrandom_deaths[1] * 0.01)
A195: PopAge83to84 | B195: Pop Age 83 to 84 | C195: Macroeconomic | D195: double(14,0) | I195: ISTAT Medium Estimate | J195: N | K195: 357773 | L195: =L93 &" * ( 1 + normrandom_deaths[1] * 0.01)" -> 361046 * ( 1 + normrandom_deaths[1] * 0.01) | M195: 365115 * ( 1 + normrandom_deaths[1] * 0.01) | N195: 397025 * ( 1 + normrandom_deaths[1] * 0.01) | O195: 382340 * ( 1 + normrandom_deaths[1] * 0.01) | P195: 378675 * ( 1 + normrandom_deaths[1] * 0.01) | Q195: 388328 * ( 1 + normrandom_deaths[1] * 0.01) | R195: 396240 * ( 1 + normrandom_deaths[1] * 0.01) | S195: 405332 * ( 1 + normrandom_deaths[1] * 0.01) | T195: 394122 * ( 1 + normrandom_deaths[1] * 0.01) | U195: 415028 * ( 1 + normrandom_deaths[1] * 0.01) | V195: 446213 * ( 1 + normrandom_deaths[1] * 0.01)
A196: PopAge84to85 | B196: Pop Age 84 to 85 | C196: Macroeconomic | D196: double(14,0) | I196: ISTAT Medium Estimate | J196: N | K196: 323867 | L196: =L94 &" * ( 1 + normrandom_deaths[1] * 0.01)" -> 333865 * ( 1 + normrandom_deaths[1] * 0.01) | M196: 337274 * ( 1 + normrandom_deaths[1] * 0.01) | N196: 341402 * ( 1 + normrandom_deaths[1] * 0.01) | O196: 371646 * ( 1 + normrandom_deaths[1] * 0.01) | P196: 358267 * ( 1 + normrandom_deaths[1] * 0.01) | Q196: 355191 * ( 1 + normrandom_deaths[1] * 0.01) | R196: 364586 * ( 1 + normrandom_deaths[1] * 0.01) | S196: 372411 * ( 1 + normrandom_deaths[1] * 0.01) | T196: 381322 * ( 1 + normrandom_deaths[1] * 0.01) | U196: 371125 * ( 1 + normrandom_deaths[1] * 0.01) | V196: 391177 * ( 1 + normrandom_deaths[1] * 0.01)
A197: PopAge85to86 | B197: Pop Age 85 to 86 | C197: Macroeconomic | D197: double(14,0) | I197: ISTAT Medium Estimate | J197: N | K197: 293152 | L197: =L95 &" * ( 1 + normrandom_deaths[1] * 0.01)" -> 299540 * ( 1 + normrandom_deaths[1] * 0.01) | M197: 309142 * ( 1 + normrandom_deaths[1] * 0.01) | N197: 312651 * ( 1 + normrandom_deaths[1] * 0.01) | O197: 316803 * ( 1 + normrandom_deaths[1] * 0.01) | P197: 345271 * ( 1 + normrandom_deaths[1] * 0.01) | Q197: 333208 * ( 1 + normrandom_deaths[1] * 0.01) | R197: 330705 * ( 1 + normrandom_deaths[1] * 0.01) | S197: 339790 * ( 1 + normrandom_deaths[1] * 0.01) | T197: 347480 * ( 1 + normrandom_deaths[1] * 0.01) | U197: 356160 * ( 1 + normrandom_deaths[1] * 0.01) | V197: 346985 * ( 1 + normrandom_deaths[1] * 0.01)
A198: PopAge86to87 | B198: Pop Age 86 to 87 | C198: Macroeconomic | D198: double(14,0) | I198: ISTAT Medium Estimate | J198: N | K198: 263311 | L198: =L96 &" * ( 1 + normrandom_deaths[1] * 0.01)" -> 268438 * ( 1 + normrandom_deaths[1] * 0.01) | M198: 274640 * ( 1 + normrandom_deaths[1] * 0.01) | N198: 283795 * ( 1 + normrandom_deaths[1] * 0.01) | O198: 287363 * ( 1 + normrandom_deaths[1] * 0.01) | P198: 291500 * ( 1 + normrandom_deaths[1] * 0.01) | Q198: 318092 * ( 1 + normrandom_deaths[1] * 0.01) | R198: 307339 * ( 1 + normrandom_deaths[1] * 0.01) | S198: 305386 * ( 1 + normrandom_deaths[1] * 0.01) | T198: 314108 * ( 1 + normrandom_deaths[1] * 0.01) | U198: 321608 * ( 1 + normrandom_deaths[1] * 0.01) | V198: 330006 * ( 1 + normrandom_deaths[1] * 0.01)
A199: PopAge87to88 | B199: Pop Age 87 to 88 | C199: Macroeconomic | D199: double(14,0) | I199: ISTAT Medium Estimate | J199: N | K199: 236268 | L199: =L97 &" * ( 1 + normrandom_deaths[1] * 0.01)" -> 238404 * ( 1 + normrandom_deaths[1] * 0.01) | M199: 243411 * ( 1 + normrandom_deaths[1] * 0.01) | N199: 249372 * ( 1 + normrandom_deaths[1] * 0.01) | O199: 258026 * ( 1 + normrandom_deaths[1] * 0.01) | P199: 261607 * ( 1 + normrandom_deaths[1] * 0.01) | Q199: 265683 * ( 1 + normrandom_deaths[1] * 0.01) | R199: 290307 * ( 1 + normrandom_deaths[1] * 0.01) | S199: 280843 * ( 1 + normrandom_deaths[1] * 0.01) | T199: 279407 * ( 1 + normrandom_deaths[1] * 0.01) | U199: 287710 * ( 1 + normrandom_deaths[1] * 0.01) | V199: 294959 * ( 1 + normrandom_deaths[1] * 0.01)
A200: PopAge88to89 | B200: Pop Age 88 to 89 | C200: Macroeconomic | D200: double(14,0) | I200: ISTAT Medium Estimate | J200: N | K200: 203475 | L200: =L98 &" * ( 1 + normrandom_deaths[1] * 0.01)" -> 211167 * ( 1 + normrandom_deaths[1] * 0.01) | M200: 213407 * ( 1 + normrandom_deaths[1] * 0.01) | N200: 218234 * ( 1 + normrandom_deaths[1] * 0.01) | O200: 223899 * ( 1 + normrandom_deaths[1] * 0.01) | P200: 231992 * ( 1 + normrandom_deaths[1] * 0.01) | Q200: 235532 * ( 1 + normrandom_deaths[1] * 0.01) | R200: 239498 * ( 1 + normrandom_deaths[1] * 0.01) | S200: 262064 * ( 1 + normrandom_deaths[1] * 0.01) | T200: 253853 * ( 1 + normrandom_deaths[1] * 0.01) | U200: 252891 * ( 1 + normrandom_deaths[1] * 0.01) | V200: 260715 * ( 1 + normrandom_deaths[1] * 0.01)
... 88 more rows

Sheet adjustments
A1: Adjustment Name | B1: Expression to Evaluate | C1: Relation to Threshold | D1: Threshold Value | E1: Series to Adjust if Threshold is Surpassed | F1: Distribute Adjustment to Related Series | G1: Constraint Operator | H1: Constraint Amount | I1: Dependent Series
A2: Expense Adjustment for Large Deficit | B2: totexp[y]/totrev[y] | C2: > | D2: 1.45 | E2: totexp[y] | F2: directtax[y] | G2: >= | H2: 0
F3: indirecttax[y] | G3: >= | H3: 0
F4: socialcont[y] | G4: >= | H4: 0
F5: othrev[y] | G5: >= | H5: 0
I6: surplus[y]
I7: debt[y]
A8: Revenue Adjustment for Large Surplus | B8: totexp[y]/totrev[y] | C8: < | D8: 0.7 | E8: totrev[y] | F8: employeecomp[y] | G8: >= | H8: 0
F9: transfers[y] | G9: >= | H9: 0
F10: othcurrexp[y] | G10: >= | H10: 0
F11: capitalexp[y] | G11: >= | H11: 0
I12: surplus[y]
I13: debt[y]

Sheet ratingmap
B1: Minimum Cumulative Default Probability Associated with Rating
A2: Rating | B2: Year 1 | C2: Year 2 | D2: Year 3 | E2: Year 4 | F2: Year 5 | G2: Year 6 | H2: Year 7 | I2: Year 8 | J2: Year 9 | K2: Year 10 | L2: Year 11 | M2: Year 12 | N2: Year 13 | O2: Year 14 | P2: Year 15 | Q2: Year 16 | R2: Year 17 | S2: Year 18 | T2: Year 19 | U2: Year 20 | V2: Year 21 | W2: Year 22 | X2: Year 23 | Y2: Year 24 | Z2: Year 25 | AA2: Year 26 | AB2: Year 27 | AC2: Year 28 | AD2: Year 29 | AE2: Year 30 | AF2: Year 31
A3: AAA | B3: 0 | C3: =MIN(1,ROUND((1+$B3)^C$26-1,5)) -> 0 | D3: 0 | E3: 0 | F3: 0 | G3: 0 | H3: 0 | I3: 0 | J3: 0 | K3: 0 | L3: 0 | M3: 0 | N3: 0 | O3: 0 | P3: 0 | Q3: 0 | R3: 0 | S3: =MIN(1,ROUND((1+$B3)^S$26-1,5)) -> 0 | T3: 0 | U3: 0 | V3: 0 | W3: 0 | X3: 0 | Y3: 0 | Z3: 0 | AA3: 0 | AB3: 0 | AC3: 0 | AD3: 0 | AE3: 0 | AF3: 0 | AG3: =A3 -> AAA
A4: AA+ | B4: 1.688194302e-06 | C4: 7.745966692e-06 | D4: 2.645751311e-05 | E4: 6.14817046e-05 | F4: 9.481561053e-05 | G4: 0.000129614814 | H4: 0.0001675708805 | I4: 0.0002102855202 | J4: 0.0002593067681 | K4: 0.000316227766 | L4: 0.0003977357621 | M4: 0.0004786659598 | N4: 0.0005667840857 | O4: 0.0006618912506 | P4: 0.0007637667998 | Q4: 0.0008721726022 | R4: 0.0009868568561 | S4: 0.001107557447 | T4: 0.001234004896 | U4: 0.001365924928 | V4: 0.001503040705 | W4: 0.001645074752 | X4: 0.001791750609 | Y4: 0.001942794238 | Z4: 0.002097935211 | AA4: 0.002256907708 | AB4: 0.002419451342 | AC4: 0.002585311839 | AD4: 0.002754241577 | AE4: 0.002926000021 | AF4: =AE4+AE4-AD4 -> 0.003097758466 | AG4: =A4 -> AA+
A5: AA | B5: 8.804544281e-06 | C5: 4.898979486e-05 | D5: 0.000161245155 | E5: 0.0003141655614 | F5: 0.0004591296113 | G5: 0.0006113918547 | H5: 0.000774209274 | I5: 0.000951052049 | J5: 0.001159655121 | K5: 0.001414213562 | L5: 0.001804711388 | M5: 0.002201838873 | N5: 0.002641201142 | O5: 0.00312265222 | P5: 0.003645829444 | Q5: 0.004210172091 | R5: 0.004814940099 | S5: 0.005459232625 | T5: 0.006142006207 | U5: 0.006862092377 | V5: 0.007618214567 | W5: 0.008409004196 | X5: 0.00923301588 | Y5: 0.01008874168 | Z5: 0.01097462439 | AA5: 0.0118890698 | AB5: 0.01283045803 | AC5: 0.01379715378 | AD5: 0.01478751578 | AE5: 0.01579990516 | AF5: =AE5+AE5-AD5 -> 0.01681229454 | AG5: AA
A6: AA- | B6: 2.026622807e-05 | C6: 0.0001232882801 | D6: 0.0003916631206 | E6: 0.0006889847604 | F6: 0.0009826494797 | G6: 0.001276205313 | H6: 0.001587356293 | I6: 0.001916246331 | J6: 0.00231577201 | K6: 0.002828427125 | L6: 0.004005353062 | M6: 0.004819657785 | N6: 0.005709129981 | O6: 0.006672111989 | P6: 0.007706608668 | Q6: 0.008810336605 | R6: 0.009980770315 | S6: 0.01121518516 | T6: 0.01251069688 | U6: 0.0138642977 | V6: 0.01527288898 | W6: 0.01673331068 | X6: 0.01824236755 | Y6: 0.01979685235 | Z6: 0.02139356632 | AA6: 0.02302933693 | AB6: 0.02470103327 | AC6: 0.02640557921 | AD6: 0.02813996455 | AE6: 0.02990125428 | AF6: 0.03166254401 | AG6: AA-
A7: A+ | B7: 4.188818449e-05 | C7: 0.0002651414717 | D7: 0.0008308429454 | E7: 0.001381629473 | F7: 0.001925149345 | G7: 0.00245743769 | H7: 0.003035819494 | I7: 0.003613308733 | J7: 0.004328637199 | K7: 0.005291502622 | L7: 0.008173715193 | M7: 0.009660230089 | N7: 0.01125596257 | O7: 0.01295508616 | P7: 0.01475147821 | Q7: 0.01663882175 | R7: 0.01861069421 | S7: 0.02066064367 | T7: 0.02278225354 | U7: 0.02496919651 | V7: 0.02721527903 | W7: 0.02951447709 | X7: 0.03186096447 | Y7: 0.03424913443 | Z7: 0.03667361552 | AA7: 0.03912928262 | AB7: 0.04161126361 | AC7: 0.04411494266 | AD7: 0.04663596049 | AE7: 0.04917021222 | AF7: 0.05170446395 | AG7: A+
A8: A | B8: 7.946993142e-05 | C8: 0.000508920426 | D8: 0.001611645122 | E8: 0.002553526973 | F8: 0.003491231874 | G8: 0.004386228448 | H8: 0.005368985006 | I8: 0.006308090044 | J8: 0.007501239898 | K8: 0.00916515139 | L8: 0.01219275419 | M8: 0.01433651617 | N8: 0.0166239416 | O8: 0.01904516401 | P8: 0.02159004109 | Q8: 0.02424830981 | R8: 0.02700971875 | S8: 0.02986413897 | T8: 0.03280165542 | U8: 0.03581264048 | V8: 0.0388878119 | W8: 0.04201827674 | X8: 0.04519556337 | Y8: 0.04841164305 | Z8: 0.05165894281 | AA8: 0.05493035084 | AB8: 0.05821921589 | AC8: 0.06151934165 | AD8: 0.06482497707 | AE8: 0.06813080363 | AF8: 0.07143663019 | AG8: A
A9: A- | B9: 0.0002054992701 | C9: 0.001024695077 | D9: 0.002827012557 | E9: 0.004316248371 | F9: 0.005838749866 | G9: 0.007283749035 | H9: 0.008877499648 | I9: 0.01038123307 | J9: 0.01221736469 | K9: 0.01469693846 | L9: 0.01827557635 | M9: 0.02122592169 | N9: 0.0243355249 | O9: 0.0275895027 | P9: 0.03097313471 | Q9: 0.03447201939 | R9: 0.03807219821 | S9: 0.04176025172 | T9: 0.04552337106 | U9: 0.04934940837 | V9: 0.05322690934 | W9: 0.05714513093 | X9: 0.06109404657 | Y9: 0.06506434155 | Z9: 0.06904740027 | AA9: 0.07303528726 | AB9: 0.07702072349 | AC9: 0.08099705906 | AD9: 0.08495824348 | AE9: 0.08889879435 | AF9: 0.09283934523 | AG9: A-
A10: BBB+ | B10: 0.0005913121003 | C10: 0.002049390153 | D10: 0.004489988864 | E10: 0.006694774081 | F10: 0.008961026727 | G10: 0.01116557209 | H10: 0.01361506519 | I10: 0.01600312469 | J10: 0.01857525235 | K10: 0.02163330765 | L10: 0.02745071106 | M10: 0.03139070436 | N10: 0.03547681047 | O10: 0.03968870217 | P10: 0.04400715129 | Q10: 0.0484141055 | R10: 0.05289272924 | S10: 0.05742741606 | T10: 0.06200377834 | U10: 0.06660861968 | V10: 0.07122989432 | W10: 0.07585665736 | X10: 0.08047900857 | Y10: 0.08508803235 | Z10: 0.08967573572 | AA10: 0.09423498577 | AB10: 0.09875944774 | AC10: 0.1032435246 | AD10: 0.107682299 | AE10: 0.112071477 | AF10: 0.1164606551 | AG10: BBB+
A11: BBB | B11: 0.001236931688 | C11: 0.003627671429 | D11: 0.00681762422 | E11: 0.00997997996 | F11: 0.0131833228 | G11: 0.01642832919 | H11: 0.02006165497 | I11: 0.02369493617 | J11: 0.02711973451 | K11: 0.03059411708 | L11: 0.03653512523 | M11: 0.04146411341 | N11: 0.04652673585 | O11: 0.05169712125 | P11: 0.05695144118 | Q11: 0.06226790823 | R11: 0.06762673415 | S11: 0.07301005841 | T11: 0.07840185581 | U11: 0.08378783043 | V11: 0.08915530138 | W11: 0.09449308485 | X11: 0.09979137588 | Y11: 0.1050416323 | Z11: 0.1102364627 | AA11: 0.1153695199 | AB11: 0.1204353998 | AC11: 0.1254295482 | AD11: 0.1303481727 | AE11: 0.1351881627 | AF11: 0.1400281528 | AG11: BBB
A12: BBB- | B12: 0.002672077843 | C12: 0.007024955516 | D12: 0.01191343779 | E12: 0.01689970414 | F12: 0.02195222084 | G12: 0.02699814808 | H12: 0.03230371496 | I12: 0.03763575428 | J12: 0.0424815254 | K12: 0.04686149806 | L12: 0.0563861758 | M12: 0.06299440275 | N12: 0.06965902542 | O12: 0.0763504214 | P12: 0.08304270533 | Q12: 0.08971343215 | R12: 0.09634329139 | S12: 0.1029158041 | T12: 0.1094170303 | U12: 0.1158352919 | V12: 0.1221609146 | W12: 0.1283859902 | X12: 0.1345041598 | Y12: 0.1405104176 | Z12: 0.1464009346 | AA12: 0.1521729013 | AB12: 0.1578243875 | AC12: 0.1633542184 | AD12: 0.1687618652 | AE12: 0.1740473489 | AF12: 0.1793328326 | AG12: BBB-
A13: BB+ | B13: 0.006044832504 | C13: 0.01456365339 | D13: 0.02313503836 | E13: 0.03161645141 | F13: 0.04012978943 | G13: 0.04808846015 | H13: 0.05528996292 | I13: 0.06262052379 | J13: 0.06957248019 | K13: 0.07572318007 | L13: 0.09310204006 | M13: 0.1021742709 | N13: 0.1111185264 | O13: 0.1199093015 | P13: 0.1285267387 | Q13: 0.1369558069 | R13: 0.1451855582 | S13: 0.1532084644 | T13: 0.1610198365 | U13: 0.1686173211 | V13: 0.1760004674 | W13: 0.1831703592 | X13: 0.1901293033 | Y13: 0.1968805675 | Z13: 0.2034281623 | AA13: 0.2097766591 | AB13: 0.2159310404 | AC13: 0.2218965768 | AD13: 0.2276787262 | AE13: 0.2332830527 | AF13: 0.2388873793 | AG13: BB+
A14: BB | B14: 0.0116498927 | C14: 0.02647527148 | D14: 0.04026586644 | E14: 0.05344155686 | F14: 0.0666369267 | G14: 0.07814249804 | H14: 0.08691490091 | I14: 0.09591527511 | J14: 0.104846793 | K14: 0.1126499001 | L14: 0.1292189513 | M14: 0.1407671974 | N14: 0.1520064345 | O14: 0.1629143873 | P14: 0.1734764871 | Q14: 0.1836845103 | R14: 0.1935353781 | S14: 0.2030301193 | T14: 0.2121729855 | U14: 0.2209707078 | V14: 0.2294318777 | W14: 0.2375664381 | X14: 0.2453852678 | Y14: 0.2528998466 | Z14: 0.2601219879 | AA14: 0.2670636278 | AB14: 0.2737366606 | AC14: 0.2801528131 | AD14: 0.2863235499 | AE14: 0.2922600042 | AF14: 0.2981964585 | AG14: BB
A15: BB- | B15: 0.0209370485 | C15: 0.04372607917 | D15: 0.06384872747 | E15: 0.08159166624 | F15: 0.09987121707 | G15: 0.1148030052 | H15: 0.1250735783 | I15: 0.1353434889 | J15: 0.1453896489 | K15: 0.1544053108 | L15: 0.1705293688 | M15: 0.1842843145 | N15: 0.1974884982 | O15: 0.2101391461 | P15: 0.222240916 | Q15: 0.2338040783 | R15: 0.2448430343 | S15: 0.2553751216 | T15: 0.2654196612 | U15: 0.274997205 | V15: 0.2841289477 | W15: 0.292836274 | X15: 0.301140415 | Y15: 0.309062192 | Z15: 0.3166218303 | AA15: 0.3238388294 | AB15: 0.330731876 | AC15: 0.3373187917 | AD15: 0.3436165067 | AE15: 0.3496410533 | AF15: 0.3556655999 | AG15: BB-
A16: B+ | B16: 0.03626403177 | C16: 0.06795130609 | D16: 0.09546444364 | E16: 0.1164437633 | F16: 0.1382690132 | G16: 0.1553499598 | H16: 0.1672365391 | I16: 0.1782731892 | J16: 0.188393312 | K16: 0.1980030303 | L16: 0.218755602 | M16: 0.2343159848 | N16: 0.2490130519 | O16: 0.2628855013 | P16: 0.2759754629 | Q16: 0.2883265477 | R16: 0.2999824807 | S16: 0.3109861635 | T16: 0.3213790504 | U16: 0.3312007537 | V16: 0.340488814 | W16: 0.3492785877 | X16: 0.357603218 | Y16: 0.3654936624 | Z16: 0.372978759 | AA16: 0.3800853179 | AB16: 0.3868382263 | AC16: 0.3932605623 | AD16: 0.3993737113 | AE16: 0.405197481 | AF16: 0.4110212508 | AG16: B+
A17: B | B17: 0.05788678606 | C17: 0.09889115228 | D17: 0.134189791 | E17: 0.1584615095 | F17: 0.1827143125 | G17: 0.2012979136 | H17: 0.2143154917 | I17: 0.225562519 | J17: 0.2359899998 | K17: 0.2457315609 | L17: 0.266841963 | M17: 0.2842152048 | N17: 0.3004128437 | O17: 0.3155147506 | P17: 0.32960033 | Q17: 0.3427464103 | R17: 0.3550259709 | S17: 0.3665074448 | T17: 0.3772544127 | U17: 0.3873255574 | V17: 0.3967747856 | W17: 0.4056514514 | X17: 0.414000639 | Y17: 0.4218634723 | Z17: 0.4292774317 | AA17: 0.436276666 | AB17: 0.4428922894 | AC17: 0.4491526614 | AD17: 0.4550836448 | AE17: 0.4607088436 | AF17: 0.4663340424 | AG17: B
A18: B- | B18: 0.09121359548 | C18: 0.1392259674 | D18: 0.1808359754 | E18: 0.208769059 | F18: 0.2366866071 | G18: 0.2571730935 | H18: 0.2728204538 | I18: 0.2862493668 | J18: 0.2976090724 | K18: 0.3081038786 | L18: 0.3307188149 | M18: 0.3515734045 | N18: 0.3709019162 | O18: 0.3888203546 | P18: 0.4054417636 | Q18: 0.4208737433 | R18: 0.4352170705 | S18: 0.4485650613 | T18: 0.4610034249 | U18: 0.4726104303 | V18: 0.4834572631 | W18: 0.493608489 | X18: 0.5031225672 | Y18: 0.5120523754 | Z18: 0.5204457251 | AA18: 0.5283458497 | AB18: 0.535791861 | AC18: 0.5428191675 | AD18: 0.5494598549 | AE18: 0.5557430299 | AF18: 0.562026205 | AG18: B-
A19: CCC+ | B19: 0.1421176223 | C19: 0.1964482049 | D19: 0.2454118935 | E19: 0.2794264429 | F19: 0.3134145159 | G19: 0.3373168022 | H19: 0.3581824815 | I19: 0.3771397219 | J19: 0.3927841681 | K19: 0.4080110293 | L19: 0.4327674039 | M19: 0.4555168749 | N19: 0.476301851 | O19: 0.4953300222 | P19: 0.5127874534 | Q19: 0.5288396941 | R19: 0.5436333933 | S19: 0.5572981198 | T19: 0.5699482061 | U19: 0.5816845121 | V19: 0.592596055 | W19: 0.602761482 | X19: 0.6122503804 | Y19: 0.6211244304 | Z19: 0.6294384136 | AA19: 0.6372410892 | AB19: 0.6445759541 | AC19: 0.6514818998 | AD19: 0.6579937811 | AE19: 0.664142907 | AF19: 0.6702920329 | AG19: CCC+
A20: CCC | B20: 0.2125844741 | C20: 0.2747925339 | D20: 0.3342014066 | E20: 0.3775144503 | F20: 0.4207486996 | G20: 0.4501406364 | H20: 0.4781780484 | I20: 0.5053644284 | J20: 0.5310588281 | K20: 0.5568213358 | L20: 0.5770501738 | M20: 0.5950390949 | N20: 0.610860218 | O20: 0.6248687698 | P20: 0.6373523092 | Q20: 0.6485444223 | R20: 0.6586356435 | S20: 0.66778213 | T20: 0.6761125358 | U20: 0.6837334528 | V20: 0.6907337164 | W20: 0.6971878165 | X20: 0.7031586016 | Y20: 0.7086994291 | Z20: 0.7138558786 | AA20: 0.7186671208 | AB20: 0.7231670169 | AC20: 0.7273850032 | AD20: 0.7313468074 | AE20: 0.7350750305 | AF20: 0.7388032535 | AG20: CCC
A21: CCC- | B21: 0.3641078238 | C21: 0.4304398989 | D21: 0.4935128387 | E21: 0.539138026 | F21: 0.5834195326 | G21: 0.6123539276 | H21: 0.6408394098 | I21: 0.6689087848 | J21: 0.6965907793 | K21: 0.7242582412 | L21: 0.7375132375 | M21: 0.7489011743 | N21: 0.7585404102 | O21: 0.7667908605 | P21: 0.7739278722 | Q21: 0.7801635893 | R21: 0.7856626116 | S21: 0.7905535632 | T21: 0.7949376931 | U21: 0.798895307 | V21: 0.8024906 | W21: 0.805775305 | X21: 0.8087914594 | Y21: 0.8115735117 | Z21: 0.8141499329 | AA21: 0.8165444552 | AB21: 0.8187770269 | AC21: 0.8208645543 | AD21: 0.8228214794 | AE21: 0.824660233 | AF21: 0.8264989865 | AG21: CCC-
A22: CC | B22: 0.7140741918 | C22: 0.7550415303 | D22: 0.7902529974 | E22: 0.8138917658 | F22: 0.8355908103 | G22: 0.8491821095 | H22: 0.8621504726 | I22: 0.8745587042 | J22: 0.8864601978 | K22: 0.8983317873 | L22: 0.9034898402 | M22: 0.9081163687 | N22: 0.9119959451 | O22: 0.9152905447 | P22: 0.9181215106 | Q22: 0.920580757 | R22: 0.9227386149 | S22: 0.924649417 | T22: 0.9263555263 | U22: 0.9278902757 | V22: 0.9292801305 | W22: 0.9305462952 | X22: 0.931705914 | Y22: 0.9327729745 | Z22: 0.9337589922 | AA22: 0.9346735323 | AB22: 0.9355246093 | AC22: 0.9363189957 | AD22: 0.9370624606 | AE22: 0.937759957 | AF22: 0.9384574534 | AG22: CC
A23: C | B23: =(B22+B24)/2 -> 0.8570370959 | C23: =(C22+C24)/2 -> 0.8775207652 | D23: 0.8951264987 | E23: 0.9069458829 | F23: 0.9177954051 | G23: 0.9245910547 | H23: 0.9310752363 | I23: 0.9372793521 | J23: 0.9432300989 | K23: 0.9491658936 | L23: 0.9517449201 | M23: 0.9540581844 | N23: 0.9559979726 | O23: 0.9576452723 | P23: 0.9590607553 | Q23: 0.9602903785 | R23: 0.9613693075 | S23: 0.9623247085 | T23: 0.9631777632 | U23: 0.9639451378 | V23: 0.9646400652 | W23: 0.9652731476 | X23: 0.965852957 | Y23: 0.9663864873 | Z23: 0.9668794961 | AA23: 0.9673367661 | AB23: 0.9677623047 | AC23: 0.9681594978 | AD23: 0.9685312303 | AE23: 0.9688799785 | AF23: 0.9692287267 | AG23: C
A24: D | B24: 1 | C24: =MIN(1,ROUND((1+$B24)^C$26-1,5)) -> 1 | D24: =MIN(1,ROUND((1+$B24)^D$26-1,5)) -> 1 | E24: 1 | F24: 1 | G24: 1 | H24: 1 | I24: 1 | J24: 1 | K24: 1 | L24: 1 | M24: 1 | N24: 1 | O24: 1 | P24: 1 | Q24: 1 | R24: 1 | S24: 1 | T24: 1 | U24: 1 | V24: 1 | W24: 1 | X24: 1 | Y24: 1 | Z24: 1 | AA24: 1 | AB24: 1 | AC24: 1 | AD24: 1 | AE24: 1 | AF24: 1 | AG24: D
B26: 1 | C26: 2 | D26: 3 | E26: 4 | F26: 5 | G26: 6 | H26: 7 | I26: 8 | J26: 9 | K26: 10 | L26: 11 | M26: 12 | N26: 13 | O26: 14 | P26: 15 | Q26: 16 | R26: 17 | S26: 18 | T26: 19 | U26: 20 | V26: 21 | W26: 22 | X26: 23 | Y26: 24 | Z26: 25 | AA26: 26 | AB26: 27 | AC26: 28 | AD26: 29 | AE26: 30 | AF26: 31
B28: Default rates in this table is roughly based on the Idealized Default Rate table distributed by Moody's Corporation, although it uses the more familiar rating symbols employed by S&P and Fitch. PSCF users may substitute any values between 0 and 1.

Sheet results
A1: PSCF Fiscal Projection
A2: Government Entity | B2: Italy
A3: Model Description | B3: CED Presentation
A4: Currency Units in | B4: EUR
A5: Trials | B5: 1000000
A6: Run Date/Time | B6: Wed Jul 18 17:18 2012
A8: Year | B8: Default Count | C8: Default Probability | D8: Cumulative Default Count | E8: Cumulative Default Probability | F8: Rating Equivalent | H8: Minimum Interest Expense/Total Revenue | I8: Maximum Interest Expense/Total Revenue
A9: 2011 | B9: 0 | C9: 0 | D9: 0 | E9: 0 | F9: N/A | H9: 0.1057 | I9: 0.1057
A10: 2012 | B10: 0 | C10: 0 | D10: 0 | E10: 0 | F10: AAA | H10: 0.1092 | I10: 0.1093
A11: 2013 | B11: 0 | C11: 0 | D11: 0 | E11: 0 | F11: AAA | H11: 0.0801 | I11: 0.1722
A12: 2014 | B12: 0 | C12: 0 | D12: 0 | E12: 0 | F12: AAA | H12: 0.0606 | I12: 0.2361
A13: 2015 | B13: 174 | C13: 0.0002 | D13: 174 | E13: 0.0002 | F13: AA | H13: 0.0453 | I13: 0.2948
A14: 2016 | B14: 2246 | C14: 0.0022 | D14: 2246 | E14: 0.0022 | F14: A | H14: 0.0338 | I14: 0.3478
A15: 2017 | B15: 7291 | C15: 0.0073 | D15: 7313 | E15: 0.0073 | F15: BBB+ | H15: 0.025 | I15: 0.4032
A16: 2018 | B16: 13427 | C16: 0.0134 | D16: 13677 | E16: 0.0137 | F16: BBB | H16: 0.0184 | I16: 0.4769
A17: 2019 | B17: 18010 | C17: 0.018 | D17: 18949 | E17: 0.0189 | F17: BBB | H17: 0.0128 | I17: 0.5459
A18: 2020 | B18: 20383 | C18: 0.0204 | D18: 22663 | E18: 0.0227 | F18: BBB | H18: 0.0079 | I18: 0.5862
A19: 2021 | B19: 20667 | C19: 0.0207 | D19: 24812 | E19: 0.0248 | F19: BBB | H19: 0.0034 | I19: 0.6383
A20: 2022 | B20: 19333 | C20: 0.0193 | D20: 25855 | E20: 0.0259 | F20: BBB+ | H20: -0.009 | I20: 0.6819

Sheet graph
K1: 2011 | M1: =results!E9 -> 0
K2: 2012 | M2: =results!E10 -> 0
K3: 2013 | M3: =results!E11 -> 0
K4: 2014 | M4: =results!E12 -> 0
K5: 2015 | M5: =results!E13 -> 0.0002
K6: 2016 | M6: =results!E14 -> 0.0022
K7: 2017 | M7: =results!E15 -> 0.0073
K8: 2018 | M8: =results!E16 -> 0.0137
K9: 2019 | M9: =results!E17 -> 0.0189
K10: 2020 | M10: =results!E18 -> 0.0227
K11: 2021 | M11: =results!E19 -> 0.0248
K12: 2022 | M12: =results!E20 -> 0.0259
